Workbook

Sheet Renta Mensual
O1: m | R1: i / h | T1: "f" (para 3 arrendatarios) | U1: Na (*) | V1: i anual | W1: im
N2: BT | O2: 0.77 | Q2: i = | R2: =7.2/100 -> 0.072 | S2: BT | T2: 0.2 | U2: 3 | V2: 0.12 | W2: =(1+V2)^(1/12)-1 -> 0.009488792935
B3: INFRAESTRUCTURA DE SOPORTE ELÉCTRICO DE ELECTRODUNAS | N3: MT o AT | O3: 0.843 | Q3: h = | R3: =13.4/100 -> 0.134 | S3: MT o AT | T3: 0.183 | U3: 3
T4: (*) Según la construcción de la fórmula
A7: Nº | B7: REGION | C7: DEPARTAMENTO | D7: PROVINCIA | E7: DISTRITO | F7: DIRECCIÓN (TRAMO) | G7: CODIGO & NIVEL DE TENSION | H7: CODIGO DE LA ESTRUCTURA EN LAS BASES DE DATOS DE OSINERGMIN | I7: POSTE O TORRE | J7: BASE DE DATOS DE OSINERGMIN | K7: MATERIAL DE LA ESTRUCTURA | L7: NIVEL DE TENSIÓN | M7: DESCRIPCION DE LA ESTRUCTURA | N7: PRECIO CIF UNITARIO (US$), sin IGV | O7: Costo de Montaje | P7: BT - base de cálculo (US$), sin IGV | Q7: Imp | R7: Parámetro OMs (i/h) | S7: OMs | T7: Parámetro OMc (Na=3) | U7: OMc (para 3 arrendatarios) | V7: RETRIBUCIÓN MENSUAL UNITARIA POR ARRENDATARIO (US$ sin IGV) | W7: CANTIDAD PROPORCIONADA POR ELECTRO DUNAS (*)
L8: (BT, MT, AT) | O8: "m"
A9: 1 | G9: ='Resumen codigos'!G5 -> TA060SIR0D1C1120FA+3AT | H9: =INDEX('Resumen codigos'!$B$2:$B$50, MATCH(G9,'Resumen codigos'!$G$2:$G$50,0)) -> TA060SIR0D1C1120FA+3 | I9: =INDEX('Resumen codigos'!$C$2:$C$50, MATCH(G9,'Resumen codigos'!$G$2:$G$50,0)) -> TORRE | J9: =INDEX('Resumen codigos'!$D$2:$D$50, MATCH(G9,'Resumen codigos'!$G$2:$G$50,0)) -> MOD INV_2018 | K9: =INDEX('Resumen codigos'!$E$2:$E$50, MATCH(G9,'Resumen codigos'!$G$2:$G$50,0)) -> ACERO | L9: =INDEX('Resumen codigos'!$F$2:$F$50, MATCH(G9,'Resumen codigos'!$G$2:$G$50,0)) -> AT | M9: =INDEX('MODINV2018-MAR'!$D$17:$D$2729, MATCH(H9,'MODINV2018-MAR'!$C$17:$C$2729,0)) -> Torre de ángulo menor tipo A2 (30°)Tipo A2+3 | N9: =INDEX('MODINV2018-MAR'!$G$17:$G$2729, MATCH(H9,'MODINV2018-MAR'!$C$17:$C$2729,0)) -> 11293.84832 | O9: =IF(L9="BT", $O$2, $O$3) -> 0.843 | P9: =N9*(O9+1) -> 20814.56246 | Q9: 0 | R9: =IF(L9="BT", ($R$2), ($R$3)) -> 0.134 | S9: =(P9*R9)/12 -> 232.4292808 | T9: =IF(L9="BT", ($T$2), ($T$3)) -> 0.183 | U9: =S9*T9 -> 42.53455839 | V9: =(U9*(1/3)*(1+$W$2))+Q9 -> 14.31272 | W9: =COUNTIF('Infra Electrodunas'!$I$11:$I$3161, 'Renta Mensual'!G9) -> 1
A10: 2 | G10: ='Resumen codigos'!G6 -> TA060SIR0D1C1120FR+3AT | H10: =INDEX('Resumen codigos'!$B$2:$B$50, MATCH(G10,'Resumen codigos'!$G$2:$G$50,0)) -> TA060SIR0D1C1120FR+3 | I10: =INDEX('Resumen codigos'!$C$2:$C$50, MATCH(G10,'Resumen codigos'!$G$2:$G$50,0)) -> TORRE | J10: =INDEX('Resumen codigos'!$D$2:$D$50, MATCH(G10,'Resumen codigos'!$G$2:$G$50,0)) -> MOD INV_2018 | K10: =INDEX('Resumen codigos'!$E$2:$E$50, MATCH(G10,'Resumen codigos'!$G$2:$G$50,0)) -> ACERO | L10: =INDEX('Resumen codigos'!$F$2:$F$50, MATCH(G10,'Resumen codigos'!$G$2:$G$50,0)) -> AT | M10: =INDEX('MODINV2018-MAR'!$D$17:$D$2729, MATCH(H10,'MODINV2018-MAR'!$C$17:$C$2729,0)) -> Torre de anclaje, retención intermedia y terminal (15°) Tipo R2+3 | N10: =INDEX('MODINV2018-MAR'!$G$17:$G$2729, MATCH(H10,'MODINV2018-MAR'!$C$17:$C$2729,0)) -> 19782.96363 | O10: =IF(L10="BT", $O$2, $O$3) -> 0.843 | P10: =N10*(O10+1) -> 36460.00197 | Q10: 0 | R10: =IF(L10="BT", ($R$2), ($R$3)) -> 0.134 | S10: =(P10*R10)/12 -> 407.1366887 | T10: =IF(L10="BT", ($T$2), ($T$3)) -> 0.183 | U10: =S10*T10 -> 74.50601403 | V10: 25.07099539 | W10: =COUNTIF('Infra Electrodunas'!$I$11:$I$3161, 'Renta Mensual'!G10) -> 2
A11: 3 | G11: ='Resumen codigos'!G7 -> TA060SIR0S1C1120FR+3AT | H11: =INDEX('Resumen codigos'!$B$2:$B$50, MATCH(G11,'Resumen codigos'!$G$2:$G$50,0)) -> TA060SIR0S1C1120FR+3 | I11: =INDEX('Resumen codigos'!$C$2:$C$50, MATCH(G11,'Resumen codigos'!$G$2:$G$50,0)) -> TORRE | J11: =INDEX('Resumen codigos'!$D$2:$D$50, MATCH(G11,'Resumen codigos'!$G$2:$G$50,0)) -> MOD INV_2018 | K11: =INDEX('Resumen codigos'!$E$2:$E$50, MATCH(G11,'Resumen codigos'!$G$2:$G$50,0)) -> ACERO | L11: =INDEX('Resumen codigos'!$F$2:$F$50, MATCH(G11,'Resumen codigos'!$G$2:$G$50,0)) -> AT | M11: =INDEX('MODINV2018-MAR'!$D$17:$D$2729, MATCH(H11,'MODINV2018-MAR'!$C$17:$C$2729,0)) -> Torre de anclaje, retención intermedia y terminal (15°) Tipo R1+3 | N11: =INDEX('MODINV2018-MAR'!$G$17:$G$2729, MATCH(H11,'MODINV2018-MAR'!$C$17:$C$2729,0)) -> 15625.1661 | O11: =IF(L11="BT", $O$2, $O$3) -> 0.843 | P11: =N11*(O11+1) -> 28797.18112 | Q11: 0 | R11: =IF(L11="BT", ($R$2), ($R$3)) -> 0.134 | S11: 321.5685225 | T11: =IF(L11="BT", ($T$2), ($T$3)) -> 0.183 | U11: 58.84703962 | V11: 19.801809 | W11: =COUNTIF('Infra Electrodunas'!$I$11:$I$3161, 'Renta Mensual'!G11) -> 7
A12: 4 | G12: ='Resumen codigos'!G8 -> TA060SIR0S1C1120FS+6AT | H12: =INDEX('Resumen codigos'!$B$2:$B$50, MATCH(G12,'Resumen codigos'!$G$2:$G$50,0)) -> TA060SIR0S1C1120FS+6 | I12: =INDEX('Resumen codigos'!$C$2:$C$50, MATCH(G12,'Resumen codigos'!$G$2:$G$50,0)) -> TORRE | J12: =INDEX('Resumen codigos'!$D$2:$D$50, MATCH(G12,'Resumen codigos'!$G$2:$G$50,0)) -> MOD INV_2018 | K12: =INDEX('Resumen codigos'!$E$2:$E$50, MATCH(G12,'Resumen codigos'!$G$2:$G$50,0)) -> ACERO | L12: =INDEX('Resumen codigos'!$F$2:$F$50, MATCH(G12,'Resumen codigos'!$G$2:$G$50,0)) -> AT | M12: =INDEX('MODINV2018-MAR'!$D$17:$D$2729, MATCH(H12,'MODINV2018-MAR'!$C$17:$C$2729,0)) -> Torre de suspensión tipo S1 (5°)Tipo S1+6 | N12: =INDEX('MODINV2018-MAR'!$G$17:$G$2729, MATCH(H12,'MODINV2018-MAR'!$C$17:$C$2729,0)) -> 6523.273803 | O12: =IF(L12="BT", $O$2, $O$3) -> 0.843 | P12: 12022.39362 | Q12: 0 | R12: =IF(L12="BT", ($R$2), ($R$3)) -> 0.134 | S12: =(P12*R12)/12 -> 134.2500621 | T12: =IF(L12="BT", ($T$2), ($T$3)) -> 0.183 | U12: =S12*T12 -> 24.56776136 | V12: 8.26695992 | W12: =COUNTIF('Infra Electrodunas'!$I$11:$I$3161, 'Renta Mensual'!G12) -> 293
A13: 5 | G13: ='Resumen codigos'!G11 -> EC060COU0D0-120-S1AT | H13: =INDEX('Resumen codigos'!$B$2:$B$50, MATCH(G13,'Resumen codigos'!$G$2:$G$50,0)) -> EC060COU0D0-120-S1 | I13: =INDEX('Resumen codigos'!$C$2:$C$50, MATCH(G13,'Resumen codigos'!$G$2:$G$50,0)) -> POSTE | J13: =INDEX('Resumen codigos'!$D$2:$D$50, MATCH(G13,'Resumen codigos'!$G$2:$G$50,0)) -> MOD INV_2018 | K13: =INDEX('Resumen codigos'!$E$2:$E$50, MATCH(G13,'Resumen codigos'!$G$2:$G$50,0)) -> CONCRETO | L13: =INDEX('Resumen codigos'!$F$2:$F$50, MATCH(G13,'Resumen codigos'!$G$2:$G$50,0)) -> AT | M13: =INDEX('MODINV2018-MAR'!$D$17:$D$2729, MATCH(H13,'MODINV2018-MAR'!$C$17:$C$2729,0)) -> 1 Poste de concreto (18/700) de suspensión (2°) Tipo SU2-18 | N13: =INDEX('MODINV2018-MAR'!$G$17:$G$2729, MATCH(H13,'MODINV2018-MAR'!$C$17:$C$2729,0)) -> 1748.649306 | O13: =IF(L13="BT", $O$2, $O$3) -> 0.843 | P13: 3222.760671 | Q13: 0 | R13: =IF(L13="BT", ($R$2), ($R$3)) -> 0.134 | S13: =(P13*R13)/12 -> 35.98749416 | T13: =IF(L13="BT", ($T$2), ($T$3)) -> 0.183 | U13: =S13*T13 -> 6.585711431 | V13: 2.216067294 | W13: =COUNTIF('Infra Electrodunas'!$I$11:$I$3161, 'Renta Mensual'!G13) -> 116
A14: 6 | G14: ='Resumen codigos'!G12 -> EC060COU0S0-120-S1AT | H14: =INDEX('Resumen codigos'!$B$2:$B$50, MATCH(G14,'Resumen codigos'!$G$2:$G$50,0)) -> EC060COU0S0-120-S1 | I14: =INDEX('Resumen codigos'!$C$2:$C$50, MATCH(G14,'Resumen codigos'!$G$2:$G$50,0)) -> POSTE | J14: =INDEX('Resumen codigos'!$D$2:$D$50, MATCH(G14,'Resumen codigos'!$G$2:$G$50,0)) -> MOD INV_2018 | K14: =INDEX('Resumen codigos'!$E$2:$E$50, MATCH(G14,'Resumen codigos'!$G$2:$G$50,0)) -> CONCRETO | L14: =INDEX('Resumen codigos'!$F$2:$F$50, MATCH(G14,'Resumen codigos'!$G$2:$G$50,0)) -> AT | M14: =INDEX('MODINV2018-MAR'!$D$17:$D$2729, MATCH(H14,'MODINV2018-MAR'!$C$17:$C$2729,0)) -> 1 Poste de concreto (18/400) de suspensión (2°) Tipo SU1-18 | N14: =INDEX('MODINV2018-MAR'!$G$17:$G$2729, MATCH(H14,'MODINV2018-MAR'!$C$17:$C$2729,0)) -> 1537.737805 | O14: =IF(L14="BT", $O$2, $O$3) -> 0.843 | P14: 2834.050774 | Q14: 0 | R14: 0.134 | S14: 31.64690031 | T14: 0.183 | U14: 5.791382757 | V14: 1.948778663 | W14: =COUNTIF('Infra Electrodunas'!$I$11:$I$3161, 'Renta Mensual'!G14) -> 307
A15: 7 | G15: ='Resumen codigos'!G13 -> EC060SIU0S1-120-S1AT | H15: =INDEX('Resumen codigos'!$B$2:$B$50, MATCH(G15,'Resumen codigos'!$G$2:$G$50,0)) -> EC060SIU0S1-120-S1 | I15: =INDEX('Resumen codigos'!$C$2:$C$50, MATCH(G15,'Resumen codigos'!$G$2:$G$50,0)) -> POSTE | J15: =INDEX('Resumen codigos'!$D$2:$D$50, MATCH(G15,'Resumen codigos'!$G$2:$G$50,0)) -> MOD INV_2018 | K15: =INDEX('Resumen codigos'!$E$2:$E$50, MATCH(G15,'Resumen codigos'!$G$2:$G$50,0)) -> CONCRETO | L15: =INDEX('Resumen codigos'!$F$2:$F$50, MATCH(G15,'Resumen codigos'!$G$2:$G$50,0)) -> AT | M15: =INDEX('MODINV2018-MAR'!$D$17:$D$2729, MATCH(H15,'MODINV2018-MAR'!$C$17:$C$2729,0)) -> 1 Poste de concreto (21/600) de suspensión (2°) Tipo SU1-21 | N15: =INDEX('MODINV2018-MAR'!$G$17:$G$2729, MATCH(H15,'MODINV2018-MAR'!$C$17:$C$2729,0)) -> 2636.107844 | O15: 0.843 | P15: 4858.346756 | Q15: 0 | R15: 0.134 | S15: 54.25153878 | T15: 0.183 | U15: 9.928031596 | V15: 3.340745544 | W15: =COUNTIF('Infra Electrodunas'!$I$11:$I$3161, 'Renta Mensual'!G15) -> 2
A16: 8 | G16: ='Resumen codigos'!G17 -> PPC02BT | H16: =INDEX('Resumen codigos'!$B$2:$B$50, MATCH(G16,'Resumen codigos'!$G$2:$G$50,0)) -> PPC02 | I16: =INDEX('Resumen codigos'!$C$2:$C$50, MATCH(G16,'Resumen codigos'!$G$2:$G$50,0)) -> POSTE | J16: =INDEX('Resumen codigos'!$D$2:$D$50, MATCH(G16,'Resumen codigos'!$G$2:$G$50,0)) -> SICODI | K16: =INDEX('Resumen codigos'!$E$2:$E$50, MATCH(G16,'Resumen codigos'!$G$2:$G$50,0)) -> CONCRETO | L16: =INDEX('Resumen codigos'!$F$2:$F$50, MATCH(G16,'Resumen codigos'!$G$2:$G$50,0)) -> BT | M16: =INDEX('SICODI-DIC17'!$H$3:$H$2404, MATCH(H16,'SICODI-DIC17'!$G$3:$G$2404,0)) -> POSTE DE CONCRETO ARMADO DE 7/200/120/225 | N16: =INDEX('SICODI-DIC17'!$K$3:$K$2404, MATCH(H16,'SICODI-DIC17'!$G$3:$G$2404,0)) -> 135.003468 | O16: 0.77 | P16: 238.9561384 | Q16: 0 | R16: 0.072 | S16: 1.43373683 | T16: 0.2 | U16: 0.286747366 | V16: 0.09648941747 | W16: =COUNTIF('Infra Electrodunas'!$I$11:$I$3161, 'Renta Mensual'!G16) -> 4
A17: 9 | G17: ='Resumen codigos'!G18 -> PPC03BT | H17: =INDEX('Resumen codigos'!$B$2:$B$50, MATCH(G17,'Resumen codigos'!$G$2:$G$50,0)) -> PPC03 | I17: =INDEX('Resumen codigos'!$C$2:$C$50, MATCH(G17,'Resumen codigos'!$G$2:$G$50,0)) -> POSTE | J17: =INDEX('Resumen codigos'!$D$2:$D$50, MATCH(G17,'Resumen codigos'!$G$2:$G$50,0)) -> SICODI | K17: =INDEX('Resumen codigos'!$E$2:$E$50, MATCH(G17,'Resumen codigos'!$G$2:$G$50,0)) -> CONCRETO | L17: =INDEX('Resumen codigos'!$F$2:$F$50, MATCH(G17,'Resumen codigos'!$G$2:$G$50,0)) -> BT | M17: =INDEX('SICODI-DIC17'!$H$3:$H$2404, MATCH(H17,'SICODI-DIC17'!$G$3:$G$2404,0)) -> POSTE DE CONCRETO ARMADO DE 7/300/120/225 | N17: =INDEX('SICODI-DIC17'!$K$3:$K$2404, MATCH(H17,'SICODI-DIC17'!$G$3:$G$2404,0)) -> 158.201148 | O17: 0.77 | P17: 280.016032 | Q17: 0 | R17: 0.072 | S17: 1.680096192 | T17: 0.2 | U17: =S17*T17 -> 0.3360192384 | V17: 0.1130692184 | W17: =COUNTIF('Infra Electrodunas'!$I$11:$I$3161, 'Renta Mensual'!G17) -> 5
A18: 10 | G18: ='Resumen codigos'!G19 -> PPC05BT | H18: =INDEX('Resumen codigos'!$B$2:$B$50, MATCH(G18,'Resumen codigos'!$G$2:$G$50,0)) -> PPC05 | I18: =INDEX('Resumen codigos'!$C$2:$C$50, MATCH(G18,'Resumen codigos'!$G$2:$G$50,0)) -> POSTE | J18: =INDEX('Resumen codigos'!$D$2:$D$50, MATCH(G18,'Resumen codigos'!$G$2:$G$50,0)) -> SICODI | K18: =INDEX('Resumen codigos'!$E$2:$E$50, MATCH(G18,'Resumen codigos'!$G$2:$G$50,0)) -> CONCRETO | L18: =INDEX('Resumen codigos'!$F$2:$F$50, MATCH(G18,'Resumen codigos'!$G$2:$G$50,0)) -> BT | M18: =INDEX('SICODI-DIC17'!$H$3:$H$2404, MATCH(H18,'SICODI-DIC17'!$G$3:$G$2404,0)) -> POSTE DE CONCRETO ARMADO DE 8/200/120/240 | N18: =INDEX('SICODI-DIC17'!$K$3:$K$2404, MATCH(H18,'SICODI-DIC17'!$G$3:$G$2404,0)) -> 160.27488 | O18: 0.77 | P18: 283.6865376 | Q18: 0 | R18: 0.072 | S18: 1.702119226 | T18: 0.2 | U18: 0.3404238451 | V18: 0.1145513522 | W18: =COUNTIF('Infra Electrodunas'!$I$11:$I$3161, 'Renta Mensual'!G18) -> 230
A19: 11 | G19: ='Resumen codigos'!G20 -> PPC06BT | H19: =INDEX('Resumen codigos'!$B$2:$B$50, MATCH(G19,'Resumen codigos'!$G$2:$G$50,0)) -> PPC06 | I19: =INDEX('Resumen codigos'!$C$2:$C$50, MATCH(G19,'Resumen codigos'!$G$2:$G$50,0)) -> POSTE | J19: =INDEX('Resumen codigos'!$D$2:$D$50, MATCH(G19,'Resumen codigos'!$G$2:$G$50,0)) -> SICODI | K19: =INDEX('Resumen codigos'!$E$2:$E$50, MATCH(G19,'Resumen codigos'!$G$2:$G$50,0)) -> CONCRETO | L19: =INDEX('Resumen codigos'!$F$2:$F$50, MATCH(G19,'Resumen codigos'!$G$2:$G$50,0)) -> BT | M19: =INDEX('SICODI-DIC17'!$H$3:$H$2404, MATCH(H19,'SICODI-DIC17'!$G$3:$G$2404,0)) -> POSTE DE CONCRETO ARMADO DE 8/300/120/240 | N19: =INDEX('SICODI-DIC17'!$K$3:$K$2404, MATCH(H19,'SICODI-DIC17'!$G$3:$G$2404,0)) -> 189.7992 | O19: 0.77 | P19: 335.944584 | Q19: 0 | R19: 0.072 | S19: 2.015667504 | T19: 0.2 | U19: 0.4031335008 | V19: 0.135652917 | W19: =COUNTIF('Infra Electrodunas'!$I$11:$I$3161, 'Renta Mensual'!G19) -> 88
A20: 12 | G20: ='Resumen codigos'!G21 -> PPC09BT | H20: =INDEX('Resumen codigos'!$B$2:$B$50, MATCH(G20,'Resumen codigos'!$G$2:$G$50,0)) -> PPC09 | I20: =INDEX('Resumen codigos'!$C$2:$C$50, MATCH(G20,'Resumen codigos'!$G$2:$G$50,0)) -> POSTE | J20: =INDEX('Resumen codigos'!$D$2:$D$50, MATCH(G20,'Resumen codigos'!$G$2:$G$50,0)) -> SICODI | K20: =INDEX('Resumen codigos'!$E$2:$E$50, MATCH(G20,'Resumen codigos'!$G$2:$G$50,0)) -> CONCRETO | L20: =INDEX('Resumen codigos'!$F$2:$F$50, MATCH(G20,'Resumen codigos'!$G$2:$G$50,0)) -> BT | M20: =INDEX('SICODI-DIC17'!$H$3:$H$2404, MATCH(H20,'SICODI-DIC17'!$G$3:$G$2404,0)) -> POSTE DE CONCRETO ARMADO DE 9/300/120/255 | N20: =INDEX('SICODI-DIC17'!$K$3:$K$2404, MATCH(H20,'SICODI-DIC17'!$G$3:$G$2404,0)) -> 222.885184 | O20: 0.77 | P20: 394.5067757 | Q20: 0 | R20: 0.072 | S20: 2.367040654 | T20: 0.2 | U20: 0.4734081308 | V20: 0.1593000675 | W20: =COUNTIF('Infra Electrodunas'!$I$11:$I$3161, 'Renta Mensual'!G20) -> 10
A21: 13 | G21: ='Resumen codigos'!G22 -> PPC19BT | H21: =INDEX('Resumen codigos'!$B$2:$B$50, MATCH(G21,'Resumen codigos'!$G$2:$G$50,0)) -> PPC19 | I21: =INDEX('Resumen codigos'!$C$2:$C$50, MATCH(G21,'Resumen codigos'!$G$2:$G$50,0)) -> POSTE | J21: =INDEX('Resumen codigos'!$D$2:$D$50, MATCH(G21,'Resumen codigos'!$G$2:$G$50,0)) -> SICODI | K21: =INDEX('Resumen codigos'!$E$2:$E$50, MATCH(G21,'Resumen codigos'!$G$2:$G$50,0)) -> CONCRETO | L21: =INDEX('Resumen codigos'!$F$2:$F$50, MATCH(G21,'Resumen codigos'!$G$2:$G$50,0)) -> BT | M21: =INDEX('SICODI-DIC17'!$H$3:$H$2404, MATCH(H21,'SICODI-DIC17'!$G$3:$G$2404,0)) -> POSTE DE CONCRETO ARMADO DE 13/300/150/345 | N21: =INDEX('SICODI-DIC17'!$K$3:$K$2404, MATCH(H21,'SICODI-DIC17'!$G$3:$G$2404,0)) -> 368.05814 | O21: 0.77 | P21: 651.4629078 | Q21: 0 | R21: 0.072 | S21: 3.908777447 | T21: 0.2 | U21: 0.7817554894 | V21: 0.2630578018 | W21: =COUNTIF('Infra Electrodunas'!$I$11:$I$3161, 'Renta Mensual'!G21) -> 1
A22: 14 | G22: ='Resumen codigos'!G23 -> PPC20BT | H22: =INDEX('Resumen codigos'!$B$2:$B$50, MATCH(G22,'Resumen codigos'!$G$2:$G$50,0)) -> PPC20 | I22: =INDEX('Resumen codigos'!$C$2:$C$50, MATCH(G22,'Resumen codigos'!$G$2:$G$50,0)) -> POSTE | J22: =INDEX('Resumen codigos'!$D$2:$D$50, MATCH(G22,'Resumen codigos'!$G$2:$G$50,0)) -> SICODI | K22: =INDEX('Resumen codigos'!$E$2:$E$50, MATCH(G22,'Resumen codigos'!$G$2:$G$50,0)) -> CONCRETO | L22: =INDEX('Resumen codigos'!$F$2:$F$50, MATCH(G22,'Resumen codigos'!$G$2:$G$50,0)) -> BT | M22: =INDEX('SICODI-DIC17'!$H$3:$H$2404, MATCH(H22,'SICODI-DIC17'!$G$3:$G$2404,0)) -> POSTE DE CONCRETO ARMADO DE 13/400/150/345 | N22: =INDEX('SICODI-DIC17'!$K$3:$K$2404, MATCH(H22,'SICODI-DIC17'!$G$3:$G$2404,0)) -> 427.270804 | O22: 0.77 | P22: 756.2693231 | Q22: 0 | R22: 0.072 | S22: 4.537615938 | T22: 0.2 | U22: 0.9075231877 | V22: 0.3053781624 | W22: =COUNTIF('Infra Electrodunas'!$I$11:$I$3161, 'Renta Mensual'!G22) -> 2
A23: 15 | G23: ='Resumen codigos'!G25 -> PPF02BT | H23: =INDEX('Resumen codigos'!$B$2:$B$50, MATCH(G23,'Resumen codigos'!$G$2:$G$50,0)) -> PPF02 | I23: =INDEX('Resumen codigos'!$C$2:$C$50, MATCH(G23,'Resumen codigos'!$G$2:$G$50,0)) -> POSTE | J23: =INDEX('Resumen codigos'!$D$2:$D$50, MATCH(G23,'Resumen codigos'!$G$2:$G$50,0)) -> SICODI | K23: =INDEX('Resumen codigos'!$E$2:$E$50, MATCH(G23,'Resumen codigos'!$G$2:$G$50,0)) -> FIERRO | L23: =INDEX('Resumen codigos'!$F$2:$F$50, MATCH(G23,'Resumen codigos'!$G$2:$G$50,0)) -> BT | M23: =INDEX('SICODI-DIC17'!$H$3:$H$2404, MATCH(H23,'SICODI-DIC17'!$G$3:$G$2404,0)) -> POSTE DE METAL DE 8 mts. | N23: =INDEX('SICODI-DIC17'!$K$3:$K$2404, MATCH(H23,'SICODI-DIC17'!$G$3:$G$2404,0)) -> 440.381008 | O23: 0.77 | P23: 779.4743842 | Q23: 0 | R23: 0.072 | S23: 4.676846305 | T23: 0.2 | U23: 0.935369261 | V23: 0.3147482621 | W23: =COUNTIF('Infra Electrodunas'!$I$11:$I$3161, 'Renta Mensual'!G23) -> 24
A24: 16 | G24: ='Resumen codigos'!G27 -> PPM02BT | H24: =INDEX('Resumen codigos'!$B$2:$B$50, MATCH(G24,'Resumen codigos'!$G$2:$G$50,0)) -> PPM02 | I24: =INDEX('Resumen codigos'!$C$2:$C$50, MATCH(G24,'Resumen codigos'!$G$2:$G$50,0)) -> POSTE | J24: =INDEX('Resumen codigos'!$D$2:$D$50, MATCH(G24,'Resumen codigos'!$G$2:$G$50,0)) -> SICODI | K24: =INDEX('Resumen codigos'!$E$2:$E$50, MATCH(G24,'Resumen codigos'!$G$2:$G$50,0)) -> MADERA | L24: =INDEX('Resumen codigos'!$F$2:$F$50, MATCH(G24,'Resumen codigos'!$G$2:$G$50,0)) -> BT | M24: =INDEX('SICODI-DIC17'!$H$3:$H$2404, MATCH(H24,'SICODI-DIC17'!$G$3:$G$2404,0)) -> POSTE DE MADERA TRATADA DE 8 mts. CL.5 | N24: =INDEX('SICODI-DIC17'!$K$3:$K$2404, MATCH(H24,'SICODI-DIC17'!$G$3:$G$2404,0)) -> 118.1915938 | O24: 0.77 | P24: 209.199121 | Q24: 0 | R24: 0.072 | S24: 1.255194726 | T24: 0.2 | U24: 0.2510389452 | V24: 0.08447366727 | W24: =COUNTIF('Infra Electrodunas'!$I$11:$I$3161, 'Renta Mensual'!G24) -> 62
A25: 17 | G25: ='Resumen codigos'!G28 -> PPM16BT | H25: =INDEX('Resumen codigos'!$B$2:$B$50, MATCH(G25,'Resumen codigos'!$G$2:$G$50,0)) -> PPM16 | I25: =INDEX('Resumen codigos'!$C$2:$C$50, MATCH(G25,'Resumen codigos'!$G$2:$G$50,0)) -> POSTE | J25: =INDEX('Resumen codigos'!$D$2:$D$50, MATCH(G25,'Resumen codigos'!$G$2:$G$50,0)) -> SICODI | K25: =INDEX('Resumen codigos'!$E$2:$E$50, MATCH(G25,'Resumen codigos'!$G$2:$G$50,0)) -> MADERA | L25: =INDEX('Resumen codigos'!$F$2:$F$50, MATCH(G25,'Resumen codigos'!$G$2:$G$50,0)) -> BT | M25: =INDEX('SICODI-DIC17'!$H$3:$H$2404, MATCH(H25,'SICODI-DIC17'!$G$3:$G$2404,0)) -> POSTE DE MADERA TRATADA DE 11 mts. CL.5 | N25: =INDEX('SICODI-DIC17'!$K$3:$K$2404, MATCH(H25,'SICODI-DIC17'!$G$3:$G$2404,0)) -> 260.9018466 | O25: 0.77 | P25: 461.7962685 | Q25: 0 | R25: 0.072 | S25: 2.770777611 | T25: 0.2 | U25: 0.5541555222 | V25: 0.1864712631 | W25: =COUNTIF('Infra Electrodunas'!$I$11:$I$3161, 'Renta Mensual'!G25) -> 1
A26: 18 | G26: ='Resumen codigos'!G32 -> PPC11MT | H26: =INDEX('Resumen codigos'!$B$2:$B$50, MATCH(G26,'Resumen codigos'!$G$2:$G$50,0)) -> PPC11 | I26: =INDEX('Resumen codigos'!$C$2:$C$50, MATCH(G26,'Resumen codigos'!$G$2:$G$50,0)) -> POSTE | J26: =INDEX('Resumen codigos'!$D$2:$D$50, MATCH(G26,'Resumen codigos'!$G$2:$G$50,0)) -> SICODI | K26: =INDEX('Resumen codigos'!$E$2:$E$50, MATCH(G26,'Resumen codigos'!$G$2:$G$50,0)) -> CONCRETO | L26: =INDEX('Resumen codigos'!$F$2:$F$50, MATCH(G26,'Resumen codigos'!$G$2:$G$50,0)) -> MT | M26: =INDEX('SICODI-DIC17'!$H$3:$H$2404, MATCH(H26,'SICODI-DIC17'!$G$3:$G$2404,0)) -> POSTE DE CONCRETO ARMADO DE 11/200/120/285 | N26: =INDEX('SICODI-DIC17'!$K$3:$K$2404, MATCH(H26,'SICODI-DIC17'!$G$3:$G$2404,0)) -> 241.384748 | O26: 0.843 | P26: 444.8720906 | Q26: 0 | R26: 0.134 | S26: 4.967738345 | T26: 0.183 | U26: 0.9090961171 | V26: 0.3059074473 | W26: =COUNTIF('Infra Electrodunas'!$I$11:$I$3161, 'Renta Mensual'!G26) -> 9
A27: 19 | G27: ='Resumen codigos'!G33 -> PPC12MT | H27: =INDEX('Resumen codigos'!$B$2:$B$50, MATCH(G27,'Resumen codigos'!$G$2:$G$50,0)) -> PPC12 | I27: =INDEX('Resumen codigos'!$C$2:$C$50, MATCH(G27,'Resumen codigos'!$G$2:$G$50,0)) -> POSTE | J27: =INDEX('Resumen codigos'!$D$2:$D$50, MATCH(G27,'Resumen codigos'!$G$2:$G$50,0)) -> SICODI | K27: =INDEX('Resumen codigos'!$E$2:$E$50, MATCH(G27,'Resumen codigos'!$G$2:$G$50,0)) -> CONCRETO | L27: =INDEX('Resumen codigos'!$F$2:$F$50, MATCH(G27,'Resumen codigos'!$G$2:$G$50,0)) -> MT | M27: =INDEX('SICODI-DIC17'!$H$3:$H$2404, MATCH(H27,'SICODI-DIC17'!$G$3:$G$2404,0)) -> POSTE DE CONCRETO ARMADO DE 11/300/120/285 | N27: =INDEX('SICODI-DIC17'!$K$3:$K$2404, MATCH(H27,'SICODI-DIC17'!$G$3:$G$2404,0)) -> 293.052308 | O27: 0.843 | P27: 540.0954036 | Q27: 0 | R27: 0.134 | S27: 6.031065341 | T27: 0.183 | U27: 1.103684957 | V27: 0.3713858651 | W27: =COUNTIF('Infra Electrodunas'!$I$11:$I$3161, 'Renta Mensual'!G27) -> 55
A28: 20 | G28: ='Resumen codigos'!G34 -> PPC15MT | H28: =INDEX('Resumen codigos'!$B$2:$B$50, MATCH(G28,'Resumen codigos'!$G$2:$G$50,0)) -> PPC15 | I28: =INDEX('Resumen codigos'!$C$2:$C$50, MATCH(G28,'Resumen codigos'!$G$2:$G$50,0)) -> POSTE | J28: =INDEX('Resumen codigos'!$D$2:$D$50, MATCH(G28,'Resumen codigos'!$G$2:$G$50,0)) -> SICODI | K28: =INDEX('Resumen codigos'!$E$2:$E$50, MATCH(G28,'Resumen codigos'!$G$2:$G$50,0)) -> CONCRETO | L28: =INDEX('Resumen codigos'!$F$2:$F$50, MATCH(G28,'Resumen codigos'!$G$2:$G$50,0)) -> MT | M28: =INDEX('SICODI-DIC17'!$H$3:$H$2404, MATCH(H28,'SICODI-DIC17'!$G$3:$G$2404,0)) -> POSTE DE CONCRETO ARMADO DE 12/200/120/300 | N28: =INDEX('SICODI-DIC17'!$K$3:$K$2404, MATCH(H28,'SICODI-DIC17'!$G$3:$G$2404,0)) -> 269.93664 | O28: 0.843 | P28: 497.4932275 | Q28: 0 | R28: 0.134 | S28: 5.555341041 | T28: 0.183 | U28: 1.01662741 | V28: 0.3420913258 | W28: =COUNTIF('Infra Electrodunas'!$I$11:$I$3161, 'Renta Mensual'!G28) -> 70
A29: 21 | G29: ='Resumen codigos'!G35 -> PPC16MT | H29: =INDEX('Resumen codigos'!$B$2:$B$50, MATCH(G29,'Resumen codigos'!$G$2:$G$50,0)) -> PPC16 | I29: =INDEX('Resumen codigos'!$C$2:$C$50, MATCH(G29,'Resumen codigos'!$G$2:$G$50,0)) -> POSTE | J29: =INDEX('Resumen codigos'!$D$2:$D$50, MATCH(G29,'Resumen codigos'!$G$2:$G$50,0)) -> SICODI | K29: =INDEX('Resumen codigos'!$E$2:$E$50, MATCH(G29,'Resumen codigos'!$G$2:$G$50,0)) -> CONCRETO | L29: =INDEX('Resumen codigos'!$F$2:$F$50, MATCH(G29,'Resumen codigos'!$G$2:$G$50,0)) -> MT | M29: =INDEX('SICODI-DIC17'!$H$3:$H$2404, MATCH(H29,'SICODI-DIC17'!$G$3:$G$2404,0)) -> POSTE DE CONCRETO ARMADO DE 12/300/150/330 | N29: =INDEX('SICODI-DIC17'!$K$3:$K$2404, MATCH(H29,'SICODI-DIC17'!$G$3:$G$2404,0)) -> 330.016288 | O29: 0.843 | P29: 608.2200188 | Q29: 0 | R29: 0.134 | S29: 6.79179021 | T29: 0.183 | U29: 1.242897608 | V29: 0.4182304021 | W29: =COUNTIF('Infra Electrodunas'!$I$11:$I$3161, 'Renta Mensual'!G29) -> 183
A30: 22 | G30: ='Resumen codigos'!G36 -> PPC17MT | H30: =INDEX('Resumen codigos'!$B$2:$B$50, MATCH(G30,'Resumen codigos'!$G$2:$G$50,0)) -> PPC17 | I30: =INDEX('Resumen codigos'!$C$2:$C$50, MATCH(G30,'Resumen codigos'!$G$2:$G$50,0)) -> POSTE | J30: =INDEX('Resumen codigos'!$D$2:$D$50, MATCH(G30,'Resumen codigos'!$G$2:$G$50,0)) -> SICODI | K30: =INDEX('Resumen codigos'!$E$2:$E$50, MATCH(G30,'Resumen codigos'!$G$2:$G$50,0)) -> CONCRETO | L30: =INDEX('Resumen codigos'!$F$2:$F$50, MATCH(G30,'Resumen codigos'!$G$2:$G$50,0)) -> MT | M30: =INDEX('SICODI-DIC17'!$H$3:$H$2404, MATCH(H30,'SICODI-DIC17'!$G$3:$G$2404,0)) -> POSTE DE CONCRETO ARMADO DE 12/400/150/330 | N30: =INDEX('SICODI-DIC17'!$K$3:$K$2404, MATCH(H30,'SICODI-DIC17'!$G$3:$G$2404,0)) -> 358.263564 | O30: 0.843 | P30: 660.2797485 | Q30: 0 | R30: 0.134 | S30: 7.373123858 | T30: 0.183 | U30: 1.349281666 | V30: 0.4540282401 | W30: =COUNTIF('Infra Electrodunas'!$I$11:$I$3161, 'Renta Mensual'!G30) -> 19
A31: 23 | G31: ='Resumen codigos'!G37 -> PPC18MT | H31: =INDEX('Resumen codigos'!$B$2:$B$50, MATCH(G31,'Resumen codigos'!$G$2:$G$50,0)) -> PPC18 | I31: =INDEX('Resumen codigos'!$C$2:$C$50, MATCH(G31,'Resumen codigos'!$G$2:$G$50,0)) -> POSTE | J31: =INDEX('Resumen codigos'!$D$2:$D$50, MATCH(G31,'Resumen codigos'!$G$2:$G$50,0)) -> SICODI | K31: =INDEX('Resumen codigos'!$E$2:$E$50, MATCH(G31,'Resumen codigos'!$G$2:$G$50,0)) -> CONCRETO | L31: =INDEX('Resumen codigos'!$F$2:$F$50, MATCH(G31,'Resumen codigos'!$G$2:$G$50,0)) -> MT | M31: =INDEX('SICODI-DIC17'!$H$3:$H$2404, MATCH(H31,'SICODI-DIC17'!$G$3:$G$2404,0)) -> POSTE DE CONCRETO ARMADO DE 13/200/140/335 | N31: =INDEX('SICODI-DIC17'!$K$3:$K$2404, MATCH(H31,'SICODI-DIC17'!$G$3:$G$2404,0)) -> 299.214924 | O31: 0.843 | P31: 551.4531049 | Q31: 0 | R31: 0.134 | S31: 6.157893005 | T31: 0.183 | U31: 1.12689442 | V31: 0.3791957626 | W31: =COUNTIF('Infra Electrodunas'!$I$11:$I$3161, 'Renta Mensual'!G31) -> 1
A32: 24 | G32: ='Resumen codigos'!G38 -> PPC19MT | H32: =INDEX('Resumen codigos'!$B$2:$B$50, MATCH(G32,'Resumen codigos'!$G$2:$G$50,0)) -> PPC19 | I32: =INDEX('Resumen codigos'!$C$2:$C$50, MATCH(G32,'Resumen codigos'!$G$2:$G$50,0)) -> POSTE | J32: =INDEX('Resumen codigos'!$D$2:$D$50, MATCH(G32,'Resumen codigos'!$G$2:$G$50,0)) -> SICODI | K32: =INDEX('Resumen codigos'!$E$2:$E$50, MATCH(G32,'Resumen codigos'!$G$2:$G$50,0)) -> CONCRETO | L32: =INDEX('Resumen codigos'!$F$2:$F$50, MATCH(G32,'Resumen codigos'!$G$2:$G$50,0)) -> MT | M32: =INDEX('SICODI-DIC17'!$H$3:$H$2404, MATCH(H32,'SICODI-DIC17'!$G$3:$G$2404,0)) -> POSTE DE CONCRETO ARMADO DE 13/300/150/345 | N32: =INDEX('SICODI-DIC17'!$K$3:$K$2404, MATCH(H32,'SICODI-DIC17'!$G$3:$G$2404,0)) -> 368.05814 | O32: 0.843 | P32: 678.331152 | Q32: 0 | R32: 0.134 | S32: 7.574697864 | T32: 0.183 | U32: 1.386169709 | V32: 0.4664409288 | W32: =COUNTIF('Infra Electrodunas'!$I$11:$I$3161, 'Renta Mensual'!G32) -> 650
A33: 25 | G33: ='Resumen codigos'!G39 -> PPC20MT | H33: =INDEX('Resumen codigos'!$B$2:$B$50, MATCH(G33,'Resumen codigos'!$G$2:$G$50,0)) -> PPC20 | I33: =INDEX('Resumen codigos'!$C$2:$C$50, MATCH(G33,'Resumen codigos'!$G$2:$G$50,0)) -> POSTE | J33: =INDEX('Resumen codigos'!$D$2:$D$50, MATCH(G33,'Resumen codigos'!$G$2:$G$50,0)) -> SICODI | K33: =INDEX('Resumen codigos'!$E$2:$E$50, MATCH(G33,'Resumen codigos'!$G$2:$G$50,0)) -> CONCRETO | L33: =INDEX('Resumen codigos'!$F$2:$F$50, MATCH(G33,'Resumen codigos'!$G$2:$G$50,0)) -> MT | M33: =INDEX('SICODI-DIC17'!$H$3:$H$2404, MATCH(H33,'SICODI-DIC17'!$G$3:$G$2404,0)) -> POSTE DE CONCRETO ARMADO DE 13/400/150/345 | N33: =INDEX('SICODI-DIC17'!$K$3:$K$2404, MATCH(H33,'SICODI-DIC17'!$G$3:$G$2404,0)) -> 427.270804 | O33: 0.843 | P33: 787.4600918 | Q33: 0 | R33: 0.134 | S33: 8.793304358 | T33: 0.183 | U33: 1.609174698 | V33: 0.5414812743 | W33: =COUNTIF('Infra Electrodunas'!$I$11:$I$3161, 'Renta Mensual'!G33) -> 388
A34: 26 | G34: ='Resumen codigos'!G40 -> PPC21MT | H34: =INDEX('Resumen codigos'!$B$2:$B$50, MATCH(G34,'Resumen codigos'!$G$2:$G$50,0)) -> PPC21 | I34: =INDEX('Resumen codigos'!$C$2:$C$50, MATCH(G34,'Resumen codigos'!$G$2:$G$50,0)) -> POSTE | J34: =INDEX('Resumen codigos'!$D$2:$D$50, MATCH(G34,'Resumen codigos'!$G$2:$G$50,0)) -> SICODI | K34: =INDEX('Resumen codigos'!$E$2:$E$50, MATCH(G34,'Resumen codigos'!$G$2:$G$50,0)) -> CONCRETO | L34: =INDEX('Resumen codigos'!$F$2:$F$50, MATCH(G34,'Resumen codigos'!$G$2:$G$50,0)) -> MT | M34: =INDEX('SICODI-DIC17'!$H$3:$H$2404, MATCH(H34,'SICODI-DIC17'!$G$3:$G$2404,0)) -> POSTE DE CONCRETO ARMADO DE 13/500/160/355 | N34: =INDEX('SICODI-DIC17'!$K$3:$K$2404, MATCH(H34,'SICODI-DIC17'!$G$3:$G$2404,0)) -> 435.472004 | O34: 0.843 | P34: =N34*(O34+1) -> 802.5749034 | Q34: 0 | R34: 0.134 | S34: 8.962086421 | T34: 0.183 | U34: 1.640061815 | V34: 0.551874674 | W34: =COUNTIF('Infra Electrodunas'!$I$11:$I$3161, 'Renta Mensual'!G34) -> 20
A35: 27 | G35: ='Resumen codigos'!G41 -> PPC23MT | H35: =INDEX('Resumen codigos'!$B$2:$B$50, MATCH(G35,'Resumen codigos'!$G$2:$G$50,0)) -> PPC23 | I35: =INDEX('Resumen codigos'!$C$2:$C$50, MATCH(G35,'Resumen codigos'!$G$2:$G$50,0)) -> POSTE | J35: =INDEX('Resumen codigos'!$D$2:$D$50, MATCH(G35,'Resumen codigos'!$G$2:$G$50,0)) -> SICODI | K35: =INDEX('Resumen codigos'!$E$2:$E$50, MATCH(G35,'Resumen codigos'!$G$2:$G$50,0)) -> CONCRETO | L35: =INDEX('Resumen codigos'!$F$2:$F$50, MATCH(G35,'Resumen codigos'!$G$2:$G$50,0)) -> MT | M35: =INDEX('SICODI-DIC17'!$H$3:$H$2404, MATCH(H35,'SICODI-DIC17'!$G$3:$G$2404,0)) -> POSTE DE CONCRETO ARMADO DE 15/300/140/365 | N35: =INDEX('SICODI-DIC17'!$K$3:$K$2404, MATCH(H35,'SICODI-DIC17'!$G$3:$G$2404,0)) -> 447.43404 | O35: 0.843 | P35: 824.6209357 | Q35: 0 | R35: 0.134 | S35: 9.208267116 | T35: 0.183 | U35: 1.685112882 | V35: 0.5670341898 | W35: =COUNTIF('Infra Electrodunas'!$I$11:$I$3161, 'Renta Mensual'!G35) -> 8
A36: 28 | G36: ='Resumen codigos'!G42 -> PPC24MT | H36: =INDEX('Resumen codigos'!$B$2:$B$50, MATCH(G36,'Resumen codigos'!$G$2:$G$50,0)) -> PPC24 | I36: =INDEX('Resumen codigos'!$C$2:$C$50, MATCH(G36,'Resumen codigos'!$G$2:$G$50,0)) -> POSTE | J36: =INDEX('Resumen codigos'!$D$2:$D$50, MATCH(G36,'Resumen codigos'!$G$2:$G$50,0)) -> SICODI | K36: =INDEX('Resumen codigos'!$E$2:$E$50, MATCH(G36,'Resumen codigos'!$G$2:$G$50,0)) -> CONCRETO | L36: =INDEX('Resumen codigos'!$F$2:$F$50, MATCH(G36,'Resumen codigos'!$G$2:$G$50,0)) -> MT | M36: =INDEX('SICODI-DIC17'!$H$3:$H$2404, MATCH(H36,'SICODI-DIC17'!$G$3:$G$2404,0)) -> POSTE DE CONCRETO ARMADO DE 15/400/150/375 | N36: =INDEX('SICODI-DIC17'!$K$3:$K$2404, MATCH(H36,'SICODI-DIC17'!$G$3:$G$2404,0)) -> 558.572016 | O36: 0.843 | P36: 1029.448225 | Q36: 0 | R36: 0.134 | S36: 11.49550518 | T36: 0.183 | U36: 2.103677449 | V36: 0.7078796028 | W36: =COUNTIF('Infra Electrodunas'!$I$11:$I$3161, 'Renta Mensual'!G36) -> 17
A37: 29 | G37: ='Resumen codigos'!G43 -> PPC25MT | H37: =INDEX('Resumen codigos'!$B$2:$B$50, MATCH(G37,'Resumen codigos'!$G$2:$G$50,0)) -> PPC25 | I37: =INDEX('Resumen codigos'!$C$2:$C$50, MATCH(G37,'Resumen codigos'!$G$2:$G$50,0)) -> POSTE | J37: =INDEX('Resumen codigos'!$D$2:$D$50, MATCH(G37,'Resumen codigos'!$G$2:$G$50,0)) -> SICODI | K37: =INDEX('Resumen codigos'!$E$2:$E$50, MATCH(G37,'Resumen codigos'!$G$2:$G$50,0)) -> CONCRETO | L37: =INDEX('Resumen codigos'!$F$2:$F$50, MATCH(G37,'Resumen codigos'!$G$2:$G$50,0)) -> MT | M37: =INDEX('SICODI-DIC17'!$H$3:$H$2404, MATCH(H37,'SICODI-DIC17'!$G$3:$G$2404,0)) -> POSTE DE CONCRETO ARMADO DE 15/500/180/405 | N37: =INDEX('SICODI-DIC17'!$K$3:$K$2404, MATCH(H37,'SICODI-DIC17'!$G$3:$G$2404,0)) -> 966.605148 | O37: 0.843 | P37: 1781.453288 | Q37: 0 | R37: 0.134 | S37: 19.89289505 | T37: 0.183 | U37: 3.640399794 | V37: 1.224980931 | W37: =COUNTIF('Infra Electrodunas'!$I$11:$I$3161, 'Renta Mensual'!G37) -> 22
A38: 30 | G38: ='Resumen codigos'!G44 -> PPC28MT | H38: =INDEX('Resumen codigos'!$B$2:$B$50, MATCH(G38,'Resumen codigos'!$G$2:$G$50,0)) -> PPC28 | I38: =INDEX('Resumen codigos'!$C$2:$C$50, MATCH(G38,'Resumen codigos'!$G$2:$G$50,0)) -> POSTE | J38: =INDEX('Resumen codigos'!$D$2:$D$50, MATCH(G38,'Resumen codigos'!$G$2:$G$50,0)) -> SICODI | K38: =INDEX('Resumen codigos'!$E$2:$E$50, MATCH(G38,'Resumen codigos'!$G$2:$G$50,0)) -> CONCRETO | L38: =INDEX('Resumen codigos'!$F$2:$F$50, MATCH(G38,'Resumen codigos'!$G$2:$G$50,0)) -> MT | M38: =INDEX('SICODI-DIC17'!$H$3:$H$2404, MATCH(H38,'SICODI-DIC17'!$G$3:$G$2404,0)) -> POSTE DE CONCRETO ARMADO DE 17/400/165/420 | N38: =INDEX('SICODI-DIC17'!$K$3:$K$2404, MATCH(H38,'SICODI-DIC17'!$G$3:$G$2404,0)) -> 711.770432 | O38: 0.843 | P38: 1311.792906 | Q38: 0 | R38: 0.134 | S38: 14.64835412 | T38: 0.183 | U38: 2.680648804 | V38: 0.9020283084 | W38: =COUNTIF('Infra Electrodunas'!$I$11:$I$3161, 'Renta Mensual'!G38) -> 1
A39: 31 | G39: ='Resumen codigos'!G46 -> PPF04MT | H39: =INDEX('Resumen codigos'!$B$2:$B$50, MATCH(G39,'Resumen codigos'!$G$2:$G$50,0)) -> PPF04 | I39: =INDEX('Resumen codigos'!$C$2:$C$50, MATCH(G39,'Resumen codigos'!$G$2:$G$50,0)) -> POSTE | J39: =INDEX('Resumen codigos'!$D$2:$D$50, MATCH(G39,'Resumen codigos'!$G$2:$G$50,0)) -> SICODI | K39: =INDEX('Resumen codigos'!$E$2:$E$50, MATCH(G39,'Resumen codigos'!$G$2:$G$50,0)) -> FIERRO | L39: =INDEX('Resumen codigos'!$F$2:$F$50, MATCH(G39,'Resumen codigos'!$G$2:$G$50,0)) -> MT | M39: =INDEX('SICODI-DIC17'!$H$3:$H$2404, MATCH(H39,'SICODI-DIC17'!$G$3:$G$2404,0)) -> POSTE DE METAL DE 13 mts. | N39: =INDEX('SICODI-DIC17'!$K$3:$K$2404, MATCH(H39,'SICODI-DIC17'!$G$3:$G$2404,0)) -> 814.5549 | O39: 0.843 | P39: 1501.224681 | Q39: 0 | R39: 0.134 | S39: 16.7636756 | T39: 0.183 | U39: 3.067752635 | V39: 1.032287302 | W39: =COUNTIF('Infra Electrodunas'!$I$11:$I$3161, 'Renta Mensual'!G39) -> 28
A40: 32 | G40: ='Resumen codigos'!G47 -> PPF08MT | H40: =INDEX('Resumen codigos'!$B$2:$B$50, MATCH(G40,'Resumen codigos'!$G$2:$G$50,0)) -> PPF08 | I40: =INDEX('Resumen codigos'!$C$2:$C$50, MATCH(G40,'Resumen codigos'!$G$2:$G$50,0)) -> POSTE | J40: =INDEX('Resumen codigos'!$D$2:$D$50, MATCH(G40,'Resumen codigos'!$G$2:$G$50,0)) -> SICODI | K40: =INDEX('Resumen codigos'!$E$2:$E$50, MATCH(G40,'Resumen codigos'!$G$2:$G$50,0)) -> FIERRO | L40: =INDEX('Resumen codigos'!$F$2:$F$50, MATCH(G40,'Resumen codigos'!$G$2:$G$50,0)) -> MT | M40: =INDEX('SICODI-DIC17'!$H$3:$H$2404, MATCH(H40,'SICODI-DIC17'!$G$3:$G$2404,0)) -> POSTE DE METAL DE 12 mts. | N40: =INDEX('SICODI-DIC17'!$K$3:$K$2404, MATCH(H40,'SICODI-DIC17'!$G$3:$G$2404,0)) -> 758.810172 | O40: 0.843 | P40: 1398.487147 | Q40: 0 | R40: 0.134 | S40: 15.61643981 | T40: 0.183 | U40: 2.857808485 | V40: 0.9616418793 | W40: =COUNTIF('Infra Electrodunas'!$I$11:$I$3161, 'Renta Mensual'!G40) -> 18
A41: 33 | G41: ='Resumen codigos'!G49 -> PPM20MT | H41: =INDEX('Resumen codigos'!$B$2:$B$50, MATCH(G41,'Resumen codigos'!$G$2:$G$50,0)) -> PPM20 | I41: =INDEX('Resumen codigos'!$C$2:$C$50, MATCH(G41,'Resumen codigos'!$G$2:$G$50,0)) -> POSTE | J41: =INDEX('Resumen codigos'!$D$2:$D$50, MATCH(G41,'Resumen codigos'!$G$2:$G$50,0)) -> SICODI | K41: =INDEX('Resumen codigos'!$E$2:$E$50, MATCH(G41,'Resumen codigos'!$G$2:$G$50,0)) -> MADERA | L41: =INDEX('Resumen codigos'!$F$2:$F$50, MATCH(G41,'Resumen codigos'!$G$2:$G$50,0)) -> MT | M41: =INDEX('SICODI-DIC17'!$H$3:$H$2404, MATCH(H41,'SICODI-DIC17'!$G$3:$G$2404,0)) -> POSTE DE MADERA TRATADA DE 12 mts. CL.5 | N41: =INDEX('SICODI-DIC17'!$K$3:$K$2404, MATCH(H41,'SICODI-DIC17'!$G$3:$G$2404,0)) -> 325.17758 | O41: 0.843 | P41: 599.3022799 | Q41: 0 | R41: 0.134 | S41: 6.692208793 | T41: 0.183 | U41: 1.224674209 | V41: 0.4120982963 | W41: =COUNTIF('Infra Electrodunas'!$I$11:$I$3161, 'Renta Mensual'!G41) -> 504
A42: 34 | G42: ='Resumen codigos'!G50 -> PPM24MT | H42: =INDEX('Resumen codigos'!$B$2:$B$50, MATCH(G42,'Resumen codigos'!$G$2:$G$50,0)) -> PPM24 | I42: =INDEX('Resumen codigos'!$C$2:$C$50, MATCH(G42,'Resumen codigos'!$G$2:$G$50,0)) -> POSTE | J42: =INDEX('Resumen codigos'!$D$2:$D$50, MATCH(G42,'Resumen codigos'!$G$2:$G$50,0)) -> SICODI | K42: =INDEX('Resumen codigos'!$E$2:$E$50, MATCH(G42,'Resumen codigos'!$G$2:$G$50,0)) -> MADERA | L42: =INDEX('Resumen codigos'!$F$2:$F$50, MATCH(G42,'Resumen codigos'!$G$2:$G$50,0)) -> MT | M42: =INDEX('SICODI-DIC17'!$H$3:$H$2404, MATCH(H42,'SICODI-DIC17'!$G$3:$G$2404,0)) -> POSTE DE MADERA TRATADA DE 13 mts. CL.5 | N42: =INDEX('SICODI-DIC17'!$K$3:$K$2404, MATCH(H42,'SICODI-DIC17'!$G$3:$G$2404,0)) -> 397.99252 | O42: 0.843 | P42: 733.5002144 | Q42: 0 | R42: 0.134 | S42: 8.190752394 | T42: 0.183 | U42: 1.498907688 | V42: 0.5043768376 | W42: =COUNTIF('Infra Electrodunas'!$I$11:$I$3161, 'Renta Mensual'!G42) -> 3
W43: =SUM(W9:W42) -> 3151 | X43: =#REF!-#REF! -> 
G44: (*) De existir alguna discrepancia en las referidas cantidades deberá resolverse observando la descripción de estructura y la verificación in situ.

Sheet Resumen codigos
A1: TORRE
B2: AT
B3: MOD INV_2018
B4: ACERO
A5: 1 | B5: TA060SIR0D1C1120FA+3 | C5: TORRE | D5: MOD INV_2018 | E5: ACERO | F5: AT | G5: =B5&F5 -> TA060SIR0D1C1120FA+3AT
A6: 2 | B6: TA060SIR0D1C1120FR+3 | C6: TORRE | D6: MOD INV_2018 | E6: ACERO | F6: AT | G6: =B6&F6 -> TA060SIR0D1C1120FR+3AT
A7: 3 | B7: TA060SIR0S1C1120FR+3 | C7: TORRE | D7: MOD INV_2018 | E7: ACERO | F7: AT | G7: TA060SIR0S1C1120FR+3AT
A8: 4 | B8: TA060SIR0S1C1120FS+6 | C8: TORRE | D8: MOD INV_2018 | E8: ACERO | F8: AT | G8: =B8&F8 -> TA060SIR0S1C1120FS+6AT
A9: POSTE
B10: CONCRETO
A11: 5 | B11: EC060COU0D0-120-S1 | C11: POSTE | D11: MOD INV_2018 | E11: CONCRETO | F11: AT | G11: EC060COU0D0-120-S1AT
A12: 6 | B12: EC060COU0S0-120-S1 | C12: POSTE | D12: MOD INV_2018 | E12: CONCRETO | F12: AT | G12: EC060COU0S0-120-S1AT
A13: 7 | B13: EC060SIU0S1-120-S1 | C13: POSTE | D13: MOD INV_2018 | E13: CONCRETO | F13: AT | G13: EC060SIU0S1-120-S1AT
B14: BT
B15: SICODI
B16: CONCRETO
A17: 8 | B17: PPC02 | C17: POSTE | D17: SICODI | E17: CONCRETO | F17: BT | G17: PPC02BT
A18: 9 | B18: PPC03 | C18: POSTE | D18: SICODI | E18: CONCRETO | F18: BT | G18: PPC03BT
A19: 10 | B19: PPC05 | C19: POSTE | D19: SICODI | E19: CONCRETO | F19: BT | G19: PPC05BT
A20: 11 | B20: PPC06 | C20: POSTE | D20: SICODI | E20: CONCRETO | F20: BT | G20: PPC06BT
A21: 12 | B21: PPC09 | C21: POSTE | D21: SICODI | E21: CONCRETO | F21: BT | G21: PPC09BT
A22: 13 | B22: PPC19 | C22: POSTE | D22: SICODI | E22: CONCRETO | F22: BT | G22: PPC19BT
A23: 14 | B23: PPC20 | C23: POSTE | D23: SICODI | E23: CONCRETO | F23: BT | G23: PPC20BT
B24: FIERRO
A25: 15 | B25: PPF02 | C25: POSTE | D25: SICODI | E25: FIERRO | F25: BT | G25: PPF02BT
B26: MADERA
A27: 16 | B27: PPM02 | C27: POSTE | D27: SICODI | E27: MADERA | F27: BT | G27: PPM02BT
A28: 17 | B28: PPM16 | C28: POSTE | D28: SICODI | E28: MADERA | F28: BT | G28: PPM16BT
B29: MT
B30: SICODI
B31: CONCRETO
A32: 18 | B32: PPC11 | C32: POSTE | D32: SICODI | E32: CONCRETO | F32: MT | G32: PPC11MT
A33: 19 | B33: PPC12 | C33: POSTE | D33: SICODI | E33: CONCRETO | F33: MT | G33: PPC12MT
A34: 20 | B34: PPC15 | C34: POSTE | D34: SICODI | E34: CONCRETO | F34: MT | G34: PPC15MT
A35: 21 | B35: PPC16 | C35: POSTE | D35: SICODI | E35: CONCRETO | F35: MT | G35: PPC16MT
A36: 22 | B36: PPC17 | C36: POSTE | D36: SICODI | E36: CONCRETO | F36: MT | G36: PPC17MT
A37: 23 | B37: PPC18 | C37: POSTE | D37: SICODI | E37: CONCRETO | F37: MT | G37: PPC18MT
A38: 24 | B38: PPC19 | C38: POSTE | D38: SICODI | E38: CONCRETO | F38: MT | G38: PPC19MT
A39: 25 | B39: PPC20 | C39: POSTE | D39: SICODI | E39: CONCRETO | F39: MT | G39: PPC20MT
A40: 26 | B40: PPC21 | C40: POSTE | D40: SICODI | E40: CONCRETO | F40: MT | G40: PPC21MT
A41: 27 | B41: PPC23 | C41: POSTE | D41: SICODI | E41: CONCRETO | F41: MT | G41: PPC23MT
A42: 28 | B42: PPC24 | C42: POSTE | D42: SICODI | E42: CONCRETO | F42: MT | G42: PPC24MT
A43: 29 | B43: PPC25 | C43: POSTE | D43: SICODI | E43: CONCRETO | F43: MT | G43: PPC25MT
A44: 30 | B44: PPC28 | C44: POSTE | D44: SICODI | E44: CONCRETO | F44: MT | G44: PPC28MT
B45: FIERRO
A46: 31 | B46: PPF04 | C46: POSTE | D46: SICODI | E46: FIERRO | F46: MT | G46: PPF04MT
A47: 32 | B47: PPF08 | C47: POSTE | D47: SICODI | E47: FIERRO | F47: MT | G47: PPF08MT
B48: MADERA
A49: 33 | B49: PPM20 | C49: POSTE | D49: SICODI | E49: MADERA | F49: MT | G49: PPM20MT
A50: 34 | B50: PPM24 | C50: POSTE | D50: SICODI | E50: MADERA | F50: MT | G50: PPM24MT

Sheet Cantidades
A1: Nº | B1: CODIGOS DE LA BASE DE DATOS DE OSINERGMIN | C1: POSTE | F1: Total POSTES | G1: TORRE | H1: TOTAL DE ESTRUCTURAS (*)
C2: AT | D2: BT | E2: MT | G2: AT
B3: ACERO
A4: 1 | B4: TA060SIR0D1C1120FA+3 | C4: =COUNTIFS(('Infra Electrodunas'!$J$11:$J$3161),(Cantidades!B4)&(Cantidades!$C$2)&($C$1)) -> 0 | D4: =COUNTIFS(('Infra Electrodunas'!$J$11:$J$3161),(Cantidades!B4)&(Cantidades!$D$2)&($C$1)) -> 0 | E4: =COUNTIFS(('Infra Electrodunas'!$J$11:$J$3161),(Cantidades!B4)&(Cantidades!$E$2)&($C$1)) -> 0 | F4: =SUM(C4:E4) -> 0 | G4: =COUNTIFS(('Infra Electrodunas'!$J$11:$J$3161),(Cantidades!B4)&(Cantidades!$G$2)&($G$1)) -> 1 | H4: =COUNTIF(('Infra Electrodunas'!$B$11:$B$3161), Cantidades!B4) -> 1
A5: 2 | B5: TA060SIR0D1C1120FR+3 | C5: =COUNTIFS(('Infra Electrodunas'!$J$11:$J$3161),(Cantidades!B5)&(Cantidades!$C$2)&($C$1)) -> 0 | D5: =COUNTIFS(('Infra Electrodunas'!$J$11:$J$3161),(Cantidades!B5)&(Cantidades!$D$2)&($C$1)) -> 0 | E5: =COUNTIFS(('Infra Electrodunas'!$J$11:$J$3161),(Cantidades!B5)&(Cantidades!$E$2)&($C$1)) -> 0 | F5: =SUM(C5:E5) -> 0 | G5: =COUNTIFS(('Infra Electrodunas'!$J$11:$J$3161),(Cantidades!B5)&(Cantidades!$G$2)&($G$1)) -> 2 | H5: =COUNTIF(('Infra Electrodunas'!$B$11:$B$3161), Cantidades!B5) -> 2
A6: 3 | B6: TA060SIR0S1C1120FR+3 | C6: =COUNTIFS(('Infra Electrodunas'!$J$11:$J$3161),(Cantidades!B6)&(Cantidades!$C$2)&($C$1)) -> 0 | D6: =COUNTIFS(('Infra Electrodunas'!$J$11:$J$3161),(Cantidades!B6)&(Cantidades!$D$2)&($C$1)) -> 0 | E6: =COUNTIFS(('Infra Electrodunas'!$J$11:$J$3161),(Cantidades!B6)&(Cantidades!$E$2)&($C$1)) -> 0 | F6: 0 | G6: =COUNTIFS(('Infra Electrodunas'!$J$11:$J$3161),(Cantidades!B6)&(Cantidades!$G$2)&($G$1)) -> 7 | H6: =COUNTIF(('Infra Electrodunas'!$B$11:$B$3161), Cantidades!B6) -> 7
A7: 4 | B7: TA060SIR0S1C1120FS+6 | C7: =COUNTIFS(('Infra Electrodunas'!$J$11:$J$3161),(Cantidades!B7)&(Cantidades!$C$2)&($C$1)) -> 0 | D7: =COUNTIFS(('Infra Electrodunas'!$J$11:$J$3161),(Cantidades!B7)&(Cantidades!$D$2)&($C$1)) -> 0 | E7: =COUNTIFS(('Infra Electrodunas'!$J$11:$J$3161),(Cantidades!B7)&(Cantidades!$E$2)&($C$1)) -> 0 | F7: 0 | G7: =COUNTIFS(('Infra Electrodunas'!$J$11:$J$3161),(Cantidades!B7)&(Cantidades!$G$2)&($G$1)) -> 293 | H7: =COUNTIF(('Infra Electrodunas'!$B$11:$B$3161), Cantidades!B7) -> 293
B8: CONCRETO
A9: 5 | B9: EC060COU0D0-120-S1 | C9: =COUNTIFS(('Infra Electrodunas'!$J$11:$J$3161),(Cantidades!B9)&(Cantidades!$C$2)&($C$1)) -> 116 | D9: =COUNTIFS(('Infra Electrodunas'!$J$11:$J$3161),(Cantidades!B9)&(Cantidades!$D$2)&($C$1)) -> 0 | E9: =COUNTIFS(('Infra Electrodunas'!$J$11:$J$3161),(Cantidades!B9)&(Cantidades!$E$2)&($C$1)) -> 0 | F9: 116 | G9: =COUNTIFS(('Infra Electrodunas'!$J$11:$J$3161),(Cantidades!B9)&(Cantidades!$G$2)&($G$1)) -> 0 | H9: =COUNTIF(('Infra Electrodunas'!$B$11:$B$3161), Cantidades!B9) -> 116
A10: 6 | B10: EC060COU0S0-120-S1 | C10: =COUNTIFS(('Infra Electrodunas'!$J$11:$J$3161),(Cantidades!B10)&(Cantidades!$C$2)&($C$1)) -> 307 | D10: =COUNTIFS(('Infra Electrodunas'!$J$11:$J$3161),(Cantidades!B10)&(Cantidades!$D$2)&($C$1)) -> 0 | E10: =COUNTIFS(('Infra Electrodunas'!$J$11:$J$3161),(Cantidades!B10)&(Cantidades!$E$2)&($C$1)) -> 0 | F10: 307 | G10: =COUNTIFS(('Infra Electrodunas'!$J$11:$J$3161),(Cantidades!B10)&(Cantidades!$G$2)&($G$1)) -> 0 | H10: =COUNTIF(('Infra Electrodunas'!$B$11:$B$3161), Cantidades!B10) -> 307
A11: 7 | B11: EC060SIU0S1-120-S1 | C11: =COUNTIFS(('Infra Electrodunas'!$J$11:$J$3161),(Cantidades!B11)&(Cantidades!$C$2)&($C$1)) -> 2 | D11: =COUNTIFS(('Infra Electrodunas'!$J$11:$J$3161),(Cantidades!B11)&(Cantidades!$D$2)&($C$1)) -> 0 | E11: =COUNTIFS(('Infra Electrodunas'!$J$11:$J$3161),(Cantidades!B11)&(Cantidades!$E$2)&($C$1)) -> 0 | F11: =SUM(C11:E11) -> 2 | G11: =COUNTIFS(('Infra Electrodunas'!$J$11:$J$3161),(Cantidades!B11)&(Cantidades!$G$2)&($G$1)) -> 0 | H11: =COUNTIF(('Infra Electrodunas'!$B$11:$B$3161), Cantidades!B11) -> 2
A12: 8 | B12: PPC02 | C12: =COUNTIFS(('Infra Electrodunas'!$J$11:$J$3161),(Cantidades!B12)&(Cantidades!$C$2)&($C$1)) -> 0 | D12: =COUNTIFS(('Infra Electrodunas'!$J$11:$J$3161),(Cantidades!B12)&(Cantidades!$D$2)&($C$1)) -> 4 | E12: =COUNTIFS(('Infra Electrodunas'!$J$11:$J$3161),(Cantidades!B12)&(Cantidades!$E$2)&($C$1)) -> 0 | F12: 4 | G12: =COUNTIFS(('Infra Electrodunas'!$J$11:$J$3161),(Cantidades!B12)&(Cantidades!$G$2)&($G$1)) -> 0 | H12: =COUNTIF(('Infra Electrodunas'!$B$11:$B$3161), Cantidades!B12) -> 4
A13: 9 | B13: PPC03 | C13: =COUNTIFS(('Infra Electrodunas'!$J$11:$J$3161),(Cantidades!B13)&(Cantidades!$C$2)&($C$1)) -> 0 | D13: =COUNTIFS(('Infra Electrodunas'!$J$11:$J$3161),(Cantidades!B13)&(Cantidades!$D$2)&($C$1)) -> 5 | E13: =COUNTIFS(('Infra Electrodunas'!$J$11:$J$3161),(Cantidades!B13)&(Cantidades!$E$2)&($C$1)) -> 0 | F13: 5 | G13: =COUNTIFS(('Infra Electrodunas'!$J$11:$J$3161),(Cantidades!B13)&(Cantidades!$G$2)&($G$1)) -> 0 | H13: =COUNTIF(('Infra Electrodunas'!$B$11:$B$3161), Cantidades!B13) -> 5
A14: 10 | B14: PPC05 | C14: =COUNTIFS(('Infra Electrodunas'!$J$11:$J$3161),(Cantidades!B14)&(Cantidades!$C$2)&($C$1)) -> 0 | D14: =COUNTIFS(('Infra Electrodunas'!$J$11:$J$3161),(Cantidades!B14)&(Cantidades!$D$2)&($C$1)) -> 230 | E14: =COUNTIFS(('Infra Electrodunas'!$J$11:$J$3161),(Cantidades!B14)&(Cantidades!$E$2)&($C$1)) -> 0 | F14: 230 | G14: =COUNTIFS(('Infra Electrodunas'!$J$11:$J$3161),(Cantidades!B14)&(Cantidades!$G$2)&($G$1)) -> 0 | H14: =COUNTIF(('Infra Electrodunas'!$B$11:$B$3161), Cantidades!B14) -> 230
A15: 11 | B15: PPC06 | C15: =COUNTIFS(('Infra Electrodunas'!$J$11:$J$3161),(Cantidades!B15)&(Cantidades!$C$2)&($C$1)) -> 0 | D15: =COUNTIFS(('Infra Electrodunas'!$J$11:$J$3161),(Cantidades!B15)&(Cantidades!$D$2)&($C$1)) -> 88 | E15: =COUNTIFS(('Infra Electrodunas'!$J$11:$J$3161),(Cantidades!B15)&(Cantidades!$E$2)&($C$1)) -> 0 | F15: 88 | G15: =COUNTIFS(('Infra Electrodunas'!$J$11:$J$3161),(Cantidades!B15)&(Cantidades!$G$2)&($G$1)) -> 0 | H15: =COUNTIF(('Infra Electrodunas'!$B$11:$B$3161), Cantidades!B15) -> 88
A16: 12 | B16: PPC09 | C16: =COUNTIFS(('Infra Electrodunas'!$J$11:$J$3161),(Cantidades!B16)&(Cantidades!$C$2)&($C$1)) -> 0 | D16: =COUNTIFS(('Infra Electrodunas'!$J$11:$J$3161),(Cantidades!B16)&(Cantidades!$D$2)&($C$1)) -> 10 | E16: =COUNTIFS(('Infra Electrodunas'!$J$11:$J$3161),(Cantidades!B16)&(Cantidades!$E$2)&($C$1)) -> 0 | F16: 10 | G16: =COUNTIFS(('Infra Electrodunas'!$J$11:$J$3161),(Cantidades!B16)&(Cantidades!$G$2)&($G$1)) -> 0 | H16: =COUNTIF(('Infra Electrodunas'!$B$11:$B$3161), Cantidades!B16) -> 10
A17: 13 | B17: PPC11 | C17: =COUNTIFS(('Infra Electrodunas'!$J$11:$J$3161),(Cantidades!B17)&(Cantidades!$C$2)&($C$1)) -> 0 | D17: =COUNTIFS(('Infra Electrodunas'!$J$11:$J$3161),(Cantidades!B17)&(Cantidades!$D$2)&($C$1)) -> 0 | E17: =COUNTIFS(('Infra Electrodunas'!$J$11:$J$3161),(Cantidades!B17)&(Cantidades!$E$2)&($C$1)) -> 9 | F17: 9 | G17: =COUNTIFS(('Infra Electrodunas'!$J$11:$J$3161),(Cantidades!B17)&(Cantidades!$G$2)&($G$1)) -> 0 | H17: =COUNTIF(('Infra Electrodunas'!$B$11:$B$3161), Cantidades!B17) -> 9
A18: 14 | B18: PPC12 | C18: =COUNTIFS(('Infra Electrodunas'!$J$11:$J$3161),(Cantidades!B18)&(Cantidades!$C$2)&($C$1)) -> 0 | D18: =COUNTIFS(('Infra Electrodunas'!$J$11:$J$3161),(Cantidades!B18)&(Cantidades!$D$2)&($C$1)) -> 0 | E18: =COUNTIFS(('Infra Electrodunas'!$J$11:$J$3161),(Cantidades!B18)&(Cantidades!$E$2)&($C$1)) -> 55 | F18: =SUM(C18:E18) -> 55 | G18: =COUNTIFS(('Infra Electrodunas'!$J$11:$J$3161),(Cantidades!B18)&(Cantidades!$G$2)&($G$1)) -> 0 | H18: =COUNTIF(('Infra Electrodunas'!$B$11:$B$3161), Cantidades!B18) -> 55
A19: 15 | B19: PPC15 | C19: =COUNTIFS(('Infra Electrodunas'!$J$11:$J$3161),(Cantidades!B19)&(Cantidades!$C$2)&($C$1)) -> 0 | D19: =COUNTIFS(('Infra Electrodunas'!$J$11:$J$3161),(Cantidades!B19)&(Cantidades!$D$2)&($C$1)) -> 0 | E19: =COUNTIFS(('Infra Electrodunas'!$J$11:$J$3161),(Cantidades!B19)&(Cantidades!$E$2)&($C$1)) -> 70 | F19: 70 | G19: =COUNTIFS(('Infra Electrodunas'!$J$11:$J$3161),(Cantidades!B19)&(Cantidades!$G$2)&($G$1)) -> 0 | H19: =COUNTIF(('Infra Electrodunas'!$B$11:$B$3161), Cantidades!B19) -> 70
A20: 16 | B20: PPC16 | C20: =COUNTIFS(('Infra Electrodunas'!$J$11:$J$3161),(Cantidades!B20)&(Cantidades!$C$2)&($C$1)) -> 0 | D20: =COUNTIFS(('Infra Electrodunas'!$J$11:$J$3161),(Cantidades!B20)&(Cantidades!$D$2)&($C$1)) -> 0 | E20: =COUNTIFS(('Infra Electrodunas'!$J$11:$J$3161),(Cantidades!B20)&(Cantidades!$E$2)&($C$1)) -> 183 | F20: 183 | G20: =COUNTIFS(('Infra Electrodunas'!$J$11:$J$3161),(Cantidades!B20)&(Cantidades!$G$2)&($G$1)) -> 0 | H20: =COUNTIF(('Infra Electrodunas'!$B$11:$B$3161), Cantidades!B20) -> 183
A21: 17 | B21: PPC17 | C21: =COUNTIFS(('Infra Electrodunas'!$J$11:$J$3161),(Cantidades!B21)&(Cantidades!$C$2)&($C$1)) -> 0 | D21: =COUNTIFS(('Infra Electrodunas'!$J$11:$J$3161),(Cantidades!B21)&(Cantidades!$D$2)&($C$1)) -> 0 | E21: =COUNTIFS(('Infra Electrodunas'!$J$11:$J$3161),(Cantidades!B21)&(Cantidades!$E$2)&($C$1)) -> 19 | F21: 19 | G21: =COUNTIFS(('Infra Electrodunas'!$J$11:$J$3161),(Cantidades!B21)&(Cantidades!$G$2)&($G$1)) -> 0 | H21: =COUNTIF(('Infra Electrodunas'!$B$11:$B$3161), Cantidades!B21) -> 19
A22: 18 | B22: PPC18 | C22: =COUNTIFS(('Infra Electrodunas'!$J$11:$J$3161),(Cantidades!B22)&(Cantidades!$C$2)&($C$1)) -> 0 | D22: =COUNTIFS(('Infra Electrodunas'!$J$11:$J$3161),(Cantidades!B22)&(Cantidades!$D$2)&($C$1)) -> 0 | E22: =COUNTIFS(('Infra Electrodunas'!$J$11:$J$3161),(Cantidades!B22)&(Cantidades!$E$2)&($C$1)) -> 1 | F22: 1 | G22: =COUNTIFS(('Infra Electrodunas'!$J$11:$J$3161),(Cantidades!B22)&(Cantidades!$G$2)&($G$1)) -> 0 | H22: =COUNTIF(('Infra Electrodunas'!$B$11:$B$3161), Cantidades!B22) -> 1
A23: 19 | B23: PPC19 | C23: =COUNTIFS(('Infra Electrodunas'!$J$11:$J$3161),(Cantidades!B23)&(Cantidades!$C$2)&($C$1)) -> 0 | D23: =COUNTIFS(('Infra Electrodunas'!$J$11:$J$3161),(Cantidades!B23)&(Cantidades!$D$2)&($C$1)) -> 1 | E23: =COUNTIFS(('Infra Electrodunas'!$J$11:$J$3161),(Cantidades!B23)&(Cantidades!$E$2)&($C$1)) -> 650 | F23: 651 | G23: =COUNTIFS(('Infra Electrodunas'!$J$11:$J$3161),(Cantidades!B23)&(Cantidades!$G$2)&($G$1)) -> 0 | H23: =COUNTIF(('Infra Electrodunas'!$B$11:$B$3161), Cantidades!B23) -> 651
A24: 20 | B24: PPC20 | C24: =COUNTIFS(('Infra Electrodunas'!$J$11:$J$3161),(Cantidades!B24)&(Cantidades!$C$2)&($C$1)) -> 0 | D24: =COUNTIFS(('Infra Electrodunas'!$J$11:$J$3161),(Cantidades!B24)&(Cantidades!$D$2)&($C$1)) -> 2 | E24: =COUNTIFS(('Infra Electrodunas'!$J$11:$J$3161),(Cantidades!B24)&(Cantidades!$E$2)&($C$1)) -> 388 | F24: 390 | G24: =COUNTIFS(('Infra Electrodunas'!$J$11:$J$3161),(Cantidades!B24)&(Cantidades!$G$2)&($G$1)) -> 0 | H24: =COUNTIF(('Infra Electrodunas'!$B$11:$B$3161), Cantidades!B24) -> 390
A25: 21 | B25: PPC21 | C25: =COUNTIFS(('Infra Electrodunas'!$J$11:$J$3161),(Cantidades!B25)&(Cantidades!$C$2)&($C$1)) -> 0 | D25: =COUNTIFS(('Infra Electrodunas'!$J$11:$J$3161),(Cantidades!B25)&(Cantidades!$D$2)&($C$1)) -> 0 | E25: =COUNTIFS(('Infra Electrodunas'!$J$11:$J$3161),(Cantidades!B25)&(Cantidades!$E$2)&($C$1)) -> 20 | F25: 20 | G25: =COUNTIFS(('Infra Electrodunas'!$J$11:$J$3161),(Cantidades!B25)&(Cantidades!$G$2)&($G$1)) -> 0 | H25: =COUNTIF(('Infra Electrodunas'!$B$11:$B$3161), Cantidades!B25) -> 20
A26: 22 | B26: PPC23 | C26: =COUNTIFS(('Infra Electrodunas'!$J$11:$J$3161),(Cantidades!B26)&(Cantidades!$C$2)&($C$1)) -> 0 | D26: =COUNTIFS(('Infra Electrodunas'!$J$11:$J$3161),(Cantidades!B26)&(Cantidades!$D$2)&($C$1)) -> 0 | E26: =COUNTIFS(('Infra Electrodunas'!$J$11:$J$3161),(Cantidades!B26)&(Cantidades!$E$2)&($C$1)) -> 8 | F26: 8 | G26: =COUNTIFS(('Infra Electrodunas'!$J$11:$J$3161),(Cantidades!B26)&(Cantidades!$G$2)&($G$1)) -> 0 | H26: =COUNTIF(('Infra Electrodunas'!$B$11:$B$3161), Cantidades!B26) -> 8
A27: 23 | B27: PPC24 | C27: =COUNTIFS(('Infra Electrodunas'!$J$11:$J$3161),(Cantidades!B27)&(Cantidades!$C$2)&($C$1)) -> 0 | D27: =COUNTIFS(('Infra Electrodunas'!$J$11:$J$3161),(Cantidades!B27)&(Cantidades!$D$2)&($C$1)) -> 0 | E27: =COUNTIFS(('Infra Electrodunas'!$J$11:$J$3161),(Cantidades!B27)&(Cantidades!$E$2)&($C$1)) -> 17 | F27: 17 | G27: =COUNTIFS(('Infra Electrodunas'!$J$11:$J$3161),(Cantidades!B27)&(Cantidades!$G$2)&($G$1)) -> 0 | H27: =COUNTIF(('Infra Electrodunas'!$B$11:$B$3161), Cantidades!B27) -> 17
A28: 24 | B28: PPC25 | C28: =COUNTIFS(('Infra Electrodunas'!$J$11:$J$3161),(Cantidades!B28)&(Cantidades!$C$2)&($C$1)) -> 0 | D28: =COUNTIFS(('Infra Electrodunas'!$J$11:$J$3161),(Cantidades!B28)&(Cantidades!$D$2)&($C$1)) -> 0 | E28: =COUNTIFS(('Infra Electrodunas'!$J$11:$J$3161),(Cantidades!B28)&(Cantidades!$E$2)&($C$1)) -> 22 | F28: 22 | G28: =COUNTIFS(('Infra Electrodunas'!$J$11:$J$3161),(Cantidades!B28)&(Cantidades!$G$2)&($G$1)) -> 0 | H28: =COUNTIF(('Infra Electrodunas'!$B$11:$B$3161), Cantidades!B28) -> 22
A29: 25 | B29: PPC28 | C29: =COUNTIFS(('Infra Electrodunas'!$J$11:$J$3161),(Cantidades!B29)&(Cantidades!$C$2)&($C$1)) -> 0 | D29: =COUNTIFS(('Infra Electrodunas'!$J$11:$J$3161),(Cantidades!B29)&(Cantidades!$D$2)&($C$1)) -> 0 | E29: =COUNTIFS(('Infra Electrodunas'!$J$11:$J$3161),(Cantidades!B29)&(Cantidades!$E$2)&($C$1)) -> 1 | F29: 1 | G29: =COUNTIFS(('Infra Electrodunas'!$J$11:$J$3161),(Cantidades!B29)&(Cantidades!$G$2)&($G$1)) -> 0 | H29: =COUNTIF(('Infra Electrodunas'!$B$11:$B$3161), Cantidades!B29) -> 1
B30: FIERRO
A31: 26 | B31: PPF02 | C31: =COUNTIFS(('Infra Electrodunas'!$J$11:$J$3161),(Cantidades!B31)&(Cantidades!$C$2)&($C$1)) -> 0 | D31: =COUNTIFS(('Infra Electrodunas'!$J$11:$J$3161),(Cantidades!B31)&(Cantidades!$D$2)&($C$1)) -> 24 | E31: =COUNTIFS(('Infra Electrodunas'!$J$11:$J$3161),(Cantidades!B31)&(Cantidades!$E$2)&($C$1)) -> 0 | F31: 24 | G31: =COUNTIFS(('Infra Electrodunas'!$J$11:$J$3161),(Cantidades!B31)&(Cantidades!$G$2)&($G$1)) -> 0 | H31: =COUNTIF(('Infra Electrodunas'!$B$11:$B$3161), Cantidades!B31) -> 24
A32: 27 | B32: PPF04 | C32: =COUNTIFS(('Infra Electrodunas'!$J$11:$J$3161),(Cantidades!B32)&(Cantidades!$C$2)&($C$1)) -> 0 | D32: =COUNTIFS(('Infra Electrodunas'!$J$11:$J$3161),(Cantidades!B32)&(Cantidades!$D$2)&($C$1)) -> 0 | E32: =COUNTIFS(('Infra Electrodunas'!$J$11:$J$3161),(Cantidades!B32)&(Cantidades!$E$2)&($C$1)) -> 28 | F32: 28 | G32: =COUNTIFS(('Infra Electrodunas'!$J$11:$J$3161),(Cantidades!B32)&(Cantidades!$G$2)&($G$1)) -> 0 | H32: =COUNTIF(('Infra Electrodunas'!$B$11:$B$3161), Cantidades!B32) -> 28
A33: 28 | B33: PPF08 | C33: =COUNTIFS(('Infra Electrodunas'!$J$11:$J$3161),(Cantidades!B33)&(Cantidades!$C$2)&($C$1)) -> 0 | D33: =COUNTIFS(('Infra Electrodunas'!$J$11:$J$3161),(Cantidades!B33)&(Cantidades!$D$2)&($C$1)) -> 0 | E33: =COUNTIFS(('Infra Electrodunas'!$J$11:$J$3161),(Cantidades!B33)&(Cantidades!$E$2)&($C$1)) -> 18 | F33: 18 | G33: =COUNTIFS(('Infra Electrodunas'!$J$11:$J$3161),(Cantidades!B33)&(Cantidades!$G$2)&($G$1)) -> 0 | H33: =COUNTIF(('Infra Electrodunas'!$B$11:$B$3161), Cantidades!B33) -> 18
B34: MADERA
A35: 29 | B35: PPM02 | C35: =COUNTIFS(('Infra Electrodunas'!$J$11:$J$3161),(Cantidades!B35)&(Cantidades!$C$2)&($C$1)) -> 0 | D35: =COUNTIFS(('Infra Electrodunas'!$J$11:$J$3161),(Cantidades!B35)&(Cantidades!$D$2)&($C$1)) -> 62 | E35: =COUNTIFS(('Infra Electrodunas'!$J$11:$J$3161),(Cantidades!B35)&(Cantidades!$E$2)&($C$1)) -> 0 | F35: 62 | G35: =COUNTIFS(('Infra Electrodunas'!$J$11:$J$3161),(Cantidades!B35)&(Cantidades!$G$2)&($G$1)) -> 0 | H35: =COUNTIF(('Infra Electrodunas'!$B$11:$B$3161), Cantidades!B35) -> 62
A36: 30 | B36: PPM16 | C36: =COUNTIFS(('Infra Electrodunas'!$J$11:$J$3161),(Cantidades!B36)&(Cantidades!$C$2)&($C$1)) -> 0 | D36: =COUNTIFS(('Infra Electrodunas'!$J$11:$J$3161),(Cantidades!B36)&(Cantidades!$D$2)&($C$1)) -> 1 | E36: =COUNTIFS(('Infra Electrodunas'!$J$11:$J$3161),(Cantidades!B36)&(Cantidades!$E$2)&($C$1)) -> 0 | F36: 1 | G36: =COUNTIFS(('Infra Electrodunas'!$J$11:$J$3161),(Cantidades!B36)&(Cantidades!$G$2)&($G$1)) -> 0 | H36: =COUNTIF(('Infra Electrodunas'!$B$11:$B$3161), Cantidades!B36) -> 1
A37: 31 | B37: PPM20 | C37: =COUNTIFS(('Infra Electrodunas'!$J$11:$J$3161),(Cantidades!B37)&(Cantidades!$C$2)&($C$1)) -> 0 | D37: =COUNTIFS(('Infra Electrodunas'!$J$11:$J$3161),(Cantidades!B37)&(Cantidades!$D$2)&($C$1)) -> 0 | E37: =COUNTIFS(('Infra Electrodunas'!$J$11:$J$3161),(Cantidades!B37)&(Cantidades!$E$2)&($C$1)) -> 504 | F37: 504 | G37: =COUNTIFS(('Infra Electrodunas'!$J$11:$J$3161),(Cantidades!B37)&(Cantidades!$G$2)&($G$1)) -> 0 | H37: =COUNTIF(('Infra Electrodunas'!$B$11:$B$3161), Cantidades!B37) -> 504
A38: 32 | B38: PPM24 | C38: =COUNTIFS(('Infra Electrodunas'!$J$11:$J$3161),(Cantidades!B38)&(Cantidades!$C$2)&($C$1)) -> 0 | D38: =COUNTIFS(('Infra Electrodunas'!$J$11:$J$3161),(Cantidades!B38)&(Cantidades!$D$2)&($C$1)) -> 0 | E38: =COUNTIFS(('Infra Electrodunas'!$J$11:$J$3161),(Cantidades!B38)&(Cantidades!$E$2)&($C$1)) -> 3 | F38: 3 | G38: =COUNTIFS(('Infra Electrodunas'!$J$11:$J$3161),(Cantidades!B38)&(Cantidades!$G$2)&($G$1)) -> 0 | H38: =COUNTIF(('Infra Electrodunas'!$B$11:$B$3161), Cantidades!B38) -> 3
B39: TOTAL | C39: =SUM(C4:C38) -> 425 | D39: =SUM(D4:D38) -> 427 | E39: 1996 | F39: =SUM(F4:F38) -> 2848 | G39: =SUM(G4:G38) -> 303 | H39: =SUM(H4:H38) -> 3151
A41: (*) De existir alguna discrepancia en las referidas cantidades deberá resolverse observando la descripción de estructura y la verificación in situ.

Sheet MODINV2018-MAR
B1: RESUMEN DE PRECIOS DE LOS SUMINISTROS DE LINEAS DE TRANSMISIÓN
B2: MARZO 2018
B4: Indice de Suministros
B5: Torres de Acero | D5: Cadena de Aisladores | E5: Accesorios del Cable de Guarda
B6: Armado de Estructuras de Acero y Concreto | D6: Conductor Activo | E6: Puesta a Tierra
B7: Armado de Estructuras de Madera | D7: Accesorio Cable Subterráneo
B8: Parrillas y Stubs | D8: Accesorios del Coductor Activo
B9: Retenidas | D9: Cable de Guarda
B11: TORRES DE ACERO
C13: Precio Acero Torres US$/Kg | E13: TIPO: | F13: Nacional | G13: 1
B14: ACEROTORRE | C14: =+VLOOKUP(B14,'[7]I-404 (Acero Torres)'!$E$1:$H$65536,4,0) -> 1.610593091 | F14: Importado | G14: 0
B16: ITEM | C16: CODIGO | D16: DESCRIPCION | E16: UNIDAD | F16: TIPO DE SUMINISTRO | G16: PRECIO CIF UNITARIO (US$) | J16: PESO EN KG
B17: 1 | C17: TA220COR0D0C1600S-6 | D17: =+"Torre de suspensión tipo S"&IF(MID(C17,3,3)="220","C",IF(MID(C17,3,3)="138","S",""))&IF(MID(C17,10,1)="D",2,1)&" (5°)Tipo S"&IF(MID(C17,3,3)="220","C",IF(MID(C17,3,3)="138","S",""))&IF(MID(C17,10,1)="D",2,1)&RIGHT(C17,2) -> Torre de suspensión tipo SC2 (5°)Tipo SC2-6 | E17: Und | F17: 0 | G17: =VLOOKUP(C17,'[8]Resumen Peso'!$B$1:$D$65536,3,0)*$C$14 -> 6919.368557 | J17: =+VLOOKUP(C17,'[8]Resumen Peso'!$B$1:$D$65536,3,0) -> 4296.161828
B18: =1+B17 -> 2 | C18: TA220COR0D0C1600S-3 | D18: =+"Torre de suspensión tipo S"&IF(MID(C18,3,3)="220","C",IF(MID(C18,3,3)="138","S",""))&IF(MID(C18,10,1)="D",2,1)&" (5°)Tipo S"&IF(MID(C18,3,3)="220","C",IF(MID(C18,3,3)="138","S",""))&IF(MID(C18,10,1)="D",2,1)&RIGHT(C18,2) -> Torre de suspensión tipo SC2 (5°)Tipo SC2-3 | E18: Und | F18: 0 | G18: =VLOOKUP(C18,'[8]Resumen Peso'!$B$1:$D$65536,3,0)*$C$14 -> 7916.755016 | J18: =+VLOOKUP(C18,'[8]Resumen Peso'!$B$1:$D$65536,3,0) -> 4915.428397
B19: 3 | C19: TA220COR0D0C1600S±0 | D19: =+"Torre de suspensión tipo S"&IF(MID(C19,3,3)="220","C",IF(MID(C19,3,3)="138","S",""))&IF(MID(C19,10,1)="D",2,1)&" (5°)Tipo S"&IF(MID(C19,3,3)="220","C",IF(MID(C19,3,3)="138","S",""))&IF(MID(C19,10,1)="D",2,1)&RIGHT(C19,2) -> Torre de suspensión tipo SC2 (5°)Tipo SC2±0 | E19: Und | F19: 0 | G19: =VLOOKUP(C19,'[8]Resumen Peso'!$B$1:$D$65536,3,0)*$C$14 -> 8905.236239 | J19: =+VLOOKUP(C19,'[8]Resumen Peso'!$B$1:$D$65536,3,0) -> 5529.165801
B20: 4 | C20: TA220COR0D0C1600S+3 | D20: =+"Torre de suspensión tipo S"&IF(MID(C20,3,3)="220","C",IF(MID(C20,3,3)="138","S",""))&IF(MID(C20,10,1)="D",2,1)&" (5°)Tipo S"&IF(MID(C20,3,3)="220","C",IF(MID(C20,3,3)="138","S",""))&IF(MID(C20,10,1)="D",2,1)&RIGHT(C20,2) -> Torre de suspensión tipo SC2 (5°)Tipo SC2+3 | E20: Und | F20: 0 | G20: =VLOOKUP(C20,'[8]Resumen Peso'!$B$1:$D$65536,3,0)*$C$14 -> 9884.812225 | J20: =+VLOOKUP(C20,'[8]Resumen Peso'!$B$1:$D$65536,3,0) -> 6137.374039
B21: 5 | C21: TA220COR0D0C1600S+6 | D21: =+"Torre de suspensión tipo S"&IF(MID(C21,3,3)="220","C",IF(MID(C21,3,3)="138","S",""))&IF(MID(C21,10,1)="D",2,1)&" (5°)Tipo S"&IF(MID(C21,3,3)="220","C",IF(MID(C21,3,3)="138","S",""))&IF(MID(C21,10,1)="D",2,1)&RIGHT(C21,2) -> Torre de suspensión tipo SC2 (5°)Tipo SC2+6 | E21: Und | F21: 0 | G21: =VLOOKUP(C21,'[8]Resumen Peso'!$B$1:$D$65536,3,0)*$C$14 -> 10864.38821 | J21: =+VLOOKUP(C21,'[8]Resumen Peso'!$B$1:$D$65536,3,0) -> 6745.582278
B22: 6 | C22: TA220COR0D0C1600A-3 | D22: =+"Torre de ángulo menor tipo A"&IF(MID(C22,3,3)="220","C",IF(MID(C22,3,3)="138","S",""))&IF(MID(C22,10,1)="D",2,1)&" (30°)Tipo A"&IF(MID(C22,3,3)="220","C",IF(MID(C22,3,3)="138","S",""))&IF(MID(C22,10,1)="D",2,1)&RIGHT(C22,2) -> Torre de ángulo menor tipo AC2 (30°)Tipo AC2-3 | E22: Und | F22: 0 | G22: =VLOOKUP(C22,'[8]Resumen Peso'!$B$1:$D$65536,3,0)*$C$14 -> 12179.8519 | J22: =+VLOOKUP(C22,'[8]Resumen Peso'!$B$1:$D$65536,3,0) -> 7562.339591
B23: 7 | C23: TA220COR0D0C1600A±0 | D23: =+"Torre de ángulo menor tipo A"&IF(MID(C23,3,3)="220","C",IF(MID(C23,3,3)="138","S",""))&IF(MID(C23,10,1)="D",2,1)&" (30°)Tipo A"&IF(MID(C23,3,3)="220","C",IF(MID(C23,3,3)="138","S",""))&IF(MID(C23,10,1)="D",2,1)&RIGHT(C23,2) -> Torre de ángulo menor tipo AC2 (30°)Tipo AC2±0 | E23: Und | F23: 0 | G23: =VLOOKUP(C23,'[8]Resumen Peso'!$B$1:$D$65536,3,0)*$C$14 -> 13518.14861 | J23: =+VLOOKUP(C23,'[8]Resumen Peso'!$B$1:$D$65536,3,0) -> 8393.273686
B24: 8 | C24: TA220COR0D0C1600A+3 | D24: =+"Torre de ángulo menor tipo A"&IF(MID(C24,3,3)="220","C",IF(MID(C24,3,3)="138","S",""))&IF(MID(C24,10,1)="D",2,1)&" (30°)Tipo A"&IF(MID(C24,3,3)="220","C",IF(MID(C24,3,3)="138","S",""))&IF(MID(C24,10,1)="D",2,1)&RIGHT(C24,2) -> Torre de ángulo menor tipo AC2 (30°)Tipo AC2+3 | E24: Und | F24: 0 | G24: =VLOOKUP(C24,'[8]Resumen Peso'!$B$1:$D$65536,3,0)*$C$14 -> 14856.44532 | J24: =+VLOOKUP(C24,'[8]Resumen Peso'!$B$1:$D$65536,3,0) -> 9224.207781
B25: 9 | C25: TA220COR0D0C1600B-3 | D25: =+"Torre de ángulo mayor tipo B"&IF(MID(C25,3,3)="220","C",IF(MID(C25,3,3)="138","S",""))&IF(MID(C25,10,1)="D",2,1)&" (65°)Tipo B"&IF(MID(C25,3,3)="220","C",IF(MID(C25,3,3)="138","S",""))&IF(MID(C25,10,1)="D",2,1)&RIGHT(C25,2) -> Torre de ángulo mayor tipo BC2 (65°)Tipo BC2-3 | E25: Und | F25: 0 | G25: =VLOOKUP(C25,'[8]Resumen Peso'!$B$1:$D$65536,3,0)*$C$14 -> 16436.60875 | J25: =+VLOOKUP(C25,'[8]Resumen Peso'!$B$1:$D$65536,3,0) -> 10205.31433
B26: 10 | C26: TA220COR0D0C1600B±0 | D26: =+"Torre de ángulo mayor tipo B"&IF(MID(C26,3,3)="220","C",IF(MID(C26,3,3)="138","S",""))&IF(MID(C26,10,1)="D",2,1)&" (65°)Tipo B"&IF(MID(C26,3,3)="220","C",IF(MID(C26,3,3)="138","S",""))&IF(MID(C26,10,1)="D",2,1)&RIGHT(C26,2) -> Torre de ángulo mayor tipo BC2 (65°)Tipo BC2±0 | E26: Und | F26: 0 | G26: =VLOOKUP(C26,'[8]Resumen Peso'!$B$1:$D$65536,3,0)*$C$14 -> 18303.57322 | J26: =+VLOOKUP(C26,'[8]Resumen Peso'!$B$1:$D$65536,3,0) -> 11364.49257
B27: 11 | C27: TA220COR0D0C1600B+3 | D27: =+"Torre de ángulo mayor tipo B"&IF(MID(C27,3,3)="220","C",IF(MID(C27,3,3)="138","S",""))&IF(MID(C27,10,1)="D",2,1)&" (65°)Tipo B"&IF(MID(C27,3,3)="220","C",IF(MID(C27,3,3)="138","S",""))&IF(MID(C27,10,1)="D",2,1)&RIGHT(C27,2) -> Torre de ángulo mayor tipo BC2 (65°)Tipo BC2+3 | E27: Und | F27: 0 | G27: =VLOOKUP(C27,'[8]Resumen Peso'!$B$1:$D$65536,3,0)*$C$14 -> 20500.002 | J27: =+VLOOKUP(C27,'[8]Resumen Peso'!$B$1:$D$65536,3,0) -> 12728.23168
B28: 12 | C28: TA220COR0D0C1600R-3 | D28: =+"Torre de anclaje, retención intermedia y terminal (15°) Tipo R"&IF(MID(C28,3,3)="220","C",IF(MID(C28,3,3)="138","S",""))&IF(MID(C28,10,1)="D",2,1)&RIGHT(C28,2) -> Torre de anclaje, retención intermedia y terminal (15°) Tipo RC2-3 | E28: Und | F28: 0 | G28: =VLOOKUP(C28,'[8]Resumen Peso'!$B$1:$D$65536,3,0)*$C$14 -> 21163.19537 | J28: =+VLOOKUP(C28,'[8]Resumen Peso'!$B$1:$D$65536,3,0) -> 13140.00134
B29: 13 | C29: TA220COR0D0C1600R±0 | D29: =+"Torre de anclaje, retención intermedia y terminal (15°) Tipo R"&IF(MID(C29,3,3)="220","C",IF(MID(C29,3,3)="138","S",""))&IF(MID(C29,10,1)="D",2,1)&RIGHT(C29,2) -> Torre de anclaje, retención intermedia y terminal (15°) Tipo RC2±0 | E29: Und | F29: 0 | G29: =VLOOKUP(C29,'[8]Resumen Peso'!$B$1:$D$65536,3,0)*$C$14 -> 23593.30588 | J29: =+VLOOKUP(C29,'[8]Resumen Peso'!$B$1:$D$65536,3,0) -> 14648.83092
B30: 14 | C30: TA220COR0D0C1600R+3 | D30: =+"Torre de anclaje, retención intermedia y terminal (15°) Tipo R"&IF(MID(C30,3,3)="220","C",IF(MID(C30,3,3)="138","S",""))&IF(MID(C30,10,1)="D",2,1)&RIGHT(C30,2) -> Torre de anclaje, retención intermedia y terminal (15°) Tipo RC2+3 | E30: Und | F30: 0 | G30: =VLOOKUP(C30,'[8]Resumen Peso'!$B$1:$D$65536,3,0)*$C$14 -> 26023.41638 | J30: =+VLOOKUP(C30,'[8]Resumen Peso'!$B$1:$D$65536,3,0) -> 16157.66051
B31: 15 | C31: TA220SIR2S2C2726S-6 | D31: =+"Torre de suspensión tipo S"&IF(MID(C31,3,3)="220","C",IF(MID(C31,3,3)="138","S",""))&IF(MID(C31,10,1)="D",2,1)&" (5°)Tipo S"&IF(MID(C31,3,3)="220","C",IF(MID(C31,3,3)="138","S",""))&IF(MID(C31,10,1)="D",2,1)&RIGHT(C31,2) -> Torre de suspensión tipo SC1 (5°)Tipo SC1-6 | E31: Und | F31: 0 | G31: =VLOOKUP(C31,'[8]Resumen Peso'!$B$1:$D$65536,3,0)*$C$14 -> 7791.279523 | J31: =+VLOOKUP(C31,'[8]Resumen Peso'!$B$1:$D$65536,3,0) -> 4837.522008
B32: 16 | C32: TA220SIR2S2C2726S-3 | D32: =+"Torre de suspensión tipo S"&IF(MID(C32,3,3)="220","C",IF(MID(C32,3,3)="138","S",""))&IF(MID(C32,10,1)="D",2,1)&" (5°)Tipo S"&IF(MID(C32,3,3)="220","C",IF(MID(C32,3,3)="138","S",""))&IF(MID(C32,10,1)="D",2,1)&RIGHT(C32,2) -> Torre de suspensión tipo SC1 (5°)Tipo SC1-3 | E32: Und | F32: 0 | G32: =VLOOKUP(C32,'[8]Resumen Peso'!$B$1:$D$65536,3,0)*$C$14 -> 8914.346842 | J32: =+VLOOKUP(C32,'[8]Resumen Peso'!$B$1:$D$65536,3,0) -> 5534.822477
B33: 17 | C33: TA220SIR2S2C2726S±0 | D33: =+"Torre de suspensión tipo S"&IF(MID(C33,3,3)="220","C",IF(MID(C33,3,3)="138","S",""))&IF(MID(C33,10,1)="D",2,1)&" (5°)Tipo S"&IF(MID(C33,3,3)="220","C",IF(MID(C33,3,3)="138","S",""))&IF(MID(C33,10,1)="D",2,1)&RIGHT(C33,2) -> Torre de suspensión tipo SC1 (5°)Tipo SC1±0 | E33: Und | F33: 0 | G33: =VLOOKUP(C33,'[8]Resumen Peso'!$B$1:$D$65536,3,0)*$C$14 -> 10027.38677 | J33: =+VLOOKUP(C33,'[8]Resumen Peso'!$B$1:$D$65536,3,0) -> 6225.89705
B34: 18 | C34: TA220SIR2S2C2726S+3 | D34: =+"Torre de suspensión tipo S"&IF(MID(C34,3,3)="220","C",IF(MID(C34,3,3)="138","S",""))&IF(MID(C34,10,1)="D",2,1)&" (5°)Tipo S"&IF(MID(C34,3,3)="220","C",IF(MID(C34,3,3)="138","S",""))&IF(MID(C34,10,1)="D",2,1)&RIGHT(C34,2) -> Torre de suspensión tipo SC1 (5°)Tipo SC1+3 | E34: Und | F34: 0 | G34: =VLOOKUP(C34,'[8]Resumen Peso'!$B$1:$D$65536,3,0)*$C$14 -> 11130.39932 | J34: =+VLOOKUP(C34,'[8]Resumen Peso'!$B$1:$D$65536,3,0) -> 6910.745725
B35: 19 | C35: TA220SIR2S2C2726S+6 | D35: =+"Torre de suspensión tipo S"&IF(MID(C35,3,3)="220","C",IF(MID(C35,3,3)="138","S",""))&IF(MID(C35,10,1)="D",2,1)&" (5°)Tipo S"&IF(MID(C35,3,3)="220","C",IF(MID(C35,3,3)="138","S",""))&IF(MID(C35,10,1)="D",2,1)&RIGHT(C35,2) -> Torre de suspensión tipo SC1 (5°)Tipo SC1+6 | E35: Und | F35: 0 | G35: =VLOOKUP(C35,'[8]Resumen Peso'!$B$1:$D$65536,3,0)*$C$14 -> 12233.41186 | J35: =+VLOOKUP(C35,'[8]Resumen Peso'!$B$1:$D$65536,3,0) -> 7595.594401
B36: 20 | C36: TA220SIR2S2C2726A-3 | D36: =+"Torre de ángulo menor tipo A"&IF(MID(C36,3,3)="220","C",IF(MID(C36,3,3)="138","S",""))&IF(MID(C36,10,1)="D",2,1)&" (30°)Tipo A"&IF(MID(C36,3,3)="220","C",IF(MID(C36,3,3)="138","S",""))&IF(MID(C36,10,1)="D",2,1)&RIGHT(C36,2) -> Torre de ángulo menor tipo AC1 (30°)Tipo AC1-3 | E36: Und | F36: 0 | G36: =VLOOKUP(C36,'[8]Resumen Peso'!$B$1:$D$65536,3,0)*$C$14 -> 13714.63738 | J36: =+VLOOKUP(C36,'[8]Resumen Peso'!$B$1:$D$65536,3,0) -> 8515.271461
B37: 21 | C37: TA220SIR2S2C2726A±0 | D37: =+"Torre de ángulo menor tipo A"&IF(MID(C37,3,3)="220","C",IF(MID(C37,3,3)="138","S",""))&IF(MID(C37,10,1)="D",2,1)&" (30°)Tipo A"&IF(MID(C37,3,3)="220","C",IF(MID(C37,3,3)="138","S",""))&IF(MID(C37,10,1)="D",2,1)&RIGHT(C37,2) -> Torre de ángulo menor tipo AC1 (30°)Tipo AC1±0 | E37: Und | F37: 0 | G37: =VLOOKUP(C37,'[8]Resumen Peso'!$B$1:$D$65536,3,0)*$C$14 -> 15221.57312 | J37: =+VLOOKUP(C37,'[8]Resumen Peso'!$B$1:$D$65536,3,0) -> 9450.911722
B38: 22 | C38: TA220SIR2S2C2726A+3 | D38: =+"Torre de ángulo menor tipo A"&IF(MID(C38,3,3)="220","C",IF(MID(C38,3,3)="138","S",""))&IF(MID(C38,10,1)="D",2,1)&" (30°)Tipo A"&IF(MID(C38,3,3)="220","C",IF(MID(C38,3,3)="138","S",""))&IF(MID(C38,10,1)="D",2,1)&RIGHT(C38,2) -> Torre de ángulo menor tipo AC1 (30°)Tipo AC1+3 | E38: Und | F38: 0 | G38: =VLOOKUP(C38,'[8]Resumen Peso'!$B$1:$D$65536,3,0)*$C$14 -> 16728.50886 | J38: =+VLOOKUP(C38,'[8]Resumen Peso'!$B$1:$D$65536,3,0) -> 10386.55198
B39: 23 | C39: TA220SIR2S2C2726B-3 | D39: =+"Torre de ángulo mayor tipo B"&IF(MID(C39,3,3)="220","C",IF(MID(C39,3,3)="138","S",""))&IF(MID(C39,10,1)="D",2,1)&" (65°)Tipo B"&IF(MID(C39,3,3)="220","C",IF(MID(C39,3,3)="138","S",""))&IF(MID(C39,10,1)="D",2,1)&RIGHT(C39,2) -> Torre de ángulo mayor tipo BC1 (65°)Tipo BC1-3 | E39: Und | F39: 0 | G39: =VLOOKUP(C39,'[8]Resumen Peso'!$B$1:$D$65536,3,0)*$C$14 -> 18507.78899 | J39: =+VLOOKUP(C39,'[8]Resumen Peso'!$B$1:$D$65536,3,0) -> 11491.28796
B40: 24 | C40: TA220SIR2S2C2726B±0 | D40: =+"Torre de ángulo mayor tipo B"&IF(MID(C40,3,3)="220","C",IF(MID(C40,3,3)="138","S",""))&IF(MID(C40,10,1)="D",2,1)&" (65°)Tipo B"&IF(MID(C40,3,3)="220","C",IF(MID(C40,3,3)="138","S",""))&IF(MID(C40,10,1)="D",2,1)&RIGHT(C40,2) -> Torre de ángulo mayor tipo BC1 (65°)Tipo BC1±0 | E40: Und | F40: 0 | G40: =VLOOKUP(C40,'[8]Resumen Peso'!$B$1:$D$65536,3,0)*$C$14 -> 20610.01001 | J40: =+VLOOKUP(C40,'[8]Resumen Peso'!$B$1:$D$65536,3,0) -> 12796.53447
B41: 25 | C41: TA220SIR2S2C2726B+3 | D41: =+"Torre de ángulo mayor tipo B"&IF(MID(C41,3,3)="220","C",IF(MID(C41,3,3)="138","S",""))&IF(MID(C41,10,1)="D",2,1)&" (65°)Tipo B"&IF(MID(C41,3,3)="220","C",IF(MID(C41,3,3)="138","S",""))&IF(MID(C41,10,1)="D",2,1)&RIGHT(C41,2) -> Torre de ángulo mayor tipo BC1 (65°)Tipo BC1+3 | E41: Und | F41: 0 | G41: =VLOOKUP(C41,'[8]Resumen Peso'!$B$1:$D$65536,3,0)*$C$14 -> 23083.21121 | J41: =+VLOOKUP(C41,'[8]Resumen Peso'!$B$1:$D$65536,3,0) -> 14332.11861
B42: 26 | C42: TA220SIR2S2C2726R-3 | D42: =+"Torre de anclaje, retención intermedia y terminal (15°) Tipo R"&IF(MID(C42,3,3)="220","C",IF(MID(C42,3,3)="138","S",""))&IF(MID(C42,10,1)="D",2,1)&RIGHT(C42,2) -> Torre de anclaje, retención intermedia y terminal (15°) Tipo RC1-3 | E42: Und | F42: 0 | G42: =VLOOKUP(C42,'[8]Resumen Peso'!$B$1:$D$65536,3,0)*$C$14 -> 23829.9737 | J42: =+VLOOKUP(C42,'[8]Resumen Peso'!$B$1:$D$65536,3,0) -> 14795.77544
B43: 27 | C43: TA220SIR2S2C2726R±0 | D43: =+"Torre de anclaje, retención intermedia y terminal (15°) Tipo R"&IF(MID(C43,3,3)="220","C",IF(MID(C43,3,3)="138","S",""))&IF(MID(C43,10,1)="D",2,1)&RIGHT(C43,2) -> Torre de anclaje, retención intermedia y terminal (15°) Tipo RC1±0 | E43: Und | F43: 0 | G43: =VLOOKUP(C43,'[8]Resumen Peso'!$B$1:$D$65536,3,0)*$C$14 -> 26566.3029 | J43: =+VLOOKUP(C43,'[8]Resumen Peso'!$B$1:$D$65536,3,0) -> 16494.73293
B44: 28 | C44: TA220SIR2S2C2726R+3 | D44: =+"Torre de anclaje, retención intermedia y terminal (15°) Tipo R"&IF(MID(C44,3,3)="220","C",IF(MID(C44,3,3)="138","S",""))&IF(MID(C44,10,1)="D",2,1)&RIGHT(C44,2) -> Torre de anclaje, retención intermedia y terminal (15°) Tipo RC1+3 | E44: Und | F44: 0 | G44: =VLOOKUP(C44,'[8]Resumen Peso'!$B$1:$D$65536,3,0)*$C$14 -> 29302.6321 | J44: =+VLOOKUP(C44,'[8]Resumen Peso'!$B$1:$D$65536,3,0) -> 18193.69043
B45: 29 | C45: TA220SIR2S2C2592S-6 | D45: =+"Torre de suspensión tipo S"&IF(MID(C45,3,3)="220","C",IF(MID(C45,3,3)="138","S",""))&IF(MID(C45,10,1)="D",2,1)&" (5°)Tipo S"&IF(MID(C45,3,3)="220","C",IF(MID(C45,3,3)="138","S",""))&IF(MID(C45,10,1)="D",2,1)&RIGHT(C45,2) -> Torre de suspensión tipo SC1 (5°)Tipo SC1-6 | E45: Und | F45: 0 | G45: =VLOOKUP(C45,'[8]Resumen Peso'!$B$1:$D$65536,3,0)*$C$14 -> 7111.866801 | J45: =+VLOOKUP(C45,'[8]Resumen Peso'!$B$1:$D$65536,3,0) -> 4415.681925
B46: 30 | C46: TA220SIR2S2C2592S-3 | D46: =+"Torre de suspensión tipo S"&IF(MID(C46,3,3)="220","C",IF(MID(C46,3,3)="138","S",""))&IF(MID(C46,10,1)="D",2,1)&" (5°)Tipo S"&IF(MID(C46,3,3)="220","C",IF(MID(C46,3,3)="138","S",""))&IF(MID(C46,10,1)="D",2,1)&RIGHT(C46,2) -> Torre de suspensión tipo SC1 (5°)Tipo SC1-3 | E46: Und | F46: 0 | G46: =VLOOKUP(C46,'[8]Resumen Peso'!$B$1:$D$65536,3,0)*$C$14 -> 8137.000754 | J46: =+VLOOKUP(C46,'[8]Resumen Peso'!$B$1:$D$65536,3,0) -> 5052.176617
B47: 31 | C47: TA220SIR2S2C2592S±0 | D47: =+"Torre de suspensión tipo S"&IF(MID(C47,3,3)="220","C",IF(MID(C47,3,3)="138","S",""))&IF(MID(C47,10,1)="D",2,1)&" (5°)Tipo S"&IF(MID(C47,3,3)="220","C",IF(MID(C47,3,3)="138","S",""))&IF(MID(C47,10,1)="D",2,1)&RIGHT(C47,2) -> Torre de suspensión tipo SC1 (5°)Tipo SC1±0 | E47: Und | F47: 0 | G47: =VLOOKUP(C47,'[8]Resumen Peso'!$B$1:$D$65536,3,0)*$C$14 -> 9152.981726 | J47: =+VLOOKUP(C47,'[8]Resumen Peso'!$B$1:$D$65536,3,0) -> 5682.988321
B48: 32 | C48: TA220SIR2S2C2592S+3 | D48: =+"Torre de suspensión tipo S"&IF(MID(C48,3,3)="220","C",IF(MID(C48,3,3)="138","S",""))&IF(MID(C48,10,1)="D",2,1)&" (5°)Tipo S"&IF(MID(C48,3,3)="220","C",IF(MID(C48,3,3)="138","S",""))&IF(MID(C48,10,1)="D",2,1)&RIGHT(C48,2) -> Torre de suspensión tipo SC1 (5°)Tipo SC1+3 | E48: Und | F48: 0 | G48: =VLOOKUP(C48,'[8]Resumen Peso'!$B$1:$D$65536,3,0)*$C$14 -> 10159.80972 | J48: =+VLOOKUP(C48,'[8]Resumen Peso'!$B$1:$D$65536,3,0) -> 6308.117036
B49: 33 | C49: TA220SIR2S2C2592S+6 | D49: =+"Torre de suspensión tipo S"&IF(MID(C49,3,3)="220","C",IF(MID(C49,3,3)="138","S",""))&IF(MID(C49,10,1)="D",2,1)&" (5°)Tipo S"&IF(MID(C49,3,3)="220","C",IF(MID(C49,3,3)="138","S",""))&IF(MID(C49,10,1)="D",2,1)&RIGHT(C49,2) -> Torre de suspensión tipo SC1 (5°)Tipo SC1+6 | E49: Und | F49: 0 | G49: =VLOOKUP(C49,'[8]Resumen Peso'!$B$1:$D$65536,3,0)*$C$14 -> 11166.63771 | J49: =+VLOOKUP(C49,'[8]Resumen Peso'!$B$1:$D$65536,3,0) -> 6933.245752
B50: 34 | C50: TA220SIR2S2C2592A-3 | D50: =+"Torre de ángulo menor tipo A"&IF(MID(C50,3,3)="220","C",IF(MID(C50,3,3)="138","S",""))&IF(MID(C50,10,1)="D",2,1)&" (30°)Tipo A"&IF(MID(C50,3,3)="220","C",IF(MID(C50,3,3)="138","S",""))&IF(MID(C50,10,1)="D",2,1)&RIGHT(C50,2) -> Torre de ángulo menor tipo AC1 (30°)Tipo AC1-3 | E50: Und | F50: 0 | G50: =VLOOKUP(C50,'[8]Resumen Peso'!$B$1:$D$65536,3,0)*$C$14 -> 12518.69786 | J50: =+VLOOKUP(C50,'[8]Resumen Peso'!$B$1:$D$65536,3,0) -> 7772.72542
B51: 35 | C51: TA220SIR2S2C2592A±0 | D51: =+"Torre de ángulo menor tipo A"&IF(MID(C51,3,3)="220","C",IF(MID(C51,3,3)="138","S",""))&IF(MID(C51,10,1)="D",2,1)&" (30°)Tipo A"&IF(MID(C51,3,3)="220","C",IF(MID(C51,3,3)="138","S",""))&IF(MID(C51,10,1)="D",2,1)&RIGHT(C51,2) -> Torre de ángulo menor tipo AC1 (30°)Tipo AC1±0 | E51: Und | F51: 0 | G51: =VLOOKUP(C51,'[8]Resumen Peso'!$B$1:$D$65536,3,0)*$C$14 -> 13894.22626 | J51: =+VLOOKUP(C51,'[8]Resumen Peso'!$B$1:$D$65536,3,0) -> 8626.776271
B52: 36 | C52: TA220SIR2S2C2592A+3 | D52: =+"Torre de ángulo menor tipo A"&IF(MID(C52,3,3)="220","C",IF(MID(C52,3,3)="138","S",""))&IF(MID(C52,10,1)="D",2,1)&" (30°)Tipo A"&IF(MID(C52,3,3)="220","C",IF(MID(C52,3,3)="138","S",""))&IF(MID(C52,10,1)="D",2,1)&RIGHT(C52,2) -> Torre de ángulo menor tipo AC1 (30°)Tipo AC1+3 | E52: Und | F52: 0 | G52: =VLOOKUP(C52,'[8]Resumen Peso'!$B$1:$D$65536,3,0)*$C$14 -> 15269.75466 | J52: =+VLOOKUP(C52,'[8]Resumen Peso'!$B$1:$D$65536,3,0) -> 9480.827122
B53: 37 | C53: TA220SIR2S2C2592B-3 | D53: =+"Torre de ángulo mayor tipo B"&IF(MID(C53,3,3)="220","C",IF(MID(C53,3,3)="138","S",""))&IF(MID(C53,10,1)="D",2,1)&" (65°)Tipo B"&IF(MID(C53,3,3)="220","C",IF(MID(C53,3,3)="138","S",""))&IF(MID(C53,10,1)="D",2,1)&RIGHT(C53,2) -> Torre de ángulo mayor tipo BC1 (65°)Tipo BC1-3 | E53: Und | F53: 0 | G53: =VLOOKUP(C53,'[8]Resumen Peso'!$B$1:$D$65536,3,0)*$C$14 -> 16893.87856 | J53: =+VLOOKUP(C53,'[8]Resumen Peso'!$B$1:$D$65536,3,0) -> 10489.22825
B54: 38 | C54: TA220SIR2S2C2592B±0 | D54: =+"Torre de ángulo mayor tipo B"&IF(MID(C54,3,3)="220","C",IF(MID(C54,3,3)="138","S",""))&IF(MID(C54,10,1)="D",2,1)&" (65°)Tipo B"&IF(MID(C54,3,3)="220","C",IF(MID(C54,3,3)="138","S",""))&IF(MID(C54,10,1)="D",2,1)&RIGHT(C54,2) -> Torre de ángulo mayor tipo BC1 (65°)Tipo BC1±0 | E54: Und | F54: 0 | G54: =VLOOKUP(C54,'[8]Resumen Peso'!$B$1:$D$65536,3,0)*$C$14 -> 18812.78236 | J54: =+VLOOKUP(C54,'[8]Resumen Peso'!$B$1:$D$65536,3,0) -> 11680.65507
B55: 39 | C55: TA220SIR2S2C2592B+3 | D55: =+"Torre de ángulo mayor tipo B"&IF(MID(C55,3,3)="220","C",IF(MID(C55,3,3)="138","S",""))&IF(MID(C55,10,1)="D",2,1)&" (65°)Tipo B"&IF(MID(C55,3,3)="220","C",IF(MID(C55,3,3)="138","S",""))&IF(MID(C55,10,1)="D",2,1)&RIGHT(C55,2) -> Torre de ángulo mayor tipo BC1 (65°)Tipo BC1+3 | E55: Und | F55: 0 | G55: =VLOOKUP(C55,'[8]Resumen Peso'!$B$1:$D$65536,3,0)*$C$14 -> 21070.31624 | J55: =+VLOOKUP(C55,'[8]Resumen Peso'!$B$1:$D$65536,3,0) -> 13082.33368
B56: 40 | C56: TA220SIR2S2C2592R-3 | D56: =+"Torre de anclaje, retención intermedia y terminal (15°) Tipo R"&IF(MID(C56,3,3)="220","C",IF(MID(C56,3,3)="138","S",""))&IF(MID(C56,10,1)="D",2,1)&RIGHT(C56,2) -> Torre de anclaje, retención intermedia y terminal (15°) Tipo RC1-3 | E56: Und | F56: 0 | G56: =VLOOKUP(C56,'[8]Resumen Peso'!$B$1:$D$65536,3,0)*$C$14 -> 21751.95978 | J56: =+VLOOKUP(C56,'[8]Resumen Peso'!$B$1:$D$65536,3,0) -> 13505.55885
B57: 41 | C57: TA220SIR2S2C2592R±0 | D57: =+"Torre de anclaje, retención intermedia y terminal (15°) Tipo R"&IF(MID(C57,3,3)="220","C",IF(MID(C57,3,3)="138","S",""))&IF(MID(C57,10,1)="D",2,1)&RIGHT(C57,2) -> Torre de anclaje, retención intermedia y terminal (15°) Tipo RC1±0 | E57: Und | F57: 0 | G57: =VLOOKUP(C57,'[8]Resumen Peso'!$B$1:$D$65536,3,0)*$C$14 -> 24249.67646 | J57: =+VLOOKUP(C57,'[8]Resumen Peso'!$B$1:$D$65536,3,0) -> 15056.36439
B58: 42 | C58: TA220SIR2S2C2592R+3 | D58: =+"Torre de anclaje, retención intermedia y terminal (15°) Tipo R"&IF(MID(C58,3,3)="220","C",IF(MID(C58,3,3)="138","S",""))&IF(MID(C58,10,1)="D",2,1)&RIGHT(C58,2) -> Torre de anclaje, retención intermedia y terminal (15°) Tipo RC1+3 | E58: Und | F58: 0 | G58: =VLOOKUP(C58,'[8]Resumen Peso'!$B$1:$D$65536,3,0)*$C$14 -> 26747.39313 | J58: =+VLOOKUP(C58,'[8]Resumen Peso'!$B$1:$D$65536,3,0) -> 16607.16992
B59: 43 | C59: TA220SIR2D2C2726S-6 | D59: =+"Torre de suspensión tipo S"&IF(MID(C59,3,3)="220","C",IF(MID(C59,3,3)="138","S",""))&IF(MID(C59,10,1)="D",2,1)&" (5°)Tipo S"&IF(MID(C59,3,3)="220","C",IF(MID(C59,3,3)="138","S",""))&IF(MID(C59,10,1)="D",2,1)&RIGHT(C59,2) -> Torre de suspensión tipo SC2 (5°)Tipo SC2-6 | E59: Und | F59: 0 | G59: =VLOOKUP(C59,'[8]Resumen Peso'!$B$1:$D$65536,3,0)*$C$14 -> 10452.53204 | J59: =+VLOOKUP(C59,'[8]Resumen Peso'!$B$1:$D$65536,3,0) -> 6489.865191
B60: 44 | C60: TA220SIR2D2C2726S-3 | D60: =+"Torre de suspensión tipo S"&IF(MID(C60,3,3)="220","C",IF(MID(C60,3,3)="138","S",""))&IF(MID(C60,10,1)="D",2,1)&" (5°)Tipo S"&IF(MID(C60,3,3)="220","C",IF(MID(C60,3,3)="138","S",""))&IF(MID(C60,10,1)="D",2,1)&RIGHT(C60,2) -> Torre de suspensión tipo SC2 (5°)Tipo SC2-3 | E60: Und | F60: 0 | G60: =VLOOKUP(C60,'[8]Resumen Peso'!$B$1:$D$65536,3,0)*$C$14 -> 11959.20332 | J60: =+VLOOKUP(C60,'[8]Resumen Peso'!$B$1:$D$65536,3,0) -> 7425.341254
B61: 45 | C61: TA220SIR2D2C2726S±0 | D61: =+"Torre de suspensión tipo S"&IF(MID(C61,3,3)="220","C",IF(MID(C61,3,3)="138","S",""))&IF(MID(C61,10,1)="D",2,1)&" (5°)Tipo S"&IF(MID(C61,3,3)="220","C",IF(MID(C61,3,3)="138","S",""))&IF(MID(C61,10,1)="D",2,1)&RIGHT(C61,2) -> Torre de suspensión tipo SC2 (5°)Tipo SC2±0 | E61: Und | F61: 0 | G61: =VLOOKUP(C61,'[8]Resumen Peso'!$B$1:$D$65536,3,0)*$C$14 -> 13452.42218 | J61: =+VLOOKUP(C61,'[8]Resumen Peso'!$B$1:$D$65536,3,0) -> 8352.464853
B62: 46 | C62: TA220SIR2D2C2726S+3 | D62: =+"Torre de suspensión tipo S"&IF(MID(C62,3,3)="220","C",IF(MID(C62,3,3)="138","S",""))&IF(MID(C62,10,1)="D",2,1)&" (5°)Tipo S"&IF(MID(C62,3,3)="220","C",IF(MID(C62,3,3)="138","S",""))&IF(MID(C62,10,1)="D",2,1)&RIGHT(C62,2) -> Torre de suspensión tipo SC2 (5°)Tipo SC2+3 | E62: Und | F62: 0 | G62: =VLOOKUP(C62,'[8]Resumen Peso'!$B$1:$D$65536,3,0)*$C$14 -> 14932.18862 | J62: =+VLOOKUP(C62,'[8]Resumen Peso'!$B$1:$D$65536,3,0) -> 9271.235987
B63: 47 | C63: TA220SIR2D2C2726S+6 | D63: =+"Torre de suspensión tipo S"&IF(MID(C63,3,3)="220","C",IF(MID(C63,3,3)="138","S",""))&IF(MID(C63,10,1)="D",2,1)&" (5°)Tipo S"&IF(MID(C63,3,3)="220","C",IF(MID(C63,3,3)="138","S",""))&IF(MID(C63,10,1)="D",2,1)&RIGHT(C63,2) -> Torre de suspensión tipo SC2 (5°)Tipo SC2+6 | E63: Und | F63: 0 | G63: =VLOOKUP(C63,'[8]Resumen Peso'!$B$1:$D$65536,3,0)*$C$14 -> 16411.95507 | J63: =+VLOOKUP(C63,'[8]Resumen Peso'!$B$1:$D$65536,3,0) -> 10190.00712
B64: 48 | C64: TA220SIR2D2C2726A-3 | D64: =+"Torre de ángulo menor tipo A"&IF(MID(C64,3,3)="220","C",IF(MID(C64,3,3)="138","S",""))&IF(MID(C64,10,1)="D",2,1)&" (30°)Tipo A"&IF(MID(C64,3,3)="220","C",IF(MID(C64,3,3)="138","S",""))&IF(MID(C64,10,1)="D",2,1)&RIGHT(C64,2) -> Torre de ángulo menor tipo AC2 (30°)Tipo AC2-3 | E64: Und | F64: 0 | G64: =VLOOKUP(C64,'[8]Resumen Peso'!$B$1:$D$65536,3,0)*$C$14 -> 18399.11997 | J64: =+VLOOKUP(C64,'[8]Resumen Peso'!$B$1:$D$65536,3,0) -> 11423.81652
B65: 49 | C65: TA220SIR2D2C2726A±0 | D65: =+"Torre de ángulo menor tipo A"&IF(MID(C65,3,3)="220","C",IF(MID(C65,3,3)="138","S",""))&IF(MID(C65,10,1)="D",2,1)&" (30°)Tipo A"&IF(MID(C65,3,3)="220","C",IF(MID(C65,3,3)="138","S",""))&IF(MID(C65,10,1)="D",2,1)&RIGHT(C65,2) -> Torre de ángulo menor tipo AC2 (30°)Tipo AC2±0 | E65: Und | F65: 0 | G65: =VLOOKUP(C65,'[8]Resumen Peso'!$B$1:$D$65536,3,0)*$C$14 -> 20420.77688 | J65: =+VLOOKUP(C65,'[8]Resumen Peso'!$B$1:$D$65536,3,0) -> 12679.04165
B66: 50 | C66: TA220SIR2D2C2726A+3 | D66: =+"Torre de ángulo menor tipo A"&IF(MID(C66,3,3)="220","C",IF(MID(C66,3,3)="138","S",""))&IF(MID(C66,10,1)="D",2,1)&" (30°)Tipo A"&IF(MID(C66,3,3)="220","C",IF(MID(C66,3,3)="138","S",""))&IF(MID(C66,10,1)="D",2,1)&RIGHT(C66,2) -> Torre de ángulo menor tipo AC2 (30°)Tipo AC2+3 | E66: Und | F66: 0 | G66: =VLOOKUP(C66,'[8]Resumen Peso'!$B$1:$D$65536,3,0)*$C$14 -> 22442.43379 | J66: =+VLOOKUP(C66,'[8]Resumen Peso'!$B$1:$D$65536,3,0) -> 13934.26677
B67: 51 | C67: TA220SIR2D2C2726B-3 | D67: =+"Torre de ángulo mayor tipo B"&IF(MID(C67,3,3)="220","C",IF(MID(C67,3,3)="138","S",""))&IF(MID(C67,10,1)="D",2,1)&" (65°)Tipo B"&IF(MID(C67,3,3)="220","C",IF(MID(C67,3,3)="138","S",""))&IF(MID(C67,10,1)="D",2,1)&RIGHT(C67,2) -> Torre de ángulo mayor tipo BC2 (65°)Tipo BC2-3 | E67: Und | F67: 0 | G67: =VLOOKUP(C67,'[8]Resumen Peso'!$B$1:$D$65536,3,0)*$C$14 -> 24829.45924 | J67: =+VLOOKUP(C67,'[8]Resumen Peso'!$B$1:$D$65536,3,0) -> 15416.34531
B68: 52 | C68: TA220SIR2D2C2726B±0 | D68: =+"Torre de ángulo mayor tipo B"&IF(MID(C68,3,3)="220","C",IF(MID(C68,3,3)="138","S",""))&IF(MID(C68,10,1)="D",2,1)&" (65°)Tipo B"&IF(MID(C68,3,3)="220","C",IF(MID(C68,3,3)="138","S",""))&IF(MID(C68,10,1)="D",2,1)&RIGHT(C68,2) -> Torre de ángulo mayor tipo BC2 (65°)Tipo BC2±0 | E68: Und | F68: 0 | G68: =VLOOKUP(C68,'[8]Resumen Peso'!$B$1:$D$65536,3,0)*$C$14 -> 27649.73189 | J68: =+VLOOKUP(C68,'[8]Resumen Peso'!$B$1:$D$65536,3,0) -> 17167.42239
B69: 53 | C69: TA220SIR2D2C2726B+3 | D69: =+"Torre de ángulo mayor tipo B"&IF(MID(C69,3,3)="220","C",IF(MID(C69,3,3)="138","S",""))&IF(MID(C69,10,1)="D",2,1)&" (65°)Tipo B"&IF(MID(C69,3,3)="220","C",IF(MID(C69,3,3)="138","S",""))&IF(MID(C69,10,1)="D",2,1)&RIGHT(C69,2) -> Torre de ángulo mayor tipo BC2 (65°)Tipo BC2+3 | E69: Und | F69: 0 | G69: =VLOOKUP(C69,'[8]Resumen Peso'!$B$1:$D$65536,3,0)*$C$14 -> 30967.69972 | J69: =+VLOOKUP(C69,'[8]Resumen Peso'!$B$1:$D$65536,3,0) -> 19227.51308
B70: 54 | C70: TA220SIR2D2C2726R-3 | D70: =+"Torre de anclaje, retención intermedia y terminal (15°) Tipo R"&IF(MID(C70,3,3)="220","C",IF(MID(C70,3,3)="138","S",""))&IF(MID(C70,10,1)="D",2,1)&RIGHT(C70,2) -> Torre de anclaje, retención intermedia y terminal (15°) Tipo RC2-3 | E70: Und | F70: 0 | G70: =VLOOKUP(C70,'[8]Resumen Peso'!$B$1:$D$65536,3,0)*$C$14 -> 31969.53245 | J70: =+VLOOKUP(C70,'[8]Resumen Peso'!$B$1:$D$65536,3,0) -> 19849.54029
B71: 55 | C71: TA220SIR2D2C2726R±0 | D71: =+"Torre de anclaje, retención intermedia y terminal (15°) Tipo R"&IF(MID(C71,3,3)="220","C",IF(MID(C71,3,3)="138","S",""))&IF(MID(C71,10,1)="D",2,1)&RIGHT(C71,2) -> Torre de anclaje, retención intermedia y terminal (15°) Tipo RC2±0 | E71: Und | F71: 0 | G71: =VLOOKUP(C71,'[8]Resumen Peso'!$B$1:$D$65536,3,0)*$C$14 -> 35640.50441 | J71: =+VLOOKUP(C71,'[8]Resumen Peso'!$B$1:$D$65536,3,0) -> 22128.80746
B72: 56 | C72: TA220SIR2D2C2726R+3 | D72: =+"Torre de anclaje, retención intermedia y terminal (15°) Tipo R"&IF(MID(C72,3,3)="220","C",IF(MID(C72,3,3)="138","S",""))&IF(MID(C72,10,1)="D",2,1)&RIGHT(C72,2) -> Torre de anclaje, retención intermedia y terminal (15°) Tipo RC2+3 | E72: Und | F72: 0 | G72: =VLOOKUP(C72,'[8]Resumen Peso'!$B$1:$D$65536,3,0)*$C$14 -> 39311.47636 | J72: =+VLOOKUP(C72,'[8]Resumen Peso'!$B$1:$D$65536,3,0) -> 24408.07463
B73: 57 | C73: TA220SIR2D2C2592S-6 | D73: =+"Torre de suspensión tipo S"&IF(MID(C73,3,3)="220","C",IF(MID(C73,3,3)="138","S",""))&IF(MID(C73,10,1)="D",2,1)&" (5°)Tipo S"&IF(MID(C73,3,3)="220","C",IF(MID(C73,3,3)="138","S",""))&IF(MID(C73,10,1)="D",2,1)&RIGHT(C73,2) -> Torre de suspensión tipo SC2 (5°)Tipo SC2-6 | E73: Und | F73: 0 | G73: =VLOOKUP(C73,'[8]Resumen Peso'!$B$1:$D$65536,3,0)*$C$14 -> 9542.355918 | J73: =+VLOOKUP(C73,'[8]Resumen Peso'!$B$1:$D$65536,3,0) -> 5924.746586
B74: 58 | C74: TA220SIR2D2C2592S-3 | D74: =+"Torre de suspensión tipo S"&IF(MID(C74,3,3)="220","C",IF(MID(C74,3,3)="138","S",""))&IF(MID(C74,10,1)="D",2,1)&" (5°)Tipo S"&IF(MID(C74,3,3)="220","C",IF(MID(C74,3,3)="138","S",""))&IF(MID(C74,10,1)="D",2,1)&RIGHT(C74,2) -> Torre de suspensión tipo SC2 (5°)Tipo SC2-3 | E74: Und | F74: 0 | G74: =VLOOKUP(C74,'[8]Resumen Peso'!$B$1:$D$65536,3,0)*$C$14 -> 10917.83064 | J74: =+VLOOKUP(C74,'[8]Resumen Peso'!$B$1:$D$65536,3,0) -> 6778.764112
B75: 59 | C75: TA220SIR2D2C2592S±0 | D75: =+"Torre de suspensión tipo S"&IF(MID(C75,3,3)="220","C",IF(MID(C75,3,3)="138","S",""))&IF(MID(C75,10,1)="D",2,1)&" (5°)Tipo S"&IF(MID(C75,3,3)="220","C",IF(MID(C75,3,3)="138","S",""))&IF(MID(C75,10,1)="D",2,1)&RIGHT(C75,2) -> Torre de suspensión tipo SC2 (5°)Tipo SC2±0 | E75: Und | F75: 0 | G75: =VLOOKUP(C75,'[8]Resumen Peso'!$B$1:$D$65536,3,0)*$C$14 -> 12281.02435 | J75: =+VLOOKUP(C75,'[8]Resumen Peso'!$B$1:$D$65536,3,0) -> 7625.156482
B76: 60 | C76: TA220SIR2D2C2592S+3 | D76: =+"Torre de suspensión tipo S"&IF(MID(C76,3,3)="220","C",IF(MID(C76,3,3)="138","S",""))&IF(MID(C76,10,1)="D",2,1)&" (5°)Tipo S"&IF(MID(C76,3,3)="220","C",IF(MID(C76,3,3)="138","S",""))&IF(MID(C76,10,1)="D",2,1)&RIGHT(C76,2) -> Torre de suspensión tipo SC2 (5°)Tipo SC2+3 | E76: Und | F76: 0 | G76: =VLOOKUP(C76,'[8]Resumen Peso'!$B$1:$D$65536,3,0)*$C$14 -> 13631.93703 | J76: =+VLOOKUP(C76,'[8]Resumen Peso'!$B$1:$D$65536,3,0) -> 8463.923695
B77: 61 | C77: TA220SIR2D2C2592S+6 | D77: =+"Torre de suspensión tipo S"&IF(MID(C77,3,3)="220","C",IF(MID(C77,3,3)="138","S",""))&IF(MID(C77,10,1)="D",2,1)&" (5°)Tipo S"&IF(MID(C77,3,3)="220","C",IF(MID(C77,3,3)="138","S",""))&IF(MID(C77,10,1)="D",2,1)&RIGHT(C77,2) -> Torre de suspensión tipo SC2 (5°)Tipo SC2+6 | E77: Und | F77: 0 | G77: =VLOOKUP(C77,'[8]Resumen Peso'!$B$1:$D$65536,3,0)*$C$14 -> 14982.8497 | J77: =+VLOOKUP(C77,'[8]Resumen Peso'!$B$1:$D$65536,3,0) -> 9302.690908
B78: 62 | C78: TA220SIR2D2C2592A-3 | D78: =+"Torre de ángulo menor tipo A"&IF(MID(C78,3,3)="220","C",IF(MID(C78,3,3)="138","S",""))&IF(MID(C78,10,1)="D",2,1)&" (30°)Tipo A"&IF(MID(C78,3,3)="220","C",IF(MID(C78,3,3)="138","S",""))&IF(MID(C78,10,1)="D",2,1)&RIGHT(C78,2) -> Torre de ángulo menor tipo AC2 (30°)Tipo AC2-3 | E78: Und | F78: 0 | G78: =VLOOKUP(C78,'[8]Resumen Peso'!$B$1:$D$65536,3,0)*$C$14 -> 16796.97806 | J78: =+VLOOKUP(C78,'[8]Resumen Peso'!$B$1:$D$65536,3,0) -> 10429.06377
B79: 63 | C79: TA220SIR2D2C2592A±0 | D79: =+"Torre de ángulo menor tipo A"&IF(MID(C79,3,3)="220","C",IF(MID(C79,3,3)="138","S",""))&IF(MID(C79,10,1)="D",2,1)&" (30°)Tipo A"&IF(MID(C79,3,3)="220","C",IF(MID(C79,3,3)="138","S",""))&IF(MID(C79,10,1)="D",2,1)&RIGHT(C79,2) -> Torre de ángulo menor tipo AC2 (30°)Tipo AC2±0 | E79: Und | F79: 0 | G79: =VLOOKUP(C79,'[8]Resumen Peso'!$B$1:$D$65536,3,0)*$C$14 -> 18642.59496 | J79: =+VLOOKUP(C79,'[8]Resumen Peso'!$B$1:$D$65536,3,0) -> 11574.98754
B80: 64 | C80: TA220SIR2D2C2592A+3 | D80: =+"Torre de ángulo menor tipo A"&IF(MID(C80,3,3)="220","C",IF(MID(C80,3,3)="138","S",""))&IF(MID(C80,10,1)="D",2,1)&" (30°)Tipo A"&IF(MID(C80,3,3)="220","C",IF(MID(C80,3,3)="138","S",""))&IF(MID(C80,10,1)="D",2,1)&RIGHT(C80,2) -> Torre de ángulo menor tipo AC2 (30°)Tipo AC2+3 | E80: Und | F80: 0 | G80: =VLOOKUP(C80,'[8]Resumen Peso'!$B$1:$D$65536,3,0)*$C$14 -> 20488.21186 | J80: =+VLOOKUP(C80,'[8]Resumen Peso'!$B$1:$D$65536,3,0) -> 12720.91131
B81: 65 | C81: TA220SIR2D2C2592B-3 | D81: =+"Torre de ángulo mayor tipo B"&IF(MID(C81,3,3)="220","C",IF(MID(C81,3,3)="138","S",""))&IF(MID(C81,10,1)="D",2,1)&" (65°)Tipo B"&IF(MID(C81,3,3)="220","C",IF(MID(C81,3,3)="138","S",""))&IF(MID(C81,10,1)="D",2,1)&RIGHT(C81,2) -> Torre de ángulo mayor tipo BC2 (65°)Tipo BC2-3 | E81: Und | F81: 0 | G81: =VLOOKUP(C81,'[8]Resumen Peso'!$B$1:$D$65536,3,0)*$C$14 -> 22667.38207 | J81: =+VLOOKUP(C81,'[8]Resumen Peso'!$B$1:$D$65536,3,0) -> 14073.93475
B82: =1+B81 -> 66 | C82: TA220SIR2D2C2592B±0 | D82: =+"Torre de ángulo mayor tipo B"&IF(MID(C82,3,3)="220","C",IF(MID(C82,3,3)="138","S",""))&IF(MID(C82,10,1)="D",2,1)&" (65°)Tipo B"&IF(MID(C82,3,3)="220","C",IF(MID(C82,3,3)="138","S",""))&IF(MID(C82,10,1)="D",2,1)&RIGHT(C82,2) -> Torre de ángulo mayor tipo BC2 (65°)Tipo BC2±0 | E82: Und | F82: 0 | G82: =VLOOKUP(C82,'[8]Resumen Peso'!$B$1:$D$65536,3,0)*$C$14 -> 25242.07357 | J82: =+VLOOKUP(C82,'[8]Resumen Peso'!$B$1:$D$65536,3,0) -> 15672.53313
B83: 67 | C83: TA220SIR2D2C2592B+3 | D83: =+"Torre de ángulo mayor tipo B"&IF(MID(C83,3,3)="220","C",IF(MID(C83,3,3)="138","S",""))&IF(MID(C83,10,1)="D",2,1)&" (65°)Tipo B"&IF(MID(C83,3,3)="220","C",IF(MID(C83,3,3)="138","S",""))&IF(MID(C83,10,1)="D",2,1)&RIGHT(C83,2) -> Torre de ángulo mayor tipo BC2 (65°)Tipo BC2+3 | E83: Und | F83: 0 | G83: =VLOOKUP(C83,'[8]Resumen Peso'!$B$1:$D$65536,3,0)*$C$14 -> 28271.1224 | J83: =+VLOOKUP(C83,'[8]Resumen Peso'!$B$1:$D$65536,3,0) -> 17553.2371
B84: 68 | C84: TA220SIR2D2C2592R-3 | D84: =+"Torre de anclaje, retención intermedia y terminal (15°) Tipo R"&IF(MID(C84,3,3)="220","C",IF(MID(C84,3,3)="138","S",""))&IF(MID(C84,10,1)="D",2,1)&RIGHT(C84,2) -> Torre de anclaje, retención intermedia y terminal (15°) Tipo RC2-3 | E84: Und | F84: 0 | G84: =VLOOKUP(C84,'[8]Resumen Peso'!$B$1:$D$65536,3,0)*$C$14 -> 29185.71846 | J84: =+VLOOKUP(C84,'[8]Resumen Peso'!$B$1:$D$65536,3,0) -> 18121.1
B85: 69 | C85: TA220SIR2D2C2592R±0 | D85: =+"Torre de anclaje, retención intermedia y terminal (15°) Tipo R"&IF(MID(C85,3,3)="220","C",IF(MID(C85,3,3)="138","S",""))&IF(MID(C85,10,1)="D",2,1)&RIGHT(C85,2) -> Torre de anclaje, retención intermedia y terminal (15°) Tipo RC2±0 | E85: Und | F85: 0 | G85: =VLOOKUP(C85,'[8]Resumen Peso'!$B$1:$D$65536,3,0)*$C$14 -> 32537.03284 | J85: =+VLOOKUP(C85,'[8]Resumen Peso'!$B$1:$D$65536,3,0) -> 20201.8952
B86: 70 | C86: TA220SIR2D2C2592R+3 | D86: =+"Torre de anclaje, retención intermedia y terminal (15°) Tipo R"&IF(MID(C86,3,3)="220","C",IF(MID(C86,3,3)="138","S",""))&IF(MID(C86,10,1)="D",2,1)&RIGHT(C86,2) -> Torre de anclaje, retención intermedia y terminal (15°) Tipo RC2+3 | E86: Und | F86: 0 | G86: =VLOOKUP(C86,'[8]Resumen Peso'!$B$1:$D$65536,3,0)*$C$14 -> 35888.34722 | J86: =+VLOOKUP(C86,'[8]Resumen Peso'!$B$1:$D$65536,3,0) -> 22282.69041
B87: 71 | C87: TA220SIR1S2C2726S-6 | D87: =+"Torre de suspensión tipo S"&IF(MID(C87,3,3)="220","C",IF(MID(C87,3,3)="138","S",""))&IF(MID(C87,10,1)="D",2,1)&" (5°)Tipo S"&IF(MID(C87,3,3)="220","C",IF(MID(C87,3,3)="138","S",""))&IF(MID(C87,10,1)="D",2,1)&RIGHT(C87,2) -> Torre de suspensión tipo SC1 (5°)Tipo SC1-6 | E87: Und | F87: 0 | G87: =VLOOKUP(C87,'[8]Resumen Peso'!$B$1:$D$65536,3,0)*$C$14 -> 7428.277543 | J87: =+VLOOKUP(C87,'[8]Resumen Peso'!$B$1:$D$65536,3,0) -> 4612.137966
B88: 72 | C88: TA220SIR1S2C2726S-3 | D88: =+"Torre de suspensión tipo S"&IF(MID(C88,3,3)="220","C",IF(MID(C88,3,3)="138","S",""))&IF(MID(C88,10,1)="D",2,1)&" (5°)Tipo S"&IF(MID(C88,3,3)="220","C",IF(MID(C88,3,3)="138","S",""))&IF(MID(C88,10,1)="D",2,1)&RIGHT(C88,2) -> Torre de suspensión tipo SC1 (5°)Tipo SC1-3 | E88: Und | F88: 0 | G88: =VLOOKUP(C88,'[8]Resumen Peso'!$B$1:$D$65536,3,0)*$C$14 -> 8499.020252 | J88: =+VLOOKUP(C88,'[8]Resumen Peso'!$B$1:$D$65536,3,0) -> 5276.950646
B89: 73 | C89: TA220SIR1S2C2726S±0 | D89: =+"Torre de suspensión tipo S"&IF(MID(C89,3,3)="220","C",IF(MID(C89,3,3)="138","S",""))&IF(MID(C89,10,1)="D",2,1)&" (5°)Tipo S"&IF(MID(C89,3,3)="220","C",IF(MID(C89,3,3)="138","S",""))&IF(MID(C89,10,1)="D",2,1)&RIGHT(C89,2) -> Torre de suspensión tipo SC1 (5°)Tipo SC1±0 | E89: Und | F89: 0 | G89: =VLOOKUP(C89,'[8]Resumen Peso'!$B$1:$D$65536,3,0)*$C$14 -> 9560.202759 | J89: =+VLOOKUP(C89,'[8]Resumen Peso'!$B$1:$D$65536,3,0) -> 5935.827499
B90: 74 | C90: TA220SIR1S2C2726S+3 | D90: =+"Torre de suspensión tipo S"&IF(MID(C90,3,3)="220","C",IF(MID(C90,3,3)="138","S",""))&IF(MID(C90,10,1)="D",2,1)&" (5°)Tipo S"&IF(MID(C90,3,3)="220","C",IF(MID(C90,3,3)="138","S",""))&IF(MID(C90,10,1)="D",2,1)&RIGHT(C90,2) -> Torre de suspensión tipo SC1 (5°)Tipo SC1+3 | E90: Und | F90: 0 | G90: =VLOOKUP(C90,'[8]Resumen Peso'!$B$1:$D$65536,3,0)*$C$14 -> 10611.82506 | J90: =+VLOOKUP(C90,'[8]Resumen Peso'!$B$1:$D$65536,3,0) -> 6588.768524
B91: 75 | C91: TA220SIR1S2C2726S+6 | D91: =+"Torre de suspensión tipo S"&IF(MID(C91,3,3)="220","C",IF(MID(C91,3,3)="138","S",""))&IF(MID(C91,10,1)="D",2,1)&" (5°)Tipo S"&IF(MID(C91,3,3)="220","C",IF(MID(C91,3,3)="138","S",""))&IF(MID(C91,10,1)="D",2,1)&RIGHT(C91,2) -> Torre de suspensión tipo SC1 (5°)Tipo SC1+6 | E91: Und | F91: 0 | G91: =VLOOKUP(C91,'[8]Resumen Peso'!$B$1:$D$65536,3,0)*$C$14 -> 11663.44737 | J91: =+VLOOKUP(C91,'[8]Resumen Peso'!$B$1:$D$65536,3,0) -> 7241.709548
B92: 76 | C92: TA220SIR1S2C2726A-3 | D92: =+"Torre de ángulo menor tipo A"&IF(MID(C92,3,3)="220","C",IF(MID(C92,3,3)="138","S",""))&IF(MID(C92,10,1)="D",2,1)&" (30°)Tipo A"&IF(MID(C92,3,3)="220","C",IF(MID(C92,3,3)="138","S",""))&IF(MID(C92,10,1)="D",2,1)&RIGHT(C92,2) -> Torre de ángulo menor tipo AC1 (30°)Tipo AC1-3 | E92: Und | F92: 0 | G92: =VLOOKUP(C92,'[8]Resumen Peso'!$B$1:$D$65536,3,0)*$C$14 -> 13075.6614 | J92: =+VLOOKUP(C92,'[8]Resumen Peso'!$B$1:$D$65536,3,0) -> 8118.538115
B93: 77 | C93: TA220SIR1S2C2726A±0 | D93: =+"Torre de ángulo menor tipo A"&IF(MID(C93,3,3)="220","C",IF(MID(C93,3,3)="138","S",""))&IF(MID(C93,10,1)="D",2,1)&" (30°)Tipo A"&IF(MID(C93,3,3)="220","C",IF(MID(C93,3,3)="138","S",""))&IF(MID(C93,10,1)="D",2,1)&RIGHT(C93,2) -> Torre de ángulo menor tipo AC1 (30°)Tipo AC1±0 | E93: Und | F93: 0 | G93: =VLOOKUP(C93,'[8]Resumen Peso'!$B$1:$D$65536,3,0)*$C$14 -> 14512.38779 | J93: =+VLOOKUP(C93,'[8]Resumen Peso'!$B$1:$D$65536,3,0) -> 9010.586143
B94: 78 | C94: TA220SIR1S2C2726A+3 | D94: =+"Torre de ángulo menor tipo A"&IF(MID(C94,3,3)="220","C",IF(MID(C94,3,3)="138","S",""))&IF(MID(C94,10,1)="D",2,1)&" (30°)Tipo A"&IF(MID(C94,3,3)="220","C",IF(MID(C94,3,3)="138","S",""))&IF(MID(C94,10,1)="D",2,1)&RIGHT(C94,2) -> Torre de ángulo menor tipo AC1 (30°)Tipo AC1+3 | E94: Und | F94: 0 | G94: =VLOOKUP(C94,'[8]Resumen Peso'!$B$1:$D$65536,3,0)*$C$14 -> 15949.11418 | J94: =+VLOOKUP(C94,'[8]Resumen Peso'!$B$1:$D$65536,3,0) -> 9902.634171
B95: 79 | C95: TA220SIR1S2C2726B-3 | D95: =+"Torre de ángulo mayor tipo B"&IF(MID(C95,3,3)="220","C",IF(MID(C95,3,3)="138","S",""))&IF(MID(C95,10,1)="D",2,1)&" (65°)Tipo B"&IF(MID(C95,3,3)="220","C",IF(MID(C95,3,3)="138","S",""))&IF(MID(C95,10,1)="D",2,1)&RIGHT(C95,2) -> Torre de ángulo mayor tipo BC1 (65°)Tipo BC1-3 | E95: Und | F95: 0 | G95: =VLOOKUP(C95,'[8]Resumen Peso'!$B$1:$D$65536,3,0)*$C$14 -> 17645.49621 | J95: =+VLOOKUP(C95,'[8]Resumen Peso'!$B$1:$D$65536,3,0) -> 10955.89961
B96: 80 | C96: TA220SIR1S2C2726B±0 | D96: =+"Torre de ángulo mayor tipo B"&IF(MID(C96,3,3)="220","C",IF(MID(C96,3,3)="138","S",""))&IF(MID(C96,10,1)="D",2,1)&" (65°)Tipo B"&IF(MID(C96,3,3)="220","C",IF(MID(C96,3,3)="138","S",""))&IF(MID(C96,10,1)="D",2,1)&RIGHT(C96,2) -> Torre de ángulo mayor tipo BC1 (65°)Tipo BC1±0 | E96: Und | F96: 0 | G96: =VLOOKUP(C96,'[8]Resumen Peso'!$B$1:$D$65536,3,0)*$C$14 -> 19649.77306 | J96: =+VLOOKUP(C96,'[8]Resumen Peso'!$B$1:$D$65536,3,0) -> 12200.33364
B97: 81 | C97: TA220SIR1S2C2726B+3 | D97: =+"Torre de ángulo mayor tipo B"&IF(MID(C97,3,3)="220","C",IF(MID(C97,3,3)="138","S",""))&IF(MID(C97,10,1)="D",2,1)&" (65°)Tipo B"&IF(MID(C97,3,3)="220","C",IF(MID(C97,3,3)="138","S",""))&IF(MID(C97,10,1)="D",2,1)&RIGHT(C97,2) -> Torre de ángulo mayor tipo BC1 (65°)Tipo BC1+3 | E97: Und | F97: 0 | G97: =VLOOKUP(C97,'[8]Resumen Peso'!$B$1:$D$65536,3,0)*$C$14 -> 22007.74583 | J97: =+VLOOKUP(C97,'[8]Resumen Peso'!$B$1:$D$65536,3,0) -> 13664.37367
B98: 82 | C98: TA220SIR1S2C2726R-3 | D98: =+"Torre de anclaje, retención intermedia y terminal (15°) Tipo R"&IF(MID(C98,3,3)="220","C",IF(MID(C98,3,3)="138","S",""))&IF(MID(C98,10,1)="D",2,1)&RIGHT(C98,2) -> Torre de anclaje, retención intermedia y terminal (15°) Tipo RC1-3 | E98: Und | F98: 0 | G98: =VLOOKUP(C98,'[8]Resumen Peso'!$B$1:$D$65536,3,0)*$C$14 -> 22719.71606 | J98: =+VLOOKUP(C98,'[8]Resumen Peso'!$B$1:$D$65536,3,0) -> 14106.42836
B99: 83 | C99: TA220SIR1S2C2726R±0 | D99: =+"Torre de anclaje, retención intermedia y terminal (15°) Tipo R"&IF(MID(C99,3,3)="220","C",IF(MID(C99,3,3)="138","S",""))&IF(MID(C99,10,1)="D",2,1)&RIGHT(C99,2) -> Torre de anclaje, retención intermedia y terminal (15°) Tipo RC1±0 | E99: Und | F99: 0 | G99: =VLOOKUP(C99,'[8]Resumen Peso'!$B$1:$D$65536,3,0)*$C$14 -> 25328.55748 | J99: =+VLOOKUP(C99,'[8]Resumen Peso'!$B$1:$D$65536,3,0) -> 15726.23006
B100: 84 | C100: TA220SIR1S2C2726R+3 | D100: =+"Torre de anclaje, retención intermedia y terminal (15°) Tipo R"&IF(MID(C100,3,3)="220","C",IF(MID(C100,3,3)="138","S",""))&IF(MID(C100,10,1)="D",2,1)&RIGHT(C100,2) -> Torre de anclaje, retención intermedia y terminal (15°) Tipo RC1+3 | E100: Und | F100: 0 | G100: =VLOOKUP(C100,'[8]Resumen Peso'!$B$1:$D$65536,3,0)*$C$14 -> 27937.3989 | J100: =+VLOOKUP(C100,'[8]Resumen Peso'!$B$1:$D$65536,3,0) -> 17346.03175
B101: 85 | C101: TA220SIR1S2C2592S-6 | D101: =+"Torre de suspensión tipo S"&IF(MID(C101,3,3)="220","C",IF(MID(C101,3,3)="138","S",""))&IF(MID(C101,10,1)="D",2,1)&" (5°)Tipo S"&IF(MID(C101,3,3)="220","C",IF(MID(C101,3,3)="138","S",""))&IF(MID(C101,10,1)="D",2,1)&RIGHT(C101,2) -> Torre de suspensión tipo SC1 (5°)Tipo SC1-6 | E101: Und | F101: 0 | G101: =VLOOKUP(C101,'[8]Resumen Peso'!$B$1:$D$65536,3,0)*$C$14 -> 6773.600652 | J101: =+VLOOKUP(C101,'[8]Resumen Peso'!$B$1:$D$65536,3,0) -> 4205.656097
B102: 86 | C102: TA220SIR1S2C2592S-3 | D102: =+"Torre de suspensión tipo S"&IF(MID(C102,3,3)="220","C",IF(MID(C102,3,3)="138","S",""))&IF(MID(C102,10,1)="D",2,1)&" (5°)Tipo S"&IF(MID(C102,3,3)="220","C",IF(MID(C102,3,3)="138","S",""))&IF(MID(C102,10,1)="D",2,1)&RIGHT(C102,2) -> Torre de suspensión tipo SC1 (5°)Tipo SC1-3 | E102: Und | F102: 0 | G102: =VLOOKUP(C102,'[8]Resumen Peso'!$B$1:$D$65536,3,0)*$C$14 -> 7749.975521 | J102: =+VLOOKUP(C102,'[8]Resumen Peso'!$B$1:$D$65536,3,0) -> 4811.876795
B103: 87 | C103: TA220SIR1S2C2592S±0 | D103: =+"Torre de suspensión tipo S"&IF(MID(C103,3,3)="220","C",IF(MID(C103,3,3)="138","S",""))&IF(MID(C103,10,1)="D",2,1)&" (5°)Tipo S"&IF(MID(C103,3,3)="220","C",IF(MID(C103,3,3)="138","S",""))&IF(MID(C103,10,1)="D",2,1)&RIGHT(C103,2) -> Torre de suspensión tipo SC1 (5°)Tipo SC1±0 | E103: Und | F103: 0 | G103: =VLOOKUP(C103,'[8]Resumen Peso'!$B$1:$D$65536,3,0)*$C$14 -> 8717.632757 | J103: =+VLOOKUP(C103,'[8]Resumen Peso'!$B$1:$D$65536,3,0) -> 5412.684809
B104: 88 | C104: TA220SIR1S2C2592S+3 | D104: =+"Torre de suspensión tipo S"&IF(MID(C104,3,3)="220","C",IF(MID(C104,3,3)="138","S",""))&IF(MID(C104,10,1)="D",2,1)&" (5°)Tipo S"&IF(MID(C104,3,3)="220","C",IF(MID(C104,3,3)="138","S",""))&IF(MID(C104,10,1)="D",2,1)&RIGHT(C104,2) -> Torre de suspensión tipo SC1 (5°)Tipo SC1+3 | E104: Und | F104: 0 | G104: =VLOOKUP(C104,'[8]Resumen Peso'!$B$1:$D$65536,3,0)*$C$14 -> 9676.57236 | J104: =+VLOOKUP(C104,'[8]Resumen Peso'!$B$1:$D$65536,3,0) -> 6008.080138
B105: 89 | C105: TA220SIR1S2C2592S+6 | D105: =+"Torre de suspensión tipo S"&IF(MID(C105,3,3)="220","C",IF(MID(C105,3,3)="138","S",""))&IF(MID(C105,10,1)="D",2,1)&" (5°)Tipo S"&IF(MID(C105,3,3)="220","C",IF(MID(C105,3,3)="138","S",""))&IF(MID(C105,10,1)="D",2,1)&RIGHT(C105,2) -> Torre de suspensión tipo SC1 (5°)Tipo SC1+6 | E105: Und | F105: 0 | G105: =VLOOKUP(C105,'[8]Resumen Peso'!$B$1:$D$65536,3,0)*$C$14 -> 10635.51196 | J105: =+VLOOKUP(C105,'[8]Resumen Peso'!$B$1:$D$65536,3,0) -> 6603.475467
B106: 90 | C106: TA220SIR1S2C2592A-3 | D106: =+"Torre de ángulo menor tipo A"&IF(MID(C106,3,3)="220","C",IF(MID(C106,3,3)="138","S",""))&IF(MID(C106,10,1)="D",2,1)&" (30°)Tipo A"&IF(MID(C106,3,3)="220","C",IF(MID(C106,3,3)="138","S",""))&IF(MID(C106,10,1)="D",2,1)&RIGHT(C106,2) -> Torre de ángulo menor tipo AC1 (30°)Tipo AC1-3 | E106: Und | F106: 0 | G106: =VLOOKUP(C106,'[8]Resumen Peso'!$B$1:$D$65536,3,0)*$C$14 -> 11923.26324 | J106: =+VLOOKUP(C106,'[8]Resumen Peso'!$B$1:$D$65536,3,0) -> 7403.026442
B107: 91 | C107: TA220SIR1S2C2592A±0 | D107: =+"Torre de ángulo menor tipo A"&IF(MID(C107,3,3)="220","C",IF(MID(C107,3,3)="138","S",""))&IF(MID(C107,10,1)="D",2,1)&" (30°)Tipo A"&IF(MID(C107,3,3)="220","C",IF(MID(C107,3,3)="138","S",""))&IF(MID(C107,10,1)="D",2,1)&RIGHT(C107,2) -> Torre de ángulo menor tipo AC1 (30°)Tipo AC1±0 | E107: Und | F107: 0 | G107: =VLOOKUP(C107,'[8]Resumen Peso'!$B$1:$D$65536,3,0)*$C$14 -> 13233.36653 | J107: =+VLOOKUP(C107,'[8]Resumen Peso'!$B$1:$D$65536,3,0) -> 8216.45554
B108: 92 | C108: TA220SIR1S2C2592A+3 | D108: =+"Torre de ángulo menor tipo A"&IF(MID(C108,3,3)="220","C",IF(MID(C108,3,3)="138","S",""))&IF(MID(C108,10,1)="D",2,1)&" (30°)Tipo A"&IF(MID(C108,3,3)="220","C",IF(MID(C108,3,3)="138","S",""))&IF(MID(C108,10,1)="D",2,1)&RIGHT(C108,2) -> Torre de ángulo menor tipo AC1 (30°)Tipo AC1+3 | E108: Und | F108: 0 | G108: =VLOOKUP(C108,'[8]Resumen Peso'!$B$1:$D$65536,3,0)*$C$14 -> 14543.46981 | J108: =+VLOOKUP(C108,'[8]Resumen Peso'!$B$1:$D$65536,3,0) -> 9029.884638
B109: 93 | C109: TA220SIR1S2C2592B-3 | D109: =+"Torre de ángulo mayor tipo B"&IF(MID(C109,3,3)="220","C",IF(MID(C109,3,3)="138","S",""))&IF(MID(C109,10,1)="D",2,1)&" (65°)Tipo B"&IF(MID(C109,3,3)="220","C",IF(MID(C109,3,3)="138","S",""))&IF(MID(C109,10,1)="D",2,1)&RIGHT(C109,2) -> Torre de ángulo mayor tipo BC1 (65°)Tipo BC1-3 | E109: Und | F109: 0 | G109: =VLOOKUP(C109,'[8]Resumen Peso'!$B$1:$D$65536,3,0)*$C$14 -> 16090.34449 | J109: =+VLOOKUP(C109,'[8]Resumen Peso'!$B$1:$D$65536,3,0) -> 9990.322559
B110: 94 | C110: TA220SIR1S2C2592B±0 | D110: =+"Torre de ángulo mayor tipo B"&IF(MID(C110,3,3)="220","C",IF(MID(C110,3,3)="138","S",""))&IF(MID(C110,10,1)="D",2,1)&" (65°)Tipo B"&IF(MID(C110,3,3)="220","C",IF(MID(C110,3,3)="138","S",""))&IF(MID(C110,10,1)="D",2,1)&RIGHT(C110,2) -> Torre de ángulo mayor tipo BC1 (65°)Tipo BC1±0 | E110: Und | F110: 0 | G110: =VLOOKUP(C110,'[8]Resumen Peso'!$B$1:$D$65536,3,0)*$C$14 -> 17917.97827 | J110: =+VLOOKUP(C110,'[8]Resumen Peso'!$B$1:$D$65536,3,0) -> 11125.0808
B111: 95 | C111: TA220SIR1S2C2592B+3 | D111: =+"Torre de ángulo mayor tipo B"&IF(MID(C111,3,3)="220","C",IF(MID(C111,3,3)="138","S",""))&IF(MID(C111,10,1)="D",2,1)&" (65°)Tipo B"&IF(MID(C111,3,3)="220","C",IF(MID(C111,3,3)="138","S",""))&IF(MID(C111,10,1)="D",2,1)&RIGHT(C111,2) -> Torre de ángulo mayor tipo BC1 (65°)Tipo BC1+3 | E111: Und | F111: 0 | G111: =VLOOKUP(C111,'[8]Resumen Peso'!$B$1:$D$65536,3,0)*$C$14 -> 20068.13567 | J111: =+VLOOKUP(C111,'[8]Resumen Peso'!$B$1:$D$65536,3,0) -> 12460.0905
B112: 96 | C112: TA220SIR1S2C2592R-3 | D112: =+"Torre de anclaje, retención intermedia y terminal (15°) Tipo R"&IF(MID(C112,3,3)="220","C",IF(MID(C112,3,3)="138","S",""))&IF(MID(C112,10,1)="D",2,1)&RIGHT(C112,2) -> Torre de anclaje, retención intermedia y terminal (15°) Tipo RC1-3 | E112: Und | F112: 0 | G112: =VLOOKUP(C112,'[8]Resumen Peso'!$B$1:$D$65536,3,0)*$C$14 -> 20717.35777 | J112: =+VLOOKUP(C112,'[8]Resumen Peso'!$B$1:$D$65536,3,0) -> 12863.18555
B113: 97 | C113: TA220SIR1S2C2592R±0 | D113: =+"Torre de anclaje, retención intermedia y terminal (15°) Tipo R"&IF(MID(C113,3,3)="220","C",IF(MID(C113,3,3)="138","S",""))&IF(MID(C113,10,1)="D",2,1)&RIGHT(C113,2) -> Torre de anclaje, retención intermedia y terminal (15°) Tipo RC1±0 | E113: Und | F113: 0 | G113: =VLOOKUP(C113,'[8]Resumen Peso'!$B$1:$D$65536,3,0)*$C$14 -> 23096.274 | J113: =+VLOOKUP(C113,'[8]Resumen Peso'!$B$1:$D$65536,3,0) -> 14340.22915
B114: 98 | C114: TA220SIR1S2C2592R+3 | D114: =+"Torre de anclaje, retención intermedia y terminal (15°) Tipo R"&IF(MID(C114,3,3)="220","C",IF(MID(C114,3,3)="138","S",""))&IF(MID(C114,10,1)="D",2,1)&RIGHT(C114,2) -> Torre de anclaje, retención intermedia y terminal (15°) Tipo RC1+3 | E114: Und | F114: 0 | G114: =VLOOKUP(C114,'[8]Resumen Peso'!$B$1:$D$65536,3,0)*$C$14 -> 25475.19022 | J114: =+VLOOKUP(C114,'[8]Resumen Peso'!$B$1:$D$65536,3,0) -> 15817.27276
B115: 99 | C115: TA220SIR1S1C2726S-6 | D115: =+"Torre de suspensión tipo S"&IF(MID(C115,3,3)="220","C",IF(MID(C115,3,3)="138","S",""))&IF(MID(C115,10,1)="D",2,1)&" (5°)Tipo S"&IF(MID(C115,3,3)="220","C",IF(MID(C115,3,3)="138","S",""))&IF(MID(C115,10,1)="D",2,1)&RIGHT(C115,2) -> Torre de suspensión tipo SC1 (5°)Tipo SC1-6 | E115: Und | F115: 0 | G115: =VLOOKUP(C115,'[8]Resumen Peso'!$B$1:$D$65536,3,0)*$C$14 -> 8331.37657 | J115: =+VLOOKUP(C115,'[8]Resumen Peso'!$B$1:$D$65536,3,0) -> 5172.862479
B116: 100 | C116: TA220SIR1S1C2726S-3 | D116: =+"Torre de suspensión tipo S"&IF(MID(C116,3,3)="220","C",IF(MID(C116,3,3)="138","S",""))&IF(MID(C116,10,1)="D",2,1)&" (5°)Tipo S"&IF(MID(C116,3,3)="220","C",IF(MID(C116,3,3)="138","S",""))&IF(MID(C116,10,1)="D",2,1)&RIGHT(C116,2) -> Torre de suspensión tipo SC1 (5°)Tipo SC1-3 | E116: Und | F116: 0 | G116: =VLOOKUP(C116,'[8]Resumen Peso'!$B$1:$D$65536,3,0)*$C$14 -> 9532.295715 | J116: =+VLOOKUP(C116,'[8]Resumen Peso'!$B$1:$D$65536,3,0) -> 5918.500314
B117: 101 | C117: TA220SIR1S1C2726S±0 | D117: =+"Torre de suspensión tipo S"&IF(MID(C117,3,3)="220","C",IF(MID(C117,3,3)="138","S",""))&IF(MID(C117,10,1)="D",2,1)&" (5°)Tipo S"&IF(MID(C117,3,3)="220","C",IF(MID(C117,3,3)="138","S",""))&IF(MID(C117,10,1)="D",2,1)&RIGHT(C117,2) -> Torre de suspensión tipo SC1 (5°)Tipo SC1±0 | E117: Und | F117: 0 | G117: =VLOOKUP(C117,'[8]Resumen Peso'!$B$1:$D$65536,3,0)*$C$14 -> 10722.49237 | J117: =+VLOOKUP(C117,'[8]Resumen Peso'!$B$1:$D$65536,3,0) -> 6657.480668
B118: 102 | C118: TA220SIR1S1C2726S+3 | D118: =+"Torre de suspensión tipo S"&IF(MID(C118,3,3)="220","C",IF(MID(C118,3,3)="138","S",""))&IF(MID(C118,10,1)="D",2,1)&" (5°)Tipo S"&IF(MID(C118,3,3)="220","C",IF(MID(C118,3,3)="138","S",""))&IF(MID(C118,10,1)="D",2,1)&RIGHT(C118,2) -> Torre de suspensión tipo SC1 (5°)Tipo SC1+3 | E118: Und | F118: 0 | G118: =VLOOKUP(C118,'[8]Resumen Peso'!$B$1:$D$65536,3,0)*$C$14 -> 11901.96653 | J118: =+VLOOKUP(C118,'[8]Resumen Peso'!$B$1:$D$65536,3,0) -> 7389.803542
B119: 103 | C119: TA220SIR1S1C2726S+6 | D119: =+"Torre de suspensión tipo S"&IF(MID(C119,3,3)="220","C",IF(MID(C119,3,3)="138","S",""))&IF(MID(C119,10,1)="D",2,1)&" (5°)Tipo S"&IF(MID(C119,3,3)="220","C",IF(MID(C119,3,3)="138","S",""))&IF(MID(C119,10,1)="D",2,1)&RIGHT(C119,2) -> Torre de suspensión tipo SC1 (5°)Tipo SC1+6 | E119: Und | F119: 0 | G119: =VLOOKUP(C119,'[8]Resumen Peso'!$B$1:$D$65536,3,0)*$C$14 -> 13081.44069 | J119: =+VLOOKUP(C119,'[8]Resumen Peso'!$B$1:$D$65536,3,0) -> 8122.126415
B120: 104 | C120: TA220SIR1S1C2726A-3 | D120: =+"Torre de ángulo menor tipo A"&IF(MID(C120,3,3)="220","C",IF(MID(C120,3,3)="138","S",""))&IF(MID(C120,10,1)="D",2,1)&" (30°)Tipo A"&IF(MID(C120,3,3)="220","C",IF(MID(C120,3,3)="138","S",""))&IF(MID(C120,10,1)="D",2,1)&RIGHT(C120,2) -> Torre de ángulo menor tipo AC1 (30°)Tipo AC1-3 | E120: Und | F120: 0 | G120: =VLOOKUP(C120,'[8]Resumen Peso'!$B$1:$D$65536,3,0)*$C$14 -> 14665.34582 | J120: =+VLOOKUP(C120,'[8]Resumen Peso'!$B$1:$D$65536,3,0) -> 9105.556145
B121: 105 | C121: TA220SIR1S1C2726A±0 | D121: =+"Torre de ángulo menor tipo A"&IF(MID(C121,3,3)="220","C",IF(MID(C121,3,3)="138","S",""))&IF(MID(C121,10,1)="D",2,1)&" (30°)Tipo A"&IF(MID(C121,3,3)="220","C",IF(MID(C121,3,3)="138","S",""))&IF(MID(C121,10,1)="D",2,1)&RIGHT(C121,2) -> Torre de ángulo menor tipo AC1 (30°)Tipo AC1±0 | E121: Und | F121: 0 | G121: =VLOOKUP(C121,'[8]Resumen Peso'!$B$1:$D$65536,3,0)*$C$14 -> 16276.74341 | J121: =+VLOOKUP(C121,'[8]Resumen Peso'!$B$1:$D$65536,3,0) -> 10106.05565
B122: 106 | C122: TA220SIR1S1C2726A+3 | D122: =+"Torre de ángulo menor tipo A"&IF(MID(C122,3,3)="220","C",IF(MID(C122,3,3)="138","S",""))&IF(MID(C122,10,1)="D",2,1)&" (30°)Tipo A"&IF(MID(C122,3,3)="220","C",IF(MID(C122,3,3)="138","S",""))&IF(MID(C122,10,1)="D",2,1)&RIGHT(C122,2) -> Torre de ángulo menor tipo AC1 (30°)Tipo AC1+3 | E122: Und | F122: 0 | G122: =VLOOKUP(C122,'[8]Resumen Peso'!$B$1:$D$65536,3,0)*$C$14 -> 17888.14101 | J122: =+VLOOKUP(C122,'[8]Resumen Peso'!$B$1:$D$65536,3,0) -> 11106.55516
B123: 107 | C123: TA220SIR1S1C2726B-3 | D123: =+"Torre de ángulo mayor tipo B"&IF(MID(C123,3,3)="220","C",IF(MID(C123,3,3)="138","S",""))&IF(MID(C123,10,1)="D",2,1)&" (65°)Tipo B"&IF(MID(C123,3,3)="220","C",IF(MID(C123,3,3)="138","S",""))&IF(MID(C123,10,1)="D",2,1)&RIGHT(C123,2) -> Torre de ángulo mayor tipo BC1 (65°)Tipo BC1-3 | E123: Und | F123: 0 | G123: =VLOOKUP(C123,'[8]Resumen Peso'!$B$1:$D$65536,3,0)*$C$14 -> 19790.7621 | J123: =+VLOOKUP(C123,'[8]Resumen Peso'!$B$1:$D$65536,3,0) -> 12287.87222
B124: 108 | C124: TA220SIR1S1C2726B±0 | D124: =+"Torre de ángulo mayor tipo B"&IF(MID(C124,3,3)="220","C",IF(MID(C124,3,3)="138","S",""))&IF(MID(C124,10,1)="D",2,1)&" (65°)Tipo B"&IF(MID(C124,3,3)="220","C",IF(MID(C124,3,3)="138","S",""))&IF(MID(C124,10,1)="D",2,1)&RIGHT(C124,2) -> Torre de ángulo mayor tipo BC1 (65°)Tipo BC1±0 | E124: Und | F124: 0 | G124: =VLOOKUP(C124,'[8]Resumen Peso'!$B$1:$D$65536,3,0)*$C$14 -> 22038.71058 | J124: =+VLOOKUP(C124,'[8]Resumen Peso'!$B$1:$D$65536,3,0) -> 13683.59936
B125: 109 | C125: TA220SIR1S1C2726B+3 | D125: =+"Torre de ángulo mayor tipo B"&IF(MID(C125,3,3)="220","C",IF(MID(C125,3,3)="138","S",""))&IF(MID(C125,10,1)="D",2,1)&" (65°)Tipo B"&IF(MID(C125,3,3)="220","C",IF(MID(C125,3,3)="138","S",""))&IF(MID(C125,10,1)="D",2,1)&RIGHT(C125,2) -> Torre de ángulo mayor tipo BC1 (65°)Tipo BC1+3 | E125: Und | F125: 0 | G125: =VLOOKUP(C125,'[8]Resumen Peso'!$B$1:$D$65536,3,0)*$C$14 -> 24683.35585 | J125: =+VLOOKUP(C125,'[8]Resumen Peso'!$B$1:$D$65536,3,0) -> 15325.63128
B126: 110 | C126: TA220SIR1S1C2726R-3 | D126: =+"Torre de anclaje, retención intermedia y terminal (15°) Tipo R"&IF(MID(C126,3,3)="220","C",IF(MID(C126,3,3)="138","S",""))&IF(MID(C126,10,1)="D",2,1)&RIGHT(C126,2) -> Torre de anclaje, retención intermedia y terminal (15°) Tipo RC1-3 | E126: Und | F126: 0 | G126: =VLOOKUP(C126,'[8]Resumen Peso'!$B$1:$D$65536,3,0)*$C$14 -> 25481.88445 | J126: =+VLOOKUP(C126,'[8]Resumen Peso'!$B$1:$D$65536,3,0) -> 15821.42913
B127: 111 | C127: TA220SIR1S1C2726R±0 | D127: =+"Torre de anclaje, retención intermedia y terminal (15°) Tipo R"&IF(MID(C127,3,3)="220","C",IF(MID(C127,3,3)="138","S",""))&IF(MID(C127,10,1)="D",2,1)&RIGHT(C127,2) -> Torre de anclaje, retención intermedia y terminal (15°) Tipo RC1±0 | E127: Und | F127: 0 | G127: =VLOOKUP(C127,'[8]Resumen Peso'!$B$1:$D$65536,3,0)*$C$14 -> 28407.89794 | J127: =+VLOOKUP(C127,'[8]Resumen Peso'!$B$1:$D$65536,3,0) -> 17638.15957
B128: 112 | C128: TA220SIR1S1C2726R+3 | D128: =+"Torre de anclaje, retención intermedia y terminal (15°) Tipo R"&IF(MID(C128,3,3)="220","C",IF(MID(C128,3,3)="138","S",""))&IF(MID(C128,10,1)="D",2,1)&RIGHT(C128,2) -> Torre de anclaje, retención intermedia y terminal (15°) Tipo RC1+3 | E128: Und | F128: 0 | G128: =VLOOKUP(C128,'[8]Resumen Peso'!$B$1:$D$65536,3,0)*$C$14 -> 31333.91143 | J128: =+VLOOKUP(C128,'[8]Resumen Peso'!$B$1:$D$65536,3,0) -> 19454.89001
B129: 113 | C129: TA220SIR1S1C2592S-6 | D129: =+"Torre de suspensión tipo S"&IF(MID(C129,3,3)="220","C",IF(MID(C129,3,3)="138","S",""))&IF(MID(C129,10,1)="D",2,1)&" (5°)Tipo S"&IF(MID(C129,3,3)="220","C",IF(MID(C129,3,3)="138","S",""))&IF(MID(C129,10,1)="D",2,1)&RIGHT(C129,2) -> Torre de suspensión tipo SC1 (5°)Tipo SC1-6 | E129: Und | F129: 0 | G129: =VLOOKUP(C129,'[8]Resumen Peso'!$B$1:$D$65536,3,0)*$C$14 -> 7692.679603 | J129: =+VLOOKUP(C129,'[8]Resumen Peso'!$B$1:$D$65536,3,0) -> 4776.302373
B130: 114 | C130: TA220SIR1S1C2592S-3 | D130: =+"Torre de suspensión tipo S"&IF(MID(C130,3,3)="220","C",IF(MID(C130,3,3)="138","S",""))&IF(MID(C130,10,1)="D",2,1)&" (5°)Tipo S"&IF(MID(C130,3,3)="220","C",IF(MID(C130,3,3)="138","S",""))&IF(MID(C130,10,1)="D",2,1)&RIGHT(C130,2) -> Torre de suspensión tipo SC1 (5°)Tipo SC1-3 | E130: Und | F130: 0 | G130: =VLOOKUP(C130,'[8]Resumen Peso'!$B$1:$D$65536,3,0)*$C$14 -> 8801.534321 | J130: =+VLOOKUP(C130,'[8]Resumen Peso'!$B$1:$D$65536,3,0) -> 5464.778391
B131: 115 | C131: TA220SIR1S1C2592S±0 | D131: =+"Torre de suspensión tipo S"&IF(MID(C131,3,3)="220","C",IF(MID(C131,3,3)="138","S",""))&IF(MID(C131,10,1)="D",2,1)&" (5°)Tipo S"&IF(MID(C131,3,3)="220","C",IF(MID(C131,3,3)="138","S",""))&IF(MID(C131,10,1)="D",2,1)&RIGHT(C131,2) -> Torre de suspensión tipo SC1 (5°)Tipo SC1±0 | E131: Und | F131: 0 | G131: =VLOOKUP(C131,'[8]Resumen Peso'!$B$1:$D$65536,3,0)*$C$14 -> 9900.48855 | J131: =+VLOOKUP(C131,'[8]Resumen Peso'!$B$1:$D$65536,3,0) -> 6147.107302
B132: 116 | C132: TA220SIR1S1C2592S+3 | D132: =+"Torre de suspensión tipo S"&IF(MID(C132,3,3)="220","C",IF(MID(C132,3,3)="138","S",""))&IF(MID(C132,10,1)="D",2,1)&" (5°)Tipo S"&IF(MID(C132,3,3)="220","C",IF(MID(C132,3,3)="138","S",""))&IF(MID(C132,10,1)="D",2,1)&RIGHT(C132,2) -> Torre de suspensión tipo SC1 (5°)Tipo SC1+3 | E132: Und | F132: 0 | G132: =VLOOKUP(C132,'[8]Resumen Peso'!$B$1:$D$65536,3,0)*$C$14 -> 10989.54229 | J132: =+VLOOKUP(C132,'[8]Resumen Peso'!$B$1:$D$65536,3,0) -> 6823.289105
B133: 117 | C133: TA220SIR1S1C2592S+6 | D133: =+"Torre de suspensión tipo S"&IF(MID(C133,3,3)="220","C",IF(MID(C133,3,3)="138","S",""))&IF(MID(C133,10,1)="D",2,1)&" (5°)Tipo S"&IF(MID(C133,3,3)="220","C",IF(MID(C133,3,3)="138","S",""))&IF(MID(C133,10,1)="D",2,1)&RIGHT(C133,2) -> Torre de suspensión tipo SC1 (5°)Tipo SC1+6 | E133: Und | F133: 0 | G133: =VLOOKUP(C133,'[8]Resumen Peso'!$B$1:$D$65536,3,0)*$C$14 -> 12078.59603 | J133: =+VLOOKUP(C133,'[8]Resumen Peso'!$B$1:$D$65536,3,0) -> 7499.470908
B134: 118 | C134: TA220SIR1S1C2592A-3 | D134: =+"Torre de ángulo menor tipo A"&IF(MID(C134,3,3)="220","C",IF(MID(C134,3,3)="138","S",""))&IF(MID(C134,10,1)="D",2,1)&" (30°)Tipo A"&IF(MID(C134,3,3)="220","C",IF(MID(C134,3,3)="138","S",""))&IF(MID(C134,10,1)="D",2,1)&RIGHT(C134,2) -> Torre de ángulo menor tipo AC1 (30°)Tipo AC1-3 | E134: Und | F134: 0 | G134: =VLOOKUP(C134,'[8]Resumen Peso'!$B$1:$D$65536,3,0)*$C$14 -> 13541.0764 | J134: =+VLOOKUP(C134,'[8]Resumen Peso'!$B$1:$D$65536,3,0) -> 8407.509305
B135: 119 | C135: TA220SIR1S1C2592A±0 | D135: =+"Torre de ángulo menor tipo A"&IF(MID(C135,3,3)="220","C",IF(MID(C135,3,3)="138","S",""))&IF(MID(C135,10,1)="D",2,1)&" (30°)Tipo A"&IF(MID(C135,3,3)="220","C",IF(MID(C135,3,3)="138","S",""))&IF(MID(C135,10,1)="D",2,1)&RIGHT(C135,2) -> Torre de ángulo menor tipo AC1 (30°)Tipo AC1±0 | E135: Und | F135: 0 | G135: =VLOOKUP(C135,'[8]Resumen Peso'!$B$1:$D$65536,3,0)*$C$14 -> 15028.94162 | J135: =+VLOOKUP(C135,'[8]Resumen Peso'!$B$1:$D$65536,3,0) -> 9331.308884
B136: 120 | C136: TA220SIR1S1C2592A+3 | D136: =+"Torre de ángulo menor tipo A"&IF(MID(C136,3,3)="220","C",IF(MID(C136,3,3)="138","S",""))&IF(MID(C136,10,1)="D",2,1)&" (30°)Tipo A"&IF(MID(C136,3,3)="220","C",IF(MID(C136,3,3)="138","S",""))&IF(MID(C136,10,1)="D",2,1)&RIGHT(C136,2) -> Torre de ángulo menor tipo AC1 (30°)Tipo AC1+3 | E136: Und | F136: 0 | G136: =VLOOKUP(C136,'[8]Resumen Peso'!$B$1:$D$65536,3,0)*$C$14 -> 16516.80684 | J136: =+VLOOKUP(C136,'[8]Resumen Peso'!$B$1:$D$65536,3,0) -> 10255.10846
B137: 121 | C137: TA220SIR1S1C2592B-3 | D137: =+"Torre de ángulo mayor tipo B"&IF(MID(C137,3,3)="220","C",IF(MID(C137,3,3)="138","S",""))&IF(MID(C137,10,1)="D",2,1)&" (65°)Tipo B"&IF(MID(C137,3,3)="220","C",IF(MID(C137,3,3)="138","S",""))&IF(MID(C137,10,1)="D",2,1)&RIGHT(C137,2) -> Torre de ángulo mayor tipo BC1 (65°)Tipo BC1-3 | E137: Und | F137: 0 | G137: =VLOOKUP(C137,'[8]Resumen Peso'!$B$1:$D$65536,3,0)*$C$14 -> 18273.56988 | J137: =+VLOOKUP(C137,'[8]Resumen Peso'!$B$1:$D$65536,3,0) -> 11345.86382
B138: 122 | C138: TA220SIR1S1C2592B±0 | D138: =+"Torre de ángulo mayor tipo B"&IF(MID(C138,3,3)="220","C",IF(MID(C138,3,3)="138","S",""))&IF(MID(C138,10,1)="D",2,1)&" (65°)Tipo B"&IF(MID(C138,3,3)="220","C",IF(MID(C138,3,3)="138","S",""))&IF(MID(C138,10,1)="D",2,1)&RIGHT(C138,2) -> Torre de ángulo mayor tipo BC1 (65°)Tipo BC1±0 | E138: Und | F138: 0 | G138: =VLOOKUP(C138,'[8]Resumen Peso'!$B$1:$D$65536,3,0)*$C$14 -> 20349.18695 | J138: =+VLOOKUP(C138,'[8]Resumen Peso'!$B$1:$D$65536,3,0) -> 12634.59223
B139: 123 | C139: TA220SIR1S1C2592B+3 | D139: =+"Torre de ángulo mayor tipo B"&IF(MID(C139,3,3)="220","C",IF(MID(C139,3,3)="138","S",""))&IF(MID(C139,10,1)="D",2,1)&" (65°)Tipo B"&IF(MID(C139,3,3)="220","C",IF(MID(C139,3,3)="138","S",""))&IF(MID(C139,10,1)="D",2,1)&RIGHT(C139,2) -> Torre de ángulo mayor tipo BC1 (65°)Tipo BC1+3 | E139: Und | F139: 0 | G139: =VLOOKUP(C139,'[8]Resumen Peso'!$B$1:$D$65536,3,0)*$C$14 -> 22791.08939 | J139: =+VLOOKUP(C139,'[8]Resumen Peso'!$B$1:$D$65536,3,0) -> 14150.7433
B140: 124 | C140: TA220SIR1S1C2592R-3 | D140: =+"Torre de anclaje, retención intermedia y terminal (15°) Tipo R"&IF(MID(C140,3,3)="220","C",IF(MID(C140,3,3)="138","S",""))&IF(MID(C140,10,1)="D",2,1)&RIGHT(C140,2) -> Torre de anclaje, retención intermedia y terminal (15°) Tipo RC1-3 | E140: Und | F140: 0 | G140: =VLOOKUP(C140,'[8]Resumen Peso'!$B$1:$D$65536,3,0)*$C$14 -> 23528.40148 | J140: =+VLOOKUP(C140,'[8]Resumen Peso'!$B$1:$D$65536,3,0) -> 14608.53248
B141: 125 | C141: TA220SIR1S1C2592R±0 | D141: =+"Torre de anclaje, retención intermedia y terminal (15°) Tipo R"&IF(MID(C141,3,3)="220","C",IF(MID(C141,3,3)="138","S",""))&IF(MID(C141,10,1)="D",2,1)&RIGHT(C141,2) -> Torre de anclaje, retención intermedia y terminal (15°) Tipo RC1±0 | E141: Und | F141: 0 | G141: =VLOOKUP(C141,'[8]Resumen Peso'!$B$1:$D$65536,3,0)*$C$14 -> 26230.10198 | J141: =+VLOOKUP(C141,'[8]Resumen Peso'!$B$1:$D$65536,3,0) -> 16285.98938
B142: 126 | C142: TA220SIR1S1C2592R+3 | D142: =+"Torre de anclaje, retención intermedia y terminal (15°) Tipo R"&IF(MID(C142,3,3)="220","C",IF(MID(C142,3,3)="138","S",""))&IF(MID(C142,10,1)="D",2,1)&RIGHT(C142,2) -> Torre de anclaje, retención intermedia y terminal (15°) Tipo RC1+3 | E142: Und | F142: 0 | G142: =VLOOKUP(C142,'[8]Resumen Peso'!$B$1:$D$65536,3,0)*$C$14 -> 28931.80248 | J142: =+VLOOKUP(C142,'[8]Resumen Peso'!$B$1:$D$65536,3,0) -> 17963.44629
B143: 127 | C143: TA220SIR1D2C2726S-6 | D143: =+"Torre de suspensión tipo S"&IF(MID(C143,3,3)="220","C",IF(MID(C143,3,3)="138","S",""))&IF(MID(C143,10,1)="D",2,1)&" (5°)Tipo S"&IF(MID(C143,3,3)="220","C",IF(MID(C143,3,3)="138","S",""))&IF(MID(C143,10,1)="D",2,1)&RIGHT(C143,2) -> Torre de suspensión tipo SC2 (5°)Tipo SC2-6 | E143: Und | F143: 0 | G143: =VLOOKUP(C143,'[8]Resumen Peso'!$B$1:$D$65536,3,0)*$C$14 -> 9988.273945 | J143: =+VLOOKUP(C143,'[8]Resumen Peso'!$B$1:$D$65536,3,0) -> 6201.612314
B144: 128 | C144: TA220SIR1D2C2726S-3 | D144: =+"Torre de suspensión tipo S"&IF(MID(C144,3,3)="220","C",IF(MID(C144,3,3)="138","S",""))&IF(MID(C144,10,1)="D",2,1)&" (5°)Tipo S"&IF(MID(C144,3,3)="220","C",IF(MID(C144,3,3)="138","S",""))&IF(MID(C144,10,1)="D",2,1)&RIGHT(C144,2) -> Torre de suspensión tipo SC2 (5°)Tipo SC2-3 | E144: Und | F144: 0 | G144: =VLOOKUP(C144,'[8]Resumen Peso'!$B$1:$D$65536,3,0)*$C$14 -> 11428.02514 | J144: =+VLOOKUP(C144,'[8]Resumen Peso'!$B$1:$D$65536,3,0) -> 7095.538413
B145: 129 | C145: TA220SIR1D2C2726S±0 | D145: =+"Torre de suspensión tipo S"&IF(MID(C145,3,3)="220","C",IF(MID(C145,3,3)="138","S",""))&IF(MID(C145,10,1)="D",2,1)&" (5°)Tipo S"&IF(MID(C145,3,3)="220","C",IF(MID(C145,3,3)="138","S",""))&IF(MID(C145,10,1)="D",2,1)&RIGHT(C145,2) -> Torre de suspensión tipo SC2 (5°)Tipo SC2±0 | E145: Und | F145: 0 | G145: =VLOOKUP(C145,'[8]Resumen Peso'!$B$1:$D$65536,3,0)*$C$14 -> 12854.92142 | J145: =+VLOOKUP(C145,'[8]Resumen Peso'!$B$1:$D$65536,3,0) -> 7981.483029
B146: =1+B145 -> 130 | C146: TA220SIR1D2C2726S+3 | D146: =+"Torre de suspensión tipo S"&IF(MID(C146,3,3)="220","C",IF(MID(C146,3,3)="138","S",""))&IF(MID(C146,10,1)="D",2,1)&" (5°)Tipo S"&IF(MID(C146,3,3)="220","C",IF(MID(C146,3,3)="138","S",""))&IF(MID(C146,10,1)="D",2,1)&RIGHT(C146,2) -> Torre de suspensión tipo SC2 (5°)Tipo SC2+3 | E146: Und | F146: 0 | G146: =VLOOKUP(C146,'[8]Resumen Peso'!$B$1:$D$65536,3,0)*$C$14 -> 14268.96278 | J146: =+VLOOKUP(C146,'[8]Resumen Peso'!$B$1:$D$65536,3,0) -> 8859.446162
B147: 131 | C147: TA220SIR1D2C2726S+6 | D147: =+"Torre de suspensión tipo S"&IF(MID(C147,3,3)="220","C",IF(MID(C147,3,3)="138","S",""))&IF(MID(C147,10,1)="D",2,1)&" (5°)Tipo S"&IF(MID(C147,3,3)="220","C",IF(MID(C147,3,3)="138","S",""))&IF(MID(C147,10,1)="D",2,1)&RIGHT(C147,2) -> Torre de suspensión tipo SC2 (5°)Tipo SC2+6 | E147: Und | F147: 0 | G147: =VLOOKUP(C147,'[8]Resumen Peso'!$B$1:$D$65536,3,0)*$C$14 -> 15683.00414 | J147: =+VLOOKUP(C147,'[8]Resumen Peso'!$B$1:$D$65536,3,0) -> 9737.409295
B148: 132 | C148: TA220SIR1D2C2726A-3 | D148: =+"Torre de ángulo menor tipo A"&IF(MID(C148,3,3)="220","C",IF(MID(C148,3,3)="138","S",""))&IF(MID(C148,10,1)="D",2,1)&" (30°)Tipo A"&IF(MID(C148,3,3)="220","C",IF(MID(C148,3,3)="138","S",""))&IF(MID(C148,10,1)="D",2,1)&RIGHT(C148,2) -> Torre de ángulo menor tipo AC2 (30°)Tipo AC2-3 | E148: Und | F148: 0 | G148: =VLOOKUP(C148,'[8]Resumen Peso'!$B$1:$D$65536,3,0)*$C$14 -> 17581.90742 | J148: =+VLOOKUP(C148,'[8]Resumen Peso'!$B$1:$D$65536,3,0) -> 10916.41801
B149: 133 | C149: TA220SIR1D2C2726A±0 | D149: =+"Torre de ángulo menor tipo A"&IF(MID(C149,3,3)="220","C",IF(MID(C149,3,3)="138","S",""))&IF(MID(C149,10,1)="D",2,1)&" (30°)Tipo A"&IF(MID(C149,3,3)="220","C",IF(MID(C149,3,3)="138","S",""))&IF(MID(C149,10,1)="D",2,1)&RIGHT(C149,2) -> Torre de ángulo menor tipo AC2 (30°)Tipo AC2±0 | E149: Und | F149: 0 | G149: =VLOOKUP(C149,'[8]Resumen Peso'!$B$1:$D$65536,3,0)*$C$14 -> 19513.77072 | J149: =+VLOOKUP(C149,'[8]Resumen Peso'!$B$1:$D$65536,3,0) -> 12115.89124
B150: 134 | C150: TA220SIR1D2C2726A+3 | D150: =+"Torre de ángulo menor tipo A"&IF(MID(C150,3,3)="220","C",IF(MID(C150,3,3)="138","S",""))&IF(MID(C150,10,1)="D",2,1)&" (30°)Tipo A"&IF(MID(C150,3,3)="220","C",IF(MID(C150,3,3)="138","S",""))&IF(MID(C150,10,1)="D",2,1)&RIGHT(C150,2) -> Torre de ángulo menor tipo AC2 (30°)Tipo AC2+3 | E150: Und | F150: 0 | G150: =VLOOKUP(C150,'[8]Resumen Peso'!$B$1:$D$65536,3,0)*$C$14 -> 21445.63402 | J150: =+VLOOKUP(C150,'[8]Resumen Peso'!$B$1:$D$65536,3,0) -> 13315.36447
B151: 135 | C151: TA220SIR1D2C2726B-3 | D151: =+"Torre de ángulo mayor tipo B"&IF(MID(C151,3,3)="220","C",IF(MID(C151,3,3)="138","S",""))&IF(MID(C151,10,1)="D",2,1)&" (65°)Tipo B"&IF(MID(C151,3,3)="220","C",IF(MID(C151,3,3)="138","S",""))&IF(MID(C151,10,1)="D",2,1)&RIGHT(C151,2) -> Torre de ángulo mayor tipo BC2 (65°)Tipo BC2-3 | E151: Und | F151: 0 | G151: =VLOOKUP(C151,'[8]Resumen Peso'!$B$1:$D$65536,3,0)*$C$14 -> 23726.63771 | J151: =+VLOOKUP(C151,'[8]Resumen Peso'!$B$1:$D$65536,3,0) -> 14731.61523
B152: 136 | C152: TA220SIR1D2C2726B±0 | D152: =+"Torre de ángulo mayor tipo B"&IF(MID(C152,3,3)="220","C",IF(MID(C152,3,3)="138","S",""))&IF(MID(C152,10,1)="D",2,1)&" (65°)Tipo B"&IF(MID(C152,3,3)="220","C",IF(MID(C152,3,3)="138","S",""))&IF(MID(C152,10,1)="D",2,1)&RIGHT(C152,2) -> Torre de ángulo mayor tipo BC2 (65°)Tipo BC2±0 | E152: Und | F152: 0 | G152: =VLOOKUP(C152,'[8]Resumen Peso'!$B$1:$D$65536,3,0)*$C$14 -> 26421.64555 | J152: =+VLOOKUP(C152,'[8]Resumen Peso'!$B$1:$D$65536,3,0) -> 16404.91674
B153: 137 | C153: TA220SIR1D2C2726B+3 | D153: =+"Torre de ángulo mayor tipo B"&IF(MID(C153,3,3)="220","C",IF(MID(C153,3,3)="138","S",""))&IF(MID(C153,10,1)="D",2,1)&" (65°)Tipo B"&IF(MID(C153,3,3)="220","C",IF(MID(C153,3,3)="138","S",""))&IF(MID(C153,10,1)="D",2,1)&RIGHT(C153,2) -> Torre de ángulo mayor tipo BC2 (65°)Tipo BC2+3 | E153: Und | F153: 0 | G153: =VLOOKUP(C153,'[8]Resumen Peso'!$B$1:$D$65536,3,0)*$C$14 -> 29592.24302 | J153: =+VLOOKUP(C153,'[8]Resumen Peso'!$B$1:$D$65536,3,0) -> 18373.50674
B154: 138 | C154: TA220SIR1D2C2726R-3 | D154: =+"Torre de anclaje, retención intermedia y terminal (15°) Tipo R"&IF(MID(C154,3,3)="220","C",IF(MID(C154,3,3)="138","S",""))&IF(MID(C154,10,1)="D",2,1)&RIGHT(C154,2) -> Torre de anclaje, retención intermedia y terminal (15°) Tipo RC2-3 | E154: Und | F154: 0 | G154: =VLOOKUP(C154,'[8]Resumen Peso'!$B$1:$D$65536,3,0)*$C$14 -> 30549.5785 | J154: =+VLOOKUP(C154,'[8]Resumen Peso'!$B$1:$D$65536,3,0) -> 18967.90609
B155: 139 | C155: TA220SIR1D2C2726R±0 | D155: =+"Torre de anclaje, retención intermedia y terminal (15°) Tipo R"&IF(MID(C155,3,3)="220","C",IF(MID(C155,3,3)="138","S",""))&IF(MID(C155,10,1)="D",2,1)&RIGHT(C155,2) -> Torre de anclaje, retención intermedia y terminal (15°) Tipo RC2±0 | E155: Und | F155: 0 | G155: =VLOOKUP(C155,'[8]Resumen Peso'!$B$1:$D$65536,3,0)*$C$14 -> 34057.50112 | J155: =+VLOOKUP(C155,'[8]Resumen Peso'!$B$1:$D$65536,3,0) -> 21145.93767
B156: 140 | C156: TA220SIR1D2C2726R+3 | D156: =+"Torre de anclaje, retención intermedia y terminal (15°) Tipo R"&IF(MID(C156,3,3)="220","C",IF(MID(C156,3,3)="138","S",""))&IF(MID(C156,10,1)="D",2,1)&RIGHT(C156,2) -> Torre de anclaje, retención intermedia y terminal (15°) Tipo RC2+3 | E156: Und | F156: 0 | G156: =VLOOKUP(C156,'[8]Resumen Peso'!$B$1:$D$65536,3,0)*$C$14 -> 37565.42373 | J156: =+VLOOKUP(C156,'[8]Resumen Peso'!$B$1:$D$65536,3,0) -> 23323.96925
B157: 141 | C157: TA220SIR1D2C2592S-6 | D157: =+"Torre de suspensión tipo S"&IF(MID(C157,3,3)="220","C",IF(MID(C157,3,3)="138","S",""))&IF(MID(C157,10,1)="D",2,1)&" (5°)Tipo S"&IF(MID(C157,3,3)="220","C",IF(MID(C157,3,3)="138","S",""))&IF(MID(C157,10,1)="D",2,1)&RIGHT(C157,2) -> Torre de suspensión tipo SC2 (5°)Tipo SC2-6 | E157: Und | F157: 0 | G157: =VLOOKUP(C157,'[8]Resumen Peso'!$B$1:$D$65536,3,0)*$C$14 -> 9101.196108 | J157: =+VLOOKUP(C157,'[8]Resumen Peso'!$B$1:$D$65536,3,0) -> 5650.835185
B158: 142 | C158: TA220SIR1D2C2592S-3 | D158: =+"Torre de suspensión tipo S"&IF(MID(C158,3,3)="220","C",IF(MID(C158,3,3)="138","S",""))&IF(MID(C158,10,1)="D",2,1)&" (5°)Tipo S"&IF(MID(C158,3,3)="220","C",IF(MID(C158,3,3)="138","S",""))&IF(MID(C158,10,1)="D",2,1)&RIGHT(C158,2) -> Torre de suspensión tipo SC2 (5°)Tipo SC2-3 | E158: Und | F158: 0 | G158: =VLOOKUP(C158,'[8]Resumen Peso'!$B$1:$D$65536,3,0)*$C$14 -> 10413.08023 | J158: =+VLOOKUP(C158,'[8]Resumen Peso'!$B$1:$D$65536,3,0) -> 6465.369987
B159: 143 | C159: TA220SIR1D2C2592S±0 | D159: =+"Torre de suspensión tipo S"&IF(MID(C159,3,3)="220","C",IF(MID(C159,3,3)="138","S",""))&IF(MID(C159,10,1)="D",2,1)&" (5°)Tipo S"&IF(MID(C159,3,3)="220","C",IF(MID(C159,3,3)="138","S",""))&IF(MID(C159,10,1)="D",2,1)&RIGHT(C159,2) -> Torre de suspensión tipo SC2 (5°)Tipo SC2±0 | E159: Und | F159: 0 | G159: =VLOOKUP(C159,'[8]Resumen Peso'!$B$1:$D$65536,3,0)*$C$14 -> 11713.2511 | J159: =+VLOOKUP(C159,'[8]Resumen Peso'!$B$1:$D$65536,3,0) -> 7272.632156
B160: 144 | C160: TA220SIR1D2C2592S+3 | D160: =+"Torre de suspensión tipo S"&IF(MID(C160,3,3)="220","C",IF(MID(C160,3,3)="138","S",""))&IF(MID(C160,10,1)="D",2,1)&" (5°)Tipo S"&IF(MID(C160,3,3)="220","C",IF(MID(C160,3,3)="138","S",""))&IF(MID(C160,10,1)="D",2,1)&RIGHT(C160,2) -> Torre de suspensión tipo SC2 (5°)Tipo SC2+3 | E160: Und | F160: 0 | G160: =VLOOKUP(C160,'[8]Resumen Peso'!$B$1:$D$65536,3,0)*$C$14 -> 13001.70873 | J160: =+VLOOKUP(C160,'[8]Resumen Peso'!$B$1:$D$65536,3,0) -> 8072.621693
B161: 145 | C161: TA220SIR1D2C2592S+6 | D161: =+"Torre de suspensión tipo S"&IF(MID(C161,3,3)="220","C",IF(MID(C161,3,3)="138","S",""))&IF(MID(C161,10,1)="D",2,1)&" (5°)Tipo S"&IF(MID(C161,3,3)="220","C",IF(MID(C161,3,3)="138","S",""))&IF(MID(C161,10,1)="D",2,1)&RIGHT(C161,2) -> Torre de suspensión tipo SC2 (5°)Tipo SC2+6 | E161: Und | F161: 0 | G161: =VLOOKUP(C161,'[8]Resumen Peso'!$B$1:$D$65536,3,0)*$C$14 -> 14290.16635 | J161: =+VLOOKUP(C161,'[8]Resumen Peso'!$B$1:$D$65536,3,0) -> 8872.61123
B162: 146 | C162: TA220SIR1D2C2592A-3 | D162: =+"Torre de ángulo menor tipo A"&IF(MID(C162,3,3)="220","C",IF(MID(C162,3,3)="138","S",""))&IF(MID(C162,10,1)="D",2,1)&" (30°)Tipo A"&IF(MID(C162,3,3)="220","C",IF(MID(C162,3,3)="138","S",""))&IF(MID(C162,10,1)="D",2,1)&RIGHT(C162,2) -> Torre de ángulo menor tipo AC2 (30°)Tipo AC2-3 | E162: Und | F162: 0 | G162: =VLOOKUP(C162,'[8]Resumen Peso'!$B$1:$D$65536,3,0)*$C$14 -> 16020.42437 | J162: =+VLOOKUP(C162,'[8]Resumen Peso'!$B$1:$D$65536,3,0) -> 9946.909907
B163: 147 | C163: TA220SIR1D2C2592A±0 | D163: =+"Torre de ángulo menor tipo A"&IF(MID(C163,3,3)="220","C",IF(MID(C163,3,3)="138","S",""))&IF(MID(C163,10,1)="D",2,1)&" (30°)Tipo A"&IF(MID(C163,3,3)="220","C",IF(MID(C163,3,3)="138","S",""))&IF(MID(C163,10,1)="D",2,1)&RIGHT(C163,2) -> Torre de ángulo menor tipo AC2 (30°)Tipo AC2±0 | E163: Und | F163: 0 | G163: =VLOOKUP(C163,'[8]Resumen Peso'!$B$1:$D$65536,3,0)*$C$14 -> 17780.71518 | J163: =+VLOOKUP(C163,'[8]Resumen Peso'!$B$1:$D$65536,3,0) -> 11039.85561
B164: 148 | C164: TA220SIR1D2C2592A+3 | D164: =+"Torre de ángulo menor tipo A"&IF(MID(C164,3,3)="220","C",IF(MID(C164,3,3)="138","S",""))&IF(MID(C164,10,1)="D",2,1)&" (30°)Tipo A"&IF(MID(C164,3,3)="220","C",IF(MID(C164,3,3)="138","S",""))&IF(MID(C164,10,1)="D",2,1)&RIGHT(C164,2) -> Torre de ángulo menor tipo AC2 (30°)Tipo AC2+3 | E164: Und | F164: 0 | G164: =VLOOKUP(C164,'[8]Resumen Peso'!$B$1:$D$65536,3,0)*$C$14 -> 19541.00598 | J164: =+VLOOKUP(C164,'[8]Resumen Peso'!$B$1:$D$65536,3,0) -> 12132.80132
B165: 149 | C165: TA220SIR1D2C2592B-3 | D165: =+"Torre de ángulo mayor tipo B"&IF(MID(C165,3,3)="220","C",IF(MID(C165,3,3)="138","S",""))&IF(MID(C165,10,1)="D",2,1)&" (65°)Tipo B"&IF(MID(C165,3,3)="220","C",IF(MID(C165,3,3)="138","S",""))&IF(MID(C165,10,1)="D",2,1)&RIGHT(C165,2) -> Torre de ángulo mayor tipo BC2 (65°)Tipo BC2-3 | E165: Und | F165: 0 | G165: =VLOOKUP(C165,'[8]Resumen Peso'!$B$1:$D$65536,3,0)*$C$14 -> 21619.42934 | J165: =+VLOOKUP(C165,'[8]Resumen Peso'!$B$1:$D$65536,3,0) -> 13423.27212
B166: 150 | C166: TA220SIR1D2C2592B±0 | D166: =+"Torre de ángulo mayor tipo B"&IF(MID(C166,3,3)="220","C",IF(MID(C166,3,3)="138","S",""))&IF(MID(C166,10,1)="D",2,1)&" (65°)Tipo B"&IF(MID(C166,3,3)="220","C",IF(MID(C166,3,3)="138","S",""))&IF(MID(C166,10,1)="D",2,1)&RIGHT(C166,2) -> Torre de ángulo mayor tipo BC2 (65°)Tipo BC2±0 | E166: Und | F166: 0 | G166: =VLOOKUP(C166,'[8]Resumen Peso'!$B$1:$D$65536,3,0)*$C$14 -> 24075.08835 | J166: =+VLOOKUP(C166,'[8]Resumen Peso'!$B$1:$D$65536,3,0) -> 14947.9645
B167: 151 | C167: TA220SIR1D2C2592B+3 | D167: =+"Torre de ángulo mayor tipo B"&IF(MID(C167,3,3)="220","C",IF(MID(C167,3,3)="138","S",""))&IF(MID(C167,10,1)="D",2,1)&" (65°)Tipo B"&IF(MID(C167,3,3)="220","C",IF(MID(C167,3,3)="138","S",""))&IF(MID(C167,10,1)="D",2,1)&RIGHT(C167,2) -> Torre de ángulo mayor tipo BC2 (65°)Tipo BC2+3 | E167: Und | F167: 0 | G167: =VLOOKUP(C167,'[8]Resumen Peso'!$B$1:$D$65536,3,0)*$C$14 -> 26964.09895 | J167: =+VLOOKUP(C167,'[8]Resumen Peso'!$B$1:$D$65536,3,0) -> 16741.72024
B168: 152 | C168: TA220SIR1D2C2592R-3 | D168: =+"Torre de anclaje, retención intermedia y terminal (15°) Tipo R"&IF(MID(C168,3,3)="220","C",IF(MID(C168,3,3)="138","S",""))&IF(MID(C168,10,1)="D",2,1)&RIGHT(C168,2) -> Torre de anclaje, retención intermedia y terminal (15°) Tipo RC2-3 | E168: Und | F168: 0 | G168: =VLOOKUP(C168,'[8]Resumen Peso'!$B$1:$D$65536,3,0)*$C$14 -> 27836.41163 | J168: =+VLOOKUP(C168,'[8]Resumen Peso'!$B$1:$D$65536,3,0) -> 17283.32984
B169: 153 | C169: TA220SIR1D2C2592R±0 | D169: =+"Torre de anclaje, retención intermedia y terminal (15°) Tipo R"&IF(MID(C169,3,3)="220","C",IF(MID(C169,3,3)="138","S",""))&IF(MID(C169,10,1)="D",2,1)&RIGHT(C169,2) -> Torre de anclaje, retención intermedia y terminal (15°) Tipo RC2±0 | E169: Und | F169: 0 | G169: =VLOOKUP(C169,'[8]Resumen Peso'!$B$1:$D$65536,3,0)*$C$14 -> 31032.78888 | J169: =+VLOOKUP(C169,'[8]Resumen Peso'!$B$1:$D$65536,3,0) -> 19267.92624
B170: 154 | C170: TA220SIR1D2C2592R+3 | D170: =+"Torre de anclaje, retención intermedia y terminal (15°) Tipo R"&IF(MID(C170,3,3)="220","C",IF(MID(C170,3,3)="138","S",""))&IF(MID(C170,10,1)="D",2,1)&RIGHT(C170,2) -> Torre de anclaje, retención intermedia y terminal (15°) Tipo RC2+3 | E170: Und | F170: 0 | G170: =VLOOKUP(C170,'[8]Resumen Peso'!$B$1:$D$65536,3,0)*$C$14 -> 34229.16614 | J170: =+VLOOKUP(C170,'[8]Resumen Peso'!$B$1:$D$65536,3,0) -> 21252.52264
B171: 155 | C171: TA220SIR1D1C2726S-6 | D171: =+"Torre de suspensión tipo S"&IF(MID(C171,3,3)="220","C",IF(MID(C171,3,3)="138","S",""))&IF(MID(C171,10,1)="D",2,1)&" (5°)Tipo S"&IF(MID(C171,3,3)="220","C",IF(MID(C171,3,3)="138","S",""))&IF(MID(C171,10,1)="D",2,1)&RIGHT(C171,2) -> Torre de suspensión tipo SC2 (5°)Tipo SC2-6 | E171: Und | F171: 0 | G171: =VLOOKUP(C171,'[8]Resumen Peso'!$B$1:$D$65536,3,0)*$C$14 -> 10816.20344 | J171: =+VLOOKUP(C171,'[8]Resumen Peso'!$B$1:$D$65536,3,0) -> 6715.664869
B172: 156 | C172: TA220SIR1D1C2726S-3 | D172: =+"Torre de suspensión tipo S"&IF(MID(C172,3,3)="220","C",IF(MID(C172,3,3)="138","S",""))&IF(MID(C172,10,1)="D",2,1)&" (5°)Tipo S"&IF(MID(C172,3,3)="220","C",IF(MID(C172,3,3)="138","S",""))&IF(MID(C172,10,1)="D",2,1)&RIGHT(C172,2) -> Torre de suspensión tipo SC2 (5°)Tipo SC2-3 | E172: Und | F172: 0 | G172: =VLOOKUP(C172,'[8]Resumen Peso'!$B$1:$D$65536,3,0)*$C$14 -> 12375.29583 | J172: =+VLOOKUP(C172,'[8]Resumen Peso'!$B$1:$D$65536,3,0) -> 7683.688634
B173: 157 | C173: TA220SIR1D1C2726S±0 | D173: =+"Torre de suspensión tipo S"&IF(MID(C173,3,3)="220","C",IF(MID(C173,3,3)="138","S",""))&IF(MID(C173,10,1)="D",2,1)&" (5°)Tipo S"&IF(MID(C173,3,3)="220","C",IF(MID(C173,3,3)="138","S",""))&IF(MID(C173,10,1)="D",2,1)&RIGHT(C173,2) -> Torre de suspensión tipo SC2 (5°)Tipo SC2±0 | E173: Und | F173: 0 | G173: =VLOOKUP(C173,'[8]Resumen Peso'!$B$1:$D$65536,3,0)*$C$14 -> 13920.46775 | J173: =+VLOOKUP(C173,'[8]Resumen Peso'!$B$1:$D$65536,3,0) -> 8643.06933
B174: 158 | C174: TA220SIR1D1C2726S+3 | D174: =+"Torre de suspensión tipo S"&IF(MID(C174,3,3)="220","C",IF(MID(C174,3,3)="138","S",""))&IF(MID(C174,10,1)="D",2,1)&" (5°)Tipo S"&IF(MID(C174,3,3)="220","C",IF(MID(C174,3,3)="138","S",""))&IF(MID(C174,10,1)="D",2,1)&RIGHT(C174,2) -> Torre de suspensión tipo SC2 (5°)Tipo SC2+3 | E174: Und | F174: 0 | G174: =VLOOKUP(C174,'[8]Resumen Peso'!$B$1:$D$65536,3,0)*$C$14 -> 15451.7192 | J174: =+VLOOKUP(C174,'[8]Resumen Peso'!$B$1:$D$65536,3,0) -> 9593.806956
B175: 159 | C175: TA220SIR1D1C2726S+6 | D175: =+"Torre de suspensión tipo S"&IF(MID(C175,3,3)="220","C",IF(MID(C175,3,3)="138","S",""))&IF(MID(C175,10,1)="D",2,1)&" (5°)Tipo S"&IF(MID(C175,3,3)="220","C",IF(MID(C175,3,3)="138","S",""))&IF(MID(C175,10,1)="D",2,1)&RIGHT(C175,2) -> Torre de suspensión tipo SC2 (5°)Tipo SC2+6 | E175: Und | F175: 0 | G175: =VLOOKUP(C175,'[8]Resumen Peso'!$B$1:$D$65536,3,0)*$C$14 -> 16982.97065 | J175: =+VLOOKUP(C175,'[8]Resumen Peso'!$B$1:$D$65536,3,0) -> 10544.54458
B176: 160 | C176: TA220SIR1D1C2726A-3 | D176: =+"Torre de ángulo menor tipo A"&IF(MID(C176,3,3)="220","C",IF(MID(C176,3,3)="138","S",""))&IF(MID(C176,10,1)="D",2,1)&" (30°)Tipo A"&IF(MID(C176,3,3)="220","C",IF(MID(C176,3,3)="138","S",""))&IF(MID(C176,10,1)="D",2,1)&RIGHT(C176,2) -> Torre de ángulo menor tipo AC2 (30°)Tipo AC2-3 | E176: Und | F176: 0 | G176: =VLOOKUP(C176,'[8]Resumen Peso'!$B$1:$D$65536,3,0)*$C$14 -> 19039.27431 | J176: =+VLOOKUP(C176,'[8]Resumen Peso'!$B$1:$D$65536,3,0) -> 11821.2815
B177: 161 | C177: TA220SIR1D1C2726A±0 | D177: =+"Torre de ángulo menor tipo A"&IF(MID(C177,3,3)="220","C",IF(MID(C177,3,3)="138","S",""))&IF(MID(C177,10,1)="D",2,1)&" (30°)Tipo A"&IF(MID(C177,3,3)="220","C",IF(MID(C177,3,3)="138","S",""))&IF(MID(C177,10,1)="D",2,1)&RIGHT(C177,2) -> Torre de ángulo menor tipo AC2 (30°)Tipo AC2±0 | E177: Und | F177: 0 | G177: =VLOOKUP(C177,'[8]Resumen Peso'!$B$1:$D$65536,3,0)*$C$14 -> 21131.27004 | J177: =+VLOOKUP(C177,'[8]Resumen Peso'!$B$1:$D$65536,3,0) -> 13120.17924
B178: 162 | C178: TA220SIR1D1C2726A+3 | D178: =+"Torre de ángulo menor tipo A"&IF(MID(C178,3,3)="220","C",IF(MID(C178,3,3)="138","S",""))&IF(MID(C178,10,1)="D",2,1)&" (30°)Tipo A"&IF(MID(C178,3,3)="220","C",IF(MID(C178,3,3)="138","S",""))&IF(MID(C178,10,1)="D",2,1)&RIGHT(C178,2) -> Torre de ángulo menor tipo AC2 (30°)Tipo AC2+3 | E178: Und | F178: 0 | G178: =VLOOKUP(C178,'[8]Resumen Peso'!$B$1:$D$65536,3,0)*$C$14 -> 23223.26578 | J178: =+VLOOKUP(C178,'[8]Resumen Peso'!$B$1:$D$65536,3,0) -> 14419.07699
B179: 163 | C179: TA220SIR1D1C2726B-3 | D179: =+"Torre de ángulo mayor tipo B"&IF(MID(C179,3,3)="220","C",IF(MID(C179,3,3)="138","S",""))&IF(MID(C179,10,1)="D",2,1)&" (65°)Tipo B"&IF(MID(C179,3,3)="220","C",IF(MID(C179,3,3)="138","S",""))&IF(MID(C179,10,1)="D",2,1)&RIGHT(C179,2) -> Torre de ángulo mayor tipo BC2 (65°)Tipo BC2-3 | E179: Und | F179: 0 | G179: =VLOOKUP(C179,'[8]Resumen Peso'!$B$1:$D$65536,3,0)*$C$14 -> 25693.34219 | J179: =+VLOOKUP(C179,'[8]Resumen Peso'!$B$1:$D$65536,3,0) -> 15952.72098
B180: 164 | C180: TA220SIR1D1C2726B±0 | D180: =+"Torre de ángulo mayor tipo B"&IF(MID(C180,3,3)="220","C",IF(MID(C180,3,3)="138","S",""))&IF(MID(C180,10,1)="D",2,1)&" (65°)Tipo B"&IF(MID(C180,3,3)="220","C",IF(MID(C180,3,3)="138","S",""))&IF(MID(C180,10,1)="D",2,1)&RIGHT(C180,2) -> Torre de ángulo mayor tipo BC2 (65°)Tipo BC2±0 | E180: Und | F180: 0 | G180: =VLOOKUP(C180,'[8]Resumen Peso'!$B$1:$D$65536,3,0)*$C$14 -> 28611.73964 | J180: =+VLOOKUP(C180,'[8]Resumen Peso'!$B$1:$D$65536,3,0) -> 17764.72269
B181: 165 | C181: TA220SIR1D1C2726B+3 | D181: =+"Torre de ángulo mayor tipo B"&IF(MID(C181,3,3)="220","C",IF(MID(C181,3,3)="138","S",""))&IF(MID(C181,10,1)="D",2,1)&" (65°)Tipo B"&IF(MID(C181,3,3)="220","C",IF(MID(C181,3,3)="138","S",""))&IF(MID(C181,10,1)="D",2,1)&RIGHT(C181,2) -> Torre de ángulo mayor tipo BC2 (65°)Tipo BC2+3 | E181: Und | F181: 0 | G181: =VLOOKUP(C181,'[8]Resumen Peso'!$B$1:$D$65536,3,0)*$C$14 -> 32045.14839 | J181: =+VLOOKUP(C181,'[8]Resumen Peso'!$B$1:$D$65536,3,0) -> 19896.48942
B182: 166 | C182: TA220SIR1D1C2726R-3 | D182: =+"Torre de anclaje, retención intermedia y terminal (15°) Tipo R"&IF(MID(C182,3,3)="220","C",IF(MID(C182,3,3)="138","S",""))&IF(MID(C182,10,1)="D",2,1)&RIGHT(C182,2) -> Torre de anclaje, retención intermedia y terminal (15°) Tipo RC2-3 | E182: Und | F182: 0 | G182: =VLOOKUP(C182,'[8]Resumen Peso'!$B$1:$D$65536,3,0)*$C$14 -> 33081.83755 | J182: =+VLOOKUP(C182,'[8]Resumen Peso'!$B$1:$D$65536,3,0) -> 20540.15862
B183: 167 | C183: TA220SIR1D1C2726R±0 | D183: =+"Torre de anclaje, retención intermedia y terminal (15°) Tipo R"&IF(MID(C183,3,3)="220","C",IF(MID(C183,3,3)="138","S",""))&IF(MID(C183,10,1)="D",2,1)&RIGHT(C183,2) -> Torre de anclaje, retención intermedia y terminal (15°) Tipo RC2±0 | E183: Und | F183: 0 | G183: =VLOOKUP(C183,'[8]Resumen Peso'!$B$1:$D$65536,3,0)*$C$14 -> 36880.53239 | J183: =+VLOOKUP(C183,'[8]Resumen Peso'!$B$1:$D$65536,3,0) -> 22898.72755
B184: 168 | C184: TA220SIR1D1C2726R+3 | D184: =+"Torre de anclaje, retención intermedia y terminal (15°) Tipo R"&IF(MID(C184,3,3)="220","C",IF(MID(C184,3,3)="138","S",""))&IF(MID(C184,10,1)="D",2,1)&RIGHT(C184,2) -> Torre de anclaje, retención intermedia y terminal (15°) Tipo RC2+3 | E184: Und | F184: 0 | G184: =VLOOKUP(C184,'[8]Resumen Peso'!$B$1:$D$65536,3,0)*$C$14 -> 40679.22723 | J184: =+VLOOKUP(C184,'[8]Resumen Peso'!$B$1:$D$65536,3,0) -> 25257.29649
B185: 169 | C185: TA220SIR1D1C2592S-6 | D185: =+"Torre de suspensión tipo S"&IF(MID(C185,3,3)="220","C",IF(MID(C185,3,3)="138","S",""))&IF(MID(C185,10,1)="D",2,1)&" (5°)Tipo S"&IF(MID(C185,3,3)="220","C",IF(MID(C185,3,3)="138","S",""))&IF(MID(C185,10,1)="D",2,1)&RIGHT(C185,2) -> Torre de suspensión tipo SC2 (5°)Tipo SC2-6 | E185: Und | F185: 0 | G185: =VLOOKUP(C185,'[8]Resumen Peso'!$B$1:$D$65536,3,0)*$C$14 -> 9949.77923 | J185: =+VLOOKUP(C185,'[8]Resumen Peso'!$B$1:$D$65536,3,0) -> 6177.711357
B186: 170 | C186: TA220SIR1D1C2592S-3 | D186: =+"Torre de suspensión tipo S"&IF(MID(C186,3,3)="220","C",IF(MID(C186,3,3)="138","S",""))&IF(MID(C186,10,1)="D",2,1)&" (5°)Tipo S"&IF(MID(C186,3,3)="220","C",IF(MID(C186,3,3)="138","S",""))&IF(MID(C186,10,1)="D",2,1)&RIGHT(C186,2) -> Torre de suspensión tipo SC2 (5°)Tipo SC2-3 | E186: Und | F186: 0 | G186: =VLOOKUP(C186,'[8]Resumen Peso'!$B$1:$D$65536,3,0)*$C$14 -> 11383.98164 | J186: =+VLOOKUP(C186,'[8]Resumen Peso'!$B$1:$D$65536,3,0) -> 7068.192274
B187: 171 | C187: TA220SIR1D1C2592S±0 | D187: =+"Torre de suspensión tipo S"&IF(MID(C187,3,3)="220","C",IF(MID(C187,3,3)="138","S",""))&IF(MID(C187,10,1)="D",2,1)&" (5°)Tipo S"&IF(MID(C187,3,3)="220","C",IF(MID(C187,3,3)="138","S",""))&IF(MID(C187,10,1)="D",2,1)&RIGHT(C187,2) -> Torre de suspensión tipo SC2 (5°)Tipo SC2±0 | E187: Und | F187: 0 | G187: =VLOOKUP(C187,'[8]Resumen Peso'!$B$1:$D$65536,3,0)*$C$14 -> 12805.37867 | J187: =+VLOOKUP(C187,'[8]Resumen Peso'!$B$1:$D$65536,3,0) -> 7950.722468
B188: 172 | C188: TA220SIR1D1C2592S+3 | D188: =+"Torre de suspensión tipo S"&IF(MID(C188,3,3)="220","C",IF(MID(C188,3,3)="138","S",""))&IF(MID(C188,10,1)="D",2,1)&" (5°)Tipo S"&IF(MID(C188,3,3)="220","C",IF(MID(C188,3,3)="138","S",""))&IF(MID(C188,10,1)="D",2,1)&RIGHT(C188,2) -> Torre de suspensión tipo SC2 (5°)Tipo SC2+3 | E188: Und | F188: 0 | G188: =VLOOKUP(C188,'[8]Resumen Peso'!$B$1:$D$65536,3,0)*$C$14 -> 14213.97033 | J188: =+VLOOKUP(C188,'[8]Resumen Peso'!$B$1:$D$65536,3,0) -> 8825.301939
B189: 173 | C189: TA220SIR1D1C2592S+6 | D189: =+"Torre de suspensión tipo S"&IF(MID(C189,3,3)="220","C",IF(MID(C189,3,3)="138","S",""))&IF(MID(C189,10,1)="D",2,1)&" (5°)Tipo S"&IF(MID(C189,3,3)="220","C",IF(MID(C189,3,3)="138","S",""))&IF(MID(C189,10,1)="D",2,1)&RIGHT(C189,2) -> Torre de suspensión tipo SC2 (5°)Tipo SC2+6 | E189: Und | F189: 0 | G189: =VLOOKUP(C189,'[8]Resumen Peso'!$B$1:$D$65536,3,0)*$C$14 -> 15622.56198 | J189: =+VLOOKUP(C189,'[8]Resumen Peso'!$B$1:$D$65536,3,0) -> 9699.88141
B190: 174 | C190: TA220SIR1D1C2592A-3 | D190: =+"Torre de ángulo menor tipo A"&IF(MID(C190,3,3)="220","C",IF(MID(C190,3,3)="138","S",""))&IF(MID(C190,10,1)="D",2,1)&" (30°)Tipo A"&IF(MID(C190,3,3)="220","C",IF(MID(C190,3,3)="138","S",""))&IF(MID(C190,10,1)="D",2,1)&RIGHT(C190,2) -> Torre de ángulo menor tipo AC2 (30°)Tipo AC2-3 | E190: Und | F190: 0 | G190: =VLOOKUP(C190,'[8]Resumen Peso'!$B$1:$D$65536,3,0)*$C$14 -> 17514.14691 | J190: =+VLOOKUP(C190,'[8]Resumen Peso'!$B$1:$D$65536,3,0) -> 10874.34623
B191: 175 | C191: TA220SIR1D1C2592A±0 | D191: =+"Torre de ángulo menor tipo A"&IF(MID(C191,3,3)="220","C",IF(MID(C191,3,3)="138","S",""))&IF(MID(C191,10,1)="D",2,1)&" (30°)Tipo A"&IF(MID(C191,3,3)="220","C",IF(MID(C191,3,3)="138","S",""))&IF(MID(C191,10,1)="D",2,1)&RIGHT(C191,2) -> Torre de ángulo menor tipo AC2 (30°)Tipo AC2±0 | E191: Und | F191: 0 | G191: =VLOOKUP(C191,'[8]Resumen Peso'!$B$1:$D$65536,3,0)*$C$14 -> 19438.56483 | J191: =+VLOOKUP(C191,'[8]Resumen Peso'!$B$1:$D$65536,3,0) -> 12069.19671
B192: 176 | C192: TA220SIR1D1C2592A+3 | D192: =+"Torre de ángulo menor tipo A"&IF(MID(C192,3,3)="220","C",IF(MID(C192,3,3)="138","S",""))&IF(MID(C192,10,1)="D",2,1)&" (30°)Tipo A"&IF(MID(C192,3,3)="220","C",IF(MID(C192,3,3)="138","S",""))&IF(MID(C192,10,1)="D",2,1)&RIGHT(C192,2) -> Torre de ángulo menor tipo AC2 (30°)Tipo AC2+3 | E192: Und | F192: 0 | G192: =VLOOKUP(C192,'[8]Resumen Peso'!$B$1:$D$65536,3,0)*$C$14 -> 21362.98275 | J192: =+VLOOKUP(C192,'[8]Resumen Peso'!$B$1:$D$65536,3,0) -> 13264.04718
B193: 177 | C193: TA220SIR1D1C2592B-3 | D193: =+"Torre de ángulo mayor tipo B"&IF(MID(C193,3,3)="220","C",IF(MID(C193,3,3)="138","S",""))&IF(MID(C193,10,1)="D",2,1)&" (65°)Tipo B"&IF(MID(C193,3,3)="220","C",IF(MID(C193,3,3)="138","S",""))&IF(MID(C193,10,1)="D",2,1)&RIGHT(C193,2) -> Torre de ángulo mayor tipo BC2 (65°)Tipo BC2-3 | E193: Und | F193: 0 | G193: =VLOOKUP(C193,'[8]Resumen Peso'!$B$1:$D$65536,3,0)*$C$14 -> 23635.19547 | J193: =+VLOOKUP(C193,'[8]Resumen Peso'!$B$1:$D$65536,3,0) -> 14674.83972
B194: 178 | C194: TA220SIR1D1C2592B±0 | D194: =+"Torre de ángulo mayor tipo B"&IF(MID(C194,3,3)="220","C",IF(MID(C194,3,3)="138","S",""))&IF(MID(C194,10,1)="D",2,1)&" (65°)Tipo B"&IF(MID(C194,3,3)="220","C",IF(MID(C194,3,3)="138","S",""))&IF(MID(C194,10,1)="D",2,1)&RIGHT(C194,2) -> Torre de ángulo mayor tipo BC2 (65°)Tipo BC2±0 | E194: Und | F194: 0 | G194: =VLOOKUP(C194,'[8]Resumen Peso'!$B$1:$D$65536,3,0)*$C$14 -> 26319.81678 | J194: =+VLOOKUP(C194,'[8]Resumen Peso'!$B$1:$D$65536,3,0) -> 16341.69234
B195: 179 | C195: TA220SIR1D1C2592B+3 | D195: =+"Torre de ángulo mayor tipo B"&IF(MID(C195,3,3)="220","C",IF(MID(C195,3,3)="138","S",""))&IF(MID(C195,10,1)="D",2,1)&" (65°)Tipo B"&IF(MID(C195,3,3)="220","C",IF(MID(C195,3,3)="138","S",""))&IF(MID(C195,10,1)="D",2,1)&RIGHT(C195,2) -> Torre de ángulo mayor tipo BC2 (65°)Tipo BC2+3 | E195: Und | F195: 0 | G195: =VLOOKUP(C195,'[8]Resumen Peso'!$B$1:$D$65536,3,0)*$C$14 -> 29478.19479 | J195: =+VLOOKUP(C195,'[8]Resumen Peso'!$B$1:$D$65536,3,0) -> 18302.69542
B196: 180 | C196: TA220SIR1D1C2592R-3 | D196: =+"Torre de anclaje, retención intermedia y terminal (15°) Tipo R"&IF(MID(C196,3,3)="220","C",IF(MID(C196,3,3)="138","S",""))&IF(MID(C196,10,1)="D",2,1)&RIGHT(C196,2) -> Torre de anclaje, retención intermedia y terminal (15°) Tipo RC2-3 | E196: Und | F196: 0 | G196: =VLOOKUP(C196,'[8]Resumen Peso'!$B$1:$D$65536,3,0)*$C$14 -> 30431.84071 | J196: =+VLOOKUP(C196,'[8]Resumen Peso'!$B$1:$D$65536,3,0) -> 18894.80396
B197: 181 | C197: TA220SIR1D1C2592R±0 | D197: =+"Torre de anclaje, retención intermedia y terminal (15°) Tipo R"&IF(MID(C197,3,3)="220","C",IF(MID(C197,3,3)="138","S",""))&IF(MID(C197,10,1)="D",2,1)&RIGHT(C197,2) -> Torre de anclaje, retención intermedia y terminal (15°) Tipo RC2±0 | E197: Und | F197: 0 | G197: =VLOOKUP(C197,'[8]Resumen Peso'!$B$1:$D$65536,3,0)*$C$14 -> 33926.24383 | J197: =+VLOOKUP(C197,'[8]Resumen Peso'!$B$1:$D$65536,3,0) -> 21064.44143
B198: 182 | C198: TA220SIR1D1C2592R+3 | D198: =+"Torre de anclaje, retención intermedia y terminal (15°) Tipo R"&IF(MID(C198,3,3)="220","C",IF(MID(C198,3,3)="138","S",""))&IF(MID(C198,10,1)="D",2,1)&RIGHT(C198,2) -> Torre de anclaje, retención intermedia y terminal (15°) Tipo RC2+3 | E198: Und | F198: 0 | G198: =VLOOKUP(C198,'[8]Resumen Peso'!$B$1:$D$65536,3,0)*$C$14 -> 37420.64694 | J198: =+VLOOKUP(C198,'[8]Resumen Peso'!$B$1:$D$65536,3,0) -> 23234.07889
B199: 183 | C199: TA220SIR0S2C1600S-6 | D199: =+"Torre de suspensión tipo S"&IF(MID(C199,3,3)="220","C",IF(MID(C199,3,3)="138","S",""))&IF(MID(C199,10,1)="D",2,1)&" (5°)Tipo S"&IF(MID(C199,3,3)="220","C",IF(MID(C199,3,3)="138","S",""))&IF(MID(C199,10,1)="D",2,1)&RIGHT(C199,2) -> Torre de suspensión tipo SC1 (5°)Tipo SC1-6 | E199: Und | F199: 0 | G199: =VLOOKUP(C199,'[8]Resumen Peso'!$B$1:$D$65536,3,0)*$C$14 -> 6697.330323 | J199: =+VLOOKUP(C199,'[8]Resumen Peso'!$B$1:$D$65536,3,0) -> 4158.300666
B200: 184 | C200: TA220SIR0S2C1600S-3 | D200: =+"Torre de suspensión tipo S"&IF(MID(C200,3,3)="220","C",IF(MID(C200,3,3)="138","S",""))&IF(MID(C200,10,1)="D",2,1)&" (5°)Tipo S"&IF(MID(C200,3,3)="220","C",IF(MID(C200,3,3)="138","S",""))&IF(MID(C200,10,1)="D",2,1)&RIGHT(C200,2) -> Torre de suspensión tipo SC1 (5°)Tipo SC1-3 | E200: Und | F200: 0 | G200: =VLOOKUP(C200,'[8]Resumen Peso'!$B$1:$D$65536,3,0)*$C$14 -> 7662.711271 | J200: =+VLOOKUP(C200,'[8]Resumen Peso'!$B$1:$D$65536,3,0) -> 4757.695357
B201: 185 | C201: TA220SIR0S2C1600S±0 | D201: =+"Torre de suspensión tipo S"&IF(MID(C201,3,3)="220","C",IF(MID(C201,3,3)="138","S",""))&IF(MID(C201,10,1)="D",2,1)&" (5°)Tipo S"&IF(MID(C201,3,3)="220","C",IF(MID(C201,3,3)="138","S",""))&IF(MID(C201,10,1)="D",2,1)&RIGHT(C201,2) -> Torre de suspensión tipo SC1 (5°)Tipo SC1±0 | E201: Und | F201: 0 | G201: =VLOOKUP(C201,'[8]Resumen Peso'!$B$1:$D$65536,3,0)*$C$14 -> 8619.472745 | J201: =+VLOOKUP(C201,'[8]Resumen Peso'!$B$1:$D$65536,3,0) -> 5351.738309
B202: 186 | C202: TA220SIR0S2C1600S+3 | D202: =+"Torre de suspensión tipo S"&IF(MID(C202,3,3)="220","C",IF(MID(C202,3,3)="138","S",""))&IF(MID(C202,10,1)="D",2,1)&" (5°)Tipo S"&IF(MID(C202,3,3)="220","C",IF(MID(C202,3,3)="138","S",""))&IF(MID(C202,10,1)="D",2,1)&RIGHT(C202,2) -> Torre de suspensión tipo SC1 (5°)Tipo SC1+3 | E202: Und | F202: 0 | G202: =VLOOKUP(C202,'[8]Resumen Peso'!$B$1:$D$65536,3,0)*$C$14 -> 9567.614747 | J202: =+VLOOKUP(C202,'[8]Resumen Peso'!$B$1:$D$65536,3,0) -> 5940.429523
B203: 187 | C203: TA220SIR0S2C1600S+6 | D203: =+"Torre de suspensión tipo S"&IF(MID(C203,3,3)="220","C",IF(MID(C203,3,3)="138","S",""))&IF(MID(C203,10,1)="D",2,1)&" (5°)Tipo S"&IF(MID(C203,3,3)="220","C",IF(MID(C203,3,3)="138","S",""))&IF(MID(C203,10,1)="D",2,1)&RIGHT(C203,2) -> Torre de suspensión tipo SC1 (5°)Tipo SC1+6 | E203: Und | F203: 0 | G203: =VLOOKUP(C203,'[8]Resumen Peso'!$B$1:$D$65536,3,0)*$C$14 -> 10515.75675 | J203: =+VLOOKUP(C203,'[8]Resumen Peso'!$B$1:$D$65536,3,0) -> 6529.120737
B204: 188 | C204: TA220SIR0S2C1600A-3 | D204: =+"Torre de ángulo menor tipo A"&IF(MID(C204,3,3)="220","C",IF(MID(C204,3,3)="138","S",""))&IF(MID(C204,10,1)="D",2,1)&" (30°)Tipo A"&IF(MID(C204,3,3)="220","C",IF(MID(C204,3,3)="138","S",""))&IF(MID(C204,10,1)="D",2,1)&RIGHT(C204,2) -> Torre de ángulo menor tipo AC1 (30°)Tipo AC1-3 | E204: Und | F204: 0 | G204: =VLOOKUP(C204,'[8]Resumen Peso'!$B$1:$D$65536,3,0)*$C$14 -> 11789.00802 | J204: =+VLOOKUP(C204,'[8]Resumen Peso'!$B$1:$D$65536,3,0) -> 7319.668817
... 2849 more rows

Sheet SICODI-DIC17
J1: 2012 | K1: DIC. 2017
B2: DESCRIPCION_EMPRESA | C2: COD_GRUPO | D2: DESCRIPCION_GRUPO | E2: COD_FAMILIA | F2: DESCRIPCION_FAMILIA | G2: COD_MATERIAL | H2: NOMBRE_MATERIAL | I2: UNIDAD | J2: COSTOMAT | K2: COSTOMAT*
B3: OSINERGMIN-GART | C3: CMyE01 | D3: Aisladores y Accesorios | E3: 4 | F3: Aislador Tipo Carrete | G3: ACS01 | H3: AISLADOR CARRETE CLASE ANSI 53-1 | I3: UND. | J3: 0.66 | K3: =+IF(AND(MID(H3,1,15)="POSTE DE MADERA",J3<110)=TRUE,(J3*1.13+5)*1.01*1.16,IF(AND(MID(H3,1,15)="POSTE DE MADERA",J3>=110,J3<320)=TRUE,(J3*1.13+12)*1.01*1.16,IF(AND(MID(H3,1,15)="POSTE DE MADERA",J3>320)=TRUE,(J3*1.13+36)*1.01*1.16,IF(+AND(MID(H3,1,5)="POSTE",MID(H3,1,15)<>"POSTE DE MADERA")=TRUE,J3*1.01*1.16,J3*1.16)))) -> 0.7656
B4: OSINERGMIN-GART | C4: CMyE01 | D4: Aisladores y Accesorios | E4: 4 | F4: Aislador Tipo Carrete | G4: ACS02 | H4: AISLADOR CARRETE CLASE ANSI 53-2 | I4: UND. | J4: 0.93 | K4: =+IF(AND(MID(H4,1,15)="POSTE DE MADERA",J4<110)=TRUE,(J4*1.13+5)*1.01*1.16,IF(AND(MID(H4,1,15)="POSTE DE MADERA",J4>=110,J4<320)=TRUE,(J4*1.13+12)*1.01*1.16,IF(AND(MID(H4,1,15)="POSTE DE MADERA",J4>320)=TRUE,(J4*1.13+36)*1.01*1.16,IF(+AND(MID(H4,1,5)="POSTE",MID(H4,1,15)<>"POSTE DE MADERA")=TRUE,J4*1.01*1.16,J4*1.16)))) -> 1.0788
B5: OSINERGMIN-GART | C5: CMyE01 | D5: Aisladores y Accesorios | E5: 5 | F5: Aislador Tipo Line Post | G5: ALH02 | H5: AISLADOR LINE POST, CUELLO F, POSICION HORIZONTAL, PARA 20 KV | I5: UND. | J5: 120.09 | K5: 139.3044
B6: OSINERGMIN-GART | C6: CMyE01 | D6: Aisladores y Accesorios | E6: 5 | F6: Aislador Tipo Line Post | G6: ALH05 | H6: AISLADOR LINE POST, PARA GRAMPA, HORIZONTAL, PARA 25 KV. | I6: UND. | J6: 71.5 | K6: 82.94
B7: OSINERGMIN-GART | C7: CMyE01 | D7: Aisladores y Accesorios | E7: 5 | F7: Aislador Tipo Line Post | G7: ALV01 | H7: AISLADOR LINE POST, CUELLO F, PARA 15 KV | I7: UND. | J7: 25 | K7: 29
B8: OSINERGMIN-GART | C8: CMyE01 | D8: Aisladores y Accesorios | E8: 5 | F8: Aislador Tipo Line Post | G8: ALV02 | H8: AISLADOR LINE POST, CUELLO F, PARA 22 KV | I8: UND. | J8: 25 | K8: 29
B9: OSINERGMIN-GART | C9: CMyE01 | D9: Aisladores y Accesorios | E9: 5 | F9: Aislador Tipo Line Post | G9: ALV03 | H9: AISLADOR LINE POST, CUELLO F, PARA 25 KV, ANSI 57-1 | I9: UND. | J9: 25 | K9: 29
B10: OSINERGMIN-GART | C10: CMyE01 | D10: Aisladores y Accesorios | E10: 5 | F10: Aislador Tipo Line Post | G10: ALV04 | H10: AISLADOR LINE POST, CUELLO F, PARA 27 KV | I10: UND. | J10: 25 | K10: 29
B11: OSINERGMIN-GART | C11: CMyE01 | D11: Aisladores y Accesorios | E11: 5 | F11: Aislador Tipo Line Post | G11: ALV05 | H11: AISLADOR LINE POST, PARA GRAMPA, VERTICAL, PARA 15 KV. | I11: UND. | J11: 14.5 | K11: 16.82
B12: OSINERGMIN-GART | C12: CMyE01 | D12: Aisladores y Accesorios | E12: 5 | F12: Aislador Tipo Line Post | G12: ALV06 | H12: AISLADOR LINE POST, PARA GRAMPA, VERTICAL, PARA 25 KV., ANSI 57-11 | I12: UND. | J12: 14.5 | K12: 16.82
B13: OSINERGMIN-GART | C13: CMyE01 | D13: Aisladores y Accesorios | E13: 6 | F13: Aislador Tipo PIN | G13: APS01 | H13: AISLADOR PIN CLASE ANSI 55-4 | I13: UND. | J13: 2.45 | K13: 2.842
B14: OSINERGMIN-GART | C14: CMyE01 | D14: Aisladores y Accesorios | E14: 6 | F14: Aislador Tipo PIN | G14: APS02 | H14: AISLADOR PIN CLASE ANSI 55-5 | I14: UND. | J14: 7.16 | K14: 8.3056
B15: OSINERGMIN-GART | C15: CMyE01 | D15: Aisladores y Accesorios | E15: 6 | F15: Aislador Tipo PIN | G15: APS03 | H15: AISLADOR PIN CLASE ANSI 56-2 | I15: UND. | J15: 7.21 | K15: 8.3636
B16: OSINERGMIN-GART | C16: CMyE01 | D16: Aisladores y Accesorios | E16: 6 | F16: Aislador Tipo PIN | G16: APS04 | H16: AISLADOR PIN CLASE ANSI 56-3 | I16: UND. | J16: 23.81 | K16: 27.6196
B17: OSINERGMIN-GART | C17: CMyE01 | D17: Aisladores y Accesorios | E17: 6 | F17: Aislador Tipo PIN | G17: APS06 | H17: AISLADOR HIBRIDO PIN PARA LINEAS AEREAS DE 10 KV | I17: UND. | J17: 22.31 | K17: 25.8796
B18: OSINERGMIN-GART | C18: CMyE01 | D18: Aisladores y Accesorios | E18: 6 | F18: Aislador Tipo PIN | G18: APS07 | H18: AISLADOR PIN, POLIMERICO, 15KV | I18: UND. | J18: 22.31 | K18: 25.8796
B19: OSINERGMIN-GART | C19: CMyE01 | D19: Aisladores y Accesorios | E19: 7 | F19: Aislador Tipo Suspension | G19: ASN01 | H19: AISLADOR SUSPENSION ANTINIEBLA ANSI 52-5 CON ANODO DE SACRIFICIO | I19: UND. | J19: 18 | K19: 20.88
B20: OSINERGMIN-GART | C20: CMyE01 | D20: Aisladores y Accesorios | E20: 7 | F20: Aislador Tipo Suspension | G20: ASN02 | H20: AISLADOR SUSPENSION ANTINIEBLA ANSI 52-5 SIN ANODO DE SACRIFICIO | I20: UND. | J20: 36.54 | K20: 42.3864
B21: OSINERGMIN-GART | C21: CMyE01 | D21: Aisladores y Accesorios | E21: 7 | F21: Aislador Tipo Suspension | G21: ASS01 | H21: AISLADOR SUSPENSION CLASE ANSI 52-3 | I21: UND. | J21: 12.14 | K21: 14.0824
B22: OSINERGMIN-GART | C22: CMyE01 | D22: Aisladores y Accesorios | E22: 7 | F22: Aislador Tipo Suspension | G22: ASS02 | H22: AISLADOR SUSPENSION CLASE ANSI 52-4 | I22: UND. | J22: 20.37 | K22: 23.6292
B23: OSINERGMIN-GART | C23: CMyE01 | D23: Aisladores y Accesorios | E23: 7 | F23: Aislador Tipo Suspension | G23: ASS03 | H23: AISLADOR SUSPENSION DE GOMA DE SILICON RPP-25 Y ACCS. | I23: UND. | J23: 15 | K23: 17.4
B24: OSINERGMIN-GART | C24: CMyE01 | D24: Aisladores y Accesorios | E24: 7 | F24: Aislador Tipo Suspension | G24: ASS04 | H24: AISLADOR SUSPENSION DE GOMA DE SILICON RPP-15 | I24: UND. | J24: 16.77 | K24: 19.4532
B25: OSINERGMIN-GART | C25: CMyE01 | D25: Aisladores y Accesorios | E25: 7 | F25: Aislador Tipo Suspension | G25: ASS06 | H25: AISLADOR SUSPENSION POLIMERICO PARA REDES DE 22,9 KV | I25: UND. | J25: 16.39 | K25: 19.0124
B26: OSINERGMIN-GART | C26: CMyE01 | D26: Aisladores y Accesorios | E26: 8 | F26: Aislador Tipo Tensor | G26: ATS01 | H26: AISLADOR TENSOR CLASE ANSI 54-1 | I26: UND. | J26: 1.57 | K26: 1.8212
B27: OSINERGMIN-GART | C27: CMyE01 | D27: Aisladores y Accesorios | E27: 8 | F27: Aislador Tipo Tensor | G27: ATS02 | H27: AISLADOR TENSOR CLASE ANSI 54-2 | I27: UND. | J27: 2.95 | K27: 3.422
B28: OSINERGMIN-GART | C28: CMyE01 | D28: Aisladores y Accesorios | E28: 8 | F28: Aislador Tipo Tensor | G28: ATS03 | H28: AISLADOR TENSOR CLASE ANSI 54-3 | I28: UND. | J28: 2.74 | K28: 3.1784
B29: OSINERGMIN-GART | C29: CMyE01 | D29: Aisladores y Accesorios | E29: 8 | F29: Aislador Tipo Tensor | G29: ATS04 | H29: AISLADOR TENSOR CLASE ANSI 54-4 | I29: UND. | J29: 3.01 | K29: 3.4916
B30: OSINERGMIN-GART | C30: CMyE01 | D30: Aisladores y Accesorios | E30: 93 | F30: Accesorios: Otros | G30: AUM04 | H30: AISLADOR SOPORTE PORTABARRA PORCELANA 130MM.INT.10KV. | I30: UND. | J30: 25 | K30: 29
B31: OSINERGMIN-GART | C31: CMyE01 | D31: Aisladores y Accesorios | E31: 93 | F31: Accesorios: Otros | G31: AUM05 | H31: AISLADOR EXTENSOR, POLIMERICO, 25KV, PARA CUT-OUT | I31: UND. | J31: 60.38 | K31: 70.0408
B32: OSINERGMIN-GART | C32: CMyE01 | D32: Aisladores y Accesorios | E32: 93 | F32: Accesorios: Otros | G32: AUX03 | H32: AISLADOR PASANTE TIPO POZO CORTO 10KV 200A | I32: UND. | J32: 46.1 | K32: 53.476
B33: OSINERGMIN-GART | C33: CMyE01 | D33: Aisladores y Accesorios | E33: 93 | F33: Accesorios: Otros | G33: AXA01 | H33: GRILLETE AC.GALV.16MMD.-19MM.ABERT.77MML.PASAD-SEG | I33: UND. | J33: 2.55 | K33: 2.958
B34: OSINERGMIN-GART | C34: CMyE01 | D34: Aisladores y Accesorios | E34: 93 | F34: Accesorios: Otros | G34: AXA02 | H34: ADAPTADOR DE Fo.Go. TIPO HORQUILLA-BOLA | I34: UND. | J34: 2.76 | K34: 3.2016
B35: OSINERGMIN-GART | C35: CMyE01 | D35: Aisladores y Accesorios | E35: 93 | F35: Accesorios: Otros | G35: AXA04 | H35: ADAPTADOR DE Fo.Go. TIPO CASQUILLO-OJO | I35: UND. | J35: 1.79 | K35: 2.0764
B36: OSINERGMIN-GART | C36: CMyE01 | D36: Aisladores y Accesorios | E36: 93 | F36: Accesorios: Otros | G36: AXA05 | H36: ADAPTADOR DE Fo.Go. TIPO HORQUILLA-OJO | I36: UND. | J36: 3.38 | K36: 3.9208
B37: OSINERGMIN-GART | C37: CMyE01 | D37: Aisladores y Accesorios | E37: 93 | F37: Accesorios: Otros | G37: AXA06 | H37: ADAPTADOR DE Fo.Go. TIPO CASQUILLO-BOLA | I37: UND. | J37: 4.41 | K37: 5.1156
B38: OSINERGMIN-GART | C38: CMyE01 | D38: Aisladores y Accesorios | E38: 1 | F38: Accesorios: Espigas O Pines | G38: AXC01 | H38: ESPIGA CORTA DE CRUCETA PARA AISLADOR PIN ANSI 55-4 | I38: UND. | J38: 3.88 | K38: 4.5008
B39: OSINERGMIN-GART | C39: CMyE01 | D39: Aisladores y Accesorios | E39: 1 | F39: Accesorios: Espigas O Pines | G39: AXC02 | H39: ESPIGA CORTA DE CRUCETA PARA AISLADOR PIN ANSI 55-5 | I39: UND. | J39: 4.29 | K39: 4.9764
B40: OSINERGMIN-GART | C40: CMyE01 | D40: Aisladores y Accesorios | E40: 1 | F40: Accesorios: Espigas O Pines | G40: AXC03 | H40: ESPIGA CORTA DE CRUCETA PARA AISLADOR PIN ANSI 56-2 | I40: UND. | J40: 4.76 | K40: 5.5216
B41: OSINERGMIN-GART | C41: CMyE01 | D41: Aisladores y Accesorios | E41: 1 | F41: Accesorios: Espigas O Pines | G41: AXC04 | H41: ESPIGA CURVA PARA AISLADOR PIN CON ARANDELAS Y TUERCAS | I41: UND. | J41: 5.64 | K41: 6.5424
B42: OSINERGMIN-GART | C42: CMyE01 | D42: Aisladores y Accesorios | E42: 1 | F42: Accesorios: Espigas O Pines | G42: AXC05 | H42: ESPIGA DE VERTICE DE POSTE DE 1 3/8 PULG. DIAM. PARA AISLADOR PIN | I42: UND. | J42: 3.96 | K42: 4.5936
B43: OSINERGMIN-GART | C43: CMyE01 | D43: Aisladores y Accesorios | E43: 1 | F43: Accesorios: Espigas O Pines | G43: AXC06 | H43: ESPIGA DE VERTICE DE POSTE DE 1 PULG. DIAM. PARA AISLADOR PIN | I43: UND. | J43: 3.96 | K43: 4.5936
B44: OSINERGMIN-GART | C44: CMyE01 | D44: Aisladores y Accesorios | E44: 1 | F44: Accesorios: Espigas O Pines | G44: AXC07 | H44: ESPIGA LARGA DE CRUCETA PARA AISLADOR PIN 5/8 DIAM. x 11 3/4 LONG. | I44: UND. | J44: 4.29 | K44: 4.9764
B45: OSINERGMIN-GART | C45: CMyE01 | D45: Aisladores y Accesorios | E45: 1 | F45: Accesorios: Espigas O Pines | G45: AXC08 | H45: ESPIGA LARGA DE CRUCETA PARA AISLADOR PIN ANSI 55-4 (5/8 DIA. X 10 3/4 LONG.) | I45: UND. | J45: 3.88 | K45: 4.5008
B46: OSINERGMIN-GART | C46: CMyE01 | D46: Aisladores y Accesorios | E46: 1 | F46: Accesorios: Espigas O Pines | G46: AXC09 | H46: ESPIGA LARGA DE CRUCETA PARA AISLADOR PIN ANSI 55-5 (5/8 DIAM. x 11 3/4 LONG.) | I46: UND. | J46: 4.29 | K46: 4.9764
B47: OSINERGMIN-GART | C47: CMyE01 | D47: Aisladores y Accesorios | E47: 1 | F47: Accesorios: Espigas O Pines | G47: AXC10 | H47: PIN PARA LINE POST, PARA CRUCETA DE FIERRO, 3/4 DIAM. DE CABEZA, 5/8 DIAM. BASE | I47: UND. | J47: 2.5 | K47: 2.9
B48: OSINERGMIN-GART | C48: CMyE01 | D48: Aisladores y Accesorios | E48: 1 | F48: Accesorios: Espigas O Pines | G48: AXC11 | H48: PIN PARA LINE POST, PARA CRUCETA DE FIERRO, 3/4 DIAM. DE CABEZA, 3/4 DIAM. BASE | I48: UND. | J48: 2.5 | K48: 2.9
B49: OSINERGMIN-GART | C49: CMyE01 | D49: Aisladores y Accesorios | E49: 1 | F49: Accesorios: Espigas O Pines | G49: AXC12 | H49: PIN PARA LINE POST, PARA CRUCETA DE MADERA, 3/4 DIAM. DE CABEZA, 5/8 DIAM. BASE, 7-9/16 LONG. | I49: UND. | J49: 2.5 | K49: 2.9
B50: OSINERGMIN-GART | C50: CMyE01 | D50: Aisladores y Accesorios | E50: 1 | F50: Accesorios: Espigas O Pines | G50: AXC13 | H50: PIN PARA LINE POST, PARA CRUCETA DE MADERA, 3/4 DIAM. DE CABEZA, 5/8 DIAM. BASE, 10-1/16 LONG. | I50: UND. | J50: 2.5 | K50: 2.9
B51: OSINERGMIN-GART | C51: CMyE01 | D51: Aisladores y Accesorios | E51: 1 | F51: Accesorios: Espigas O Pines | G51: AXC14 | H51: PIN PARA LINE POST, PARA CRUCETA DE MADERA, 3/4 DIAM. DE CABEZA, 5/8 DIAM. BASE, 12-1/16 LONG. | I51: UND. | J51: 2.5 | K51: 2.9
B52: OSINERGMIN-GART | C52: CMyE01 | D52: Aisladores y Accesorios | E52: 1 | F52: Accesorios: Espigas O Pines | G52: AXC15 | H52: PIN PARA LINE POST, PARA CRUCETA DE MADERA, 3/4 DIAM. DE CABEZA, 3/4 DIAM. BASE, 7-9/16 LONG. | I52: UND. | J52: 3.2 | K52: 3.712
B53: OSINERGMIN-GART | C53: CMyE01 | D53: Aisladores y Accesorios | E53: 1 | F53: Accesorios: Espigas O Pines | G53: AXC16 | H53: PIN PARA LINE POST, PARA CRUCETA DE MADERA, 3/4 DIAM. DE CABEZA, 3/4 DIAM. BASE, 10-1/16 LONG. | I53: UND. | J53: 3.2 | K53: 3.712
B54: OSINERGMIN-GART | C54: CMyE01 | D54: Aisladores y Accesorios | E54: 1 | F54: Accesorios: Espigas O Pines | G54: AXC17 | H54: PIN PARA LINE POST, PARA CRUCETA DE MADERA, 3/4 DIAM. DE CABEZA, 3/4 DIAM. BASE, 12-1/16 LONG. | I54: UND. | J54: 3.2 | K54: 3.712
B55: OSINERGMIN-GART | C55: CMyE01 | D55: Aisladores y Accesorios | E55: 1 | F55: Accesorios: Espigas O Pines | G55: AXC18 | H55: ESPIGA CORTA DE CRUCETA PARA AISLADOR PIN ANSI 56-3 | I55: UND. | J55: 4.53 | K55: 5.2548
B56: OSINERGMIN-GART | C56: CMyE01 | D56: Aisladores y Accesorios | E56: 2 | F56: Accesorios: Grampas | G56: AXG01 | H56: GRAMPA DE ANCLAJE TIPO PISTOLA DE 2 PERNOS, ALEACION DE ALUMINIO (16 - 70 mm2 AL) | I56: UND. | J56: 3.76 | K56: 4.3616
B57: OSINERGMIN-GART | C57: CMyE01 | D57: Aisladores y Accesorios | E57: 2 | F57: Accesorios: Grampas | G57: AXG02 | H57: GRAMPA DE ANCLAJE TIPO PISTOLA DE 2 PERNOS, ALEACION DE ALUMINIO (25 - 125 mm2 AL) | I57: UND. | J57: 5.25 | K57: 6.09
B58: OSINERGMIN-GART | C58: CMyE01 | D58: Aisladores y Accesorios | E58: 2 | F58: Accesorios: Grampas | G58: AXG03 | H58: GRAMPA DE ANCLAJE TIPO PISTOLA DE 2 PERNOS, HIERRO GALVANIZADO (6 - 2/0 AWG CU) | I58: UND. | J58: 5.46 | K58: 6.3336
B59: OSINERGMIN-GART | C59: CMyE01 | D59: Aisladores y Accesorios | E59: 2 | F59: Accesorios: Grampas | G59: AXG04 | H59: GRAMPA DE ANCLAJE TIPO PISTOLA DE 3 PERNOS, ALEACION DE ALUMINIO (2 - 2/0 AWG AL) | I59: UND. | J59: 3.63 | K59: 4.2108
B60: OSINERGMIN-GART | C60: CMyE01 | D60: Aisladores y Accesorios | E60: 2 | F60: Accesorios: Grampas | G60: AXG05 | H60: GRAMPA DE ANCLAJE TIPO PISTOLA DE 3 PERNOS, ALEACION DE ALUMINIO COND. AL. 67-125 mm2 | I60: UND. | J60: 5.55 | K60: 6.438
B61: OSINERGMIN-GART | C61: CMyE01 | D61: Aisladores y Accesorios | E61: 2 | F61: Accesorios: Grampas | G61: AXG06 | H61: GRAMPA DE ANCLAJE TIPO PU-O, HIERRO GALVANIZADO, PARA COND. CU. 13,21,33,42 mm2 | I61: UND. | J61: 6.36 | K61: 7.3776
B62: OSINERGMIN-GART | C62: CMyE01 | D62: Aisladores y Accesorios | E62: 2 | F62: Accesorios: Grampas | G62: AXG07 | H62: GRAMPA DE SUSPENSION, ALEACION DE ALUMINIO, PARA COND. DE AA, AL DE 16 - 95 mm2. | I62: UND. | J62: 10.83 | K62: 12.5628
B63: OSINERGMIN-GART | C63: CMyE01 | D63: Aisladores y Accesorios | E63: 2 | F63: Accesorios: Grampas | G63: AXG08 | H63: GRAMPA DE SUSPENSION, BRONCE, PARA COND. CU 13-67 mm2 | I63: UND. | J63: 22.8 | K63: 26.448
B64: OSINERGMIN-GART | C64: CMyE01 | D64: Aisladores y Accesorios | E64: 2 | F64: Accesorios: Grampas | G64: AXG09 | H64: GRAMPA DE SUSPENSION, EN ANGULO PARA COND. CU. 13-67 mm2 | I64: UND. | J64: 5.25 | K64: 6.09
B65: OSINERGMIN-GART | C65: CMyE01 | D65: Aisladores y Accesorios | E65: 2 | F65: Accesorios: Grampas | G65: AXG10 | H65: GRAMPA DE SUSPENSION, EN ANGULO PARA COND. CU. 33-125 mm2 | I65: UND. | J65: 7.05 | K65: 8.178
B66: OSINERGMIN-GART | C66: CMyE01 | D66: Aisladores y Accesorios | E66: 2 | F66: Accesorios: Grampas | G66: AXG11 | H66: GRAMPA DE SUSPENSION, HIERRO GALVANIZADO, PARA COND. ALDREY 125 mm2 | I66: UND. | J66: 9.26 | K66: 10.7416
B67: OSINERGMIN-GART | C67: CMyE01 | D67: Aisladores y Accesorios | E67: 2 | F67: Accesorios: Grampas | G67: AXG12 | H67: GRAMPA DE SUSPENSION, HIERRO GALVANIZADO, PARA COND. CU. 13-67 mm2 | I67: UND. | J67: 7.52 | K67: 8.7232
B68: OSINERGMIN-GART | C68: CMyE01 | D68: Aisladores y Accesorios | E68: 2 | F68: Accesorios: Grampas | G68: AXG13 | H68: GRAMPA PARA LINE POST, VERTICAL Y HORIZONTAL, CONDUCTOR 0.25-0.56 PULG. DIAM. | I68: UND. | J68: 8.3 | K68: =+IF(AND(MID(H68,1,15)="POSTE DE MADERA",J68<110)=TRUE,(J68*1.13+5)*1.01*1.16,IF(AND(MID(H68,1,15)="POSTE DE MADERA",J68>=110,J68<320)=TRUE,(J68*1.13+12)*1.01*1.16,IF(AND(MID(H68,1,15)="POSTE DE MADERA",J68>320)=TRUE,(J68*1.13+36)*1.01*1.16,IF(+AND(MID(H68,1,5)="POSTE",MID(H68,1,15)<>"POSTE DE MADERA")=TRUE,J68*1.01*1.16,J68*1.16)))) -> 9.628
B69: OSINERGMIN-GART | C69: CMyE01 | D69: Aisladores y Accesorios | E69: 2 | F69: Accesorios: Grampas | G69: AXG14 | H69: GRAMPA PARA LINE POST, VERTICAL Y HORIZONTAL, CONDUCTOR 0.50-1.06 PULG. DIAM. | I69: UND. | J69: 8.5 | K69: 9.86
B70: OSINERGMIN-GART | C70: CMyE01 | D70: Aisladores y Accesorios | E70: 2 | F70: Accesorios: Grampas | G70: AXG15 | H70: GRAMPA PARA LINE POST, VERTICAL Y HORIZONTAL, CONDUCTOR 1.00-1.50 PULG. DIAM. | I70: UND. | J70: 8.2 | K70: 9.512
B71: OSINERGMIN-GART | C71: CMyE01 | D71: Aisladores y Accesorios | E71: 2 | F71: Accesorios: Grampas | G71: AXG16 | H71: GRAMPA PARA LINE POST, VERTICAL Y HORIZONTAL, CONDUCTOR 1.50-2.00 PULG. DIAM. | I71: UND. | J71: 9.1 | K71: 10.556
B72: OSINERGMIN-GART | C72: CMyE01 | D72: Aisladores y Accesorios | E72: 2 | F72: Accesorios: Grampas | G72: AXG17 | H72: GRAMPA DE ANCLAJE TIPO PISTOLA DE BRONCE, 2 PERNOS, PARA CU 16-70 mm2 | I72: UND. | J72: 22.89 | K72: 26.5524
B73: OSINERGMIN-GART | C73: CMyE01 | D73: Aisladores y Accesorios | E73: 2 | F73: Accesorios: Grampas | G73: AXG18 | H73: GRAPA DE ANCLAJE TIPO PASANTE PARA CONDUCTOR AA 300/500 mm2 | I73: UND. | J73: 32.49 | K73: 37.6884
B74: OSINERGMIN-GART | C74: CMyE01 | D74: Aisladores y Accesorios | E74: 2 | F74: Accesorios: Grampas | G74: AXG20 | H74: GRAPA FIN DE LINEA 360MML 12,6MMD PARA CABLE AUTOPORTANTE DE MEDIA TENSION | I74: UND. | J74: 13.07 | K74: 15.1612
B75: OSINERGMIN-GART | C75: CMyE01 | D75: Aisladores y Accesorios | E75: 2 | F75: Accesorios: Grampas | G75: AXG21 | H75: GRAMPA DE ANCLAJE TIPO PISTOLA DE 3 PERNOS, ALEACION DE ALUMINIO COND. AL. 185-240 mm2 | I75: UND. | J75: 13.36 | K75: 15.4976
B76: OSINERGMIN-GART | C76: CMyE01 | D76: Aisladores y Accesorios | E76: 2 | F76: Accesorios: Grampas | G76: AXG30 | H76: GRAPA DE ANCLAJE DE ALUMINIO TIPO SUSPENSION PARA CONDUCTOR DE Al. 120 mm2 | I76: UND. | J76: 9.5 | K76: 11.02
B77: OSINERGMIN-GART | C77: CMyE01 | D77: Aisladores y Accesorios | E77: 2 | F77: Accesorios: Grampas | G77: AXG36 | H77: GRAPA DE ANCLAJE DE ALUMINIO TIPO PUÑO PARA CONDUCTOR DE Al. 35-70 mm2 | I77: UND. | J77: 2.3 | K77: 2.668
B78: OSINERGMIN-GART | C78: CMyE01 | D78: Aisladores y Accesorios | E78: 2 | F78: Accesorios: Grampas | G78: AXG37 | H78: GRAPA DE ANCLAJE DE ALUMINIO TIPO PUÑO PARA CONDUCTOR DE Al. 95-120 mm2 | I78: UND. | J78: 8.15 | K78: 9.454
B79: OSINERGMIN-GART | C79: CMyE01 | D79: Aisladores y Accesorios | E79: 3 | F79: Accesorios: Portalineas Y Soportes | G79: AXP01 | H79: PALOMILLA DE FIERRO CORTO PARA AISLADORES | I79: UND. | J79: 5.83 | K79: 6.7628
B80: OSINERGMIN-GART | C80: CMyE01 | D80: Aisladores y Accesorios | E80: 3 | F80: Accesorios: Portalineas Y Soportes | G80: AXP02 | H80: PERNO DOBLE BORDE DE 13-1/8 PULG. LONG.; 5/8 PULG. DIAM. PARA AISLADOR CARRETE 53-2 | I80: UND. | J80: 1.11 | K80: 1.2876
B81: OSINERGMIN-GART | C81: CMyE01 | D81: Aisladores y Accesorios | E81: 3 | F81: Accesorios: Portalineas Y Soportes | G81: AXP03 | H81: PERNO DOBLE BORDE DE 14-1/8 PULG. LONG.; 5/8 PULG. DIAM. PARA AISLADOR CARRETE 53-2 | I81: UND. | J81: 1.66 | K81: 1.9256
B82: OSINERGMIN-GART | C82: CMyE01 | D82: Aisladores y Accesorios | E82: 3 | F82: Accesorios: Portalineas Y Soportes | G82: AXP04 | H82: PERNO DOBLE BORDE DE 15-1/8 PULG. LONG.; 5/8 PULG. DIAM. PARA AISLADOR CARRETE 53-2 | I82: UND. | J82: 1.8 | K82: 2.088
B83: OSINERGMIN-GART | C83: CMyE01 | D83: Aisladores y Accesorios | E83: 3 | F83: Accesorios: Portalineas Y Soportes | G83: AXP05 | H83: PERNO DOBLE BORDE DE 16-1/8 PULG. LONG.; 5/8 PULG. DIAM. PARA AISLADOR CARRETE 53-2 | I83: UND. | J83: 2.13 | K83: 2.4708
B84: OSINERGMIN-GART | C84: CMyE01 | D84: Aisladores y Accesorios | E84: 3 | F84: Accesorios: Portalineas Y Soportes | G84: AXP06 | H84: PERNO SIMPLE BORDE DE 10 PULG. LONG.; 5/8 PULG. DIAM. PARA AISLADOR CARRETE 53-1 | I84: UND. | J84: 1.36 | K84: 1.5776
B85: OSINERGMIN-GART | C85: CMyE01 | D85: Aisladores y Accesorios | E85: 3 | F85: Accesorios: Portalineas Y Soportes | G85: AXP07 | H85: PERNO SIMPLE BORDE DE 11-3/4 PULG. LONG.; 1/2 PULG. DIAM. PARA AISLADOR CARRETE 53-1 | I85: UND. | J85: 1.36 | K85: 1.5776
B86: OSINERGMIN-GART | C86: CMyE01 | D86: Aisladores y Accesorios | E86: 3 | F86: Accesorios: Portalineas Y Soportes | G86: AXP08 | H86: PERNO SIMPLE BORDE DE 12-3/4 PULG. LONG.; 1/2 PULG. DIAM. PARA AISLADOR CARRETE 53-1 | I86: UND. | J86: 1.36 | K86: 1.5776
B87: OSINERGMIN-GART | C87: CMyE01 | D87: Aisladores y Accesorios | E87: 3 | F87: Accesorios: Portalineas Y Soportes | G87: AXP09 | H87: PERNO SIMPLE BORDE DE 12-3/4 PULG. LONG.; 1/2 PULG. DIAM. PARA AISLADOR CARRETE 53-2 | I87: UND. | J87: 1.36 | K87: 1.5776
B88: OSINERGMIN-GART | C88: CMyE01 | D88: Aisladores y Accesorios | E88: 3 | F88: Accesorios: Portalineas Y Soportes | G88: AXP10 | H88: PERNO SIMPLE BORDE DE 12-3/4 PULG. LONG.; 5/8 PULG. DIAM. PARA AISLADOR CARRETE 53-2 | I88: UND. | J88: 1.36 | K88: 1.5776
B89: OSINERGMIN-GART | C89: CMyE01 | D89: Aisladores y Accesorios | E89: 3 | F89: Accesorios: Portalineas Y Soportes | G89: AXP11 | H89: PERNO SIMPLE BORDE DE 13-3/4 PULG. LONG.; 1/2 PULG. DIAM. PARA AISLADOR CARRETE 53-1 | I89: UND. | J89: 1.36 | K89: 1.5776
B90: OSINERGMIN-GART | C90: CMyE01 | D90: Aisladores y Accesorios | E90: 3 | F90: Accesorios: Portalineas Y Soportes | G90: AXP12 | H90: PERNO SIMPLE BORDE DE 13-3/4 PULG. LONG.; 1/2 PULG. DIAM. PARA AISLADOR CARRETE 53-2 | I90: UND. | J90: 1.36 | K90: 1.5776
B91: OSINERGMIN-GART | C91: CMyE01 | D91: Aisladores y Accesorios | E91: 3 | F91: Accesorios: Portalineas Y Soportes | G91: AXP13 | H91: PERNO SIMPLE BORDE DE 13-3/4 PULG. LONG.; 5/8 PULG. DIAM. PARA AISLADOR CARRETE 53-2 | I91: UND. | J91: 1.36 | K91: 1.5776
B92: OSINERGMIN-GART | C92: CMyE01 | D92: Aisladores y Accesorios | E92: 3 | F92: Accesorios: Portalineas Y Soportes | G92: AXP14 | H92: PERNO SIMPLE BORDE DE 14-3/4 PULG. LONG.; 1/2 PULG. DIAM. PARA AISLADOR CARRETE 53-2 | I92: UND. | J92: 1.36 | K92: 1.5776
B93: OSINERGMIN-GART | C93: CMyE01 | D93: Aisladores y Accesorios | E93: 3 | F93: Accesorios: Portalineas Y Soportes | G93: AXP15 | H93: PERNO SIMPLE BORDE DE 14-3/4 PULG. LONG.; 5/8 PULG. DIAM. PARA AISLADOR CARRETE 53-2 | I93: UND. | J93: 1.36 | K93: 1.5776
B94: OSINERGMIN-GART | C94: CMyE01 | D94: Aisladores y Accesorios | E94: 3 | F94: Accesorios: Portalineas Y Soportes | G94: AXP16 | H94: PORTALINEA BIPOLAR PARA AISLADOR ANSI 53-1 | I94: UND. | J94: 2.45 | K94: 2.842
B95: OSINERGMIN-GART | C95: CMyE01 | D95: Aisladores y Accesorios | E95: 3 | F95: Accesorios: Portalineas Y Soportes | G95: AXP17 | H95: PORTALINEA PENTAPOLAR PARA AISLADOR ANSI 53-1 | I95: UND. | J95: 4.68 | K95: 5.4288
B96: OSINERGMIN-GART | C96: CMyE01 | D96: Aisladores y Accesorios | E96: 3 | F96: Accesorios: Portalineas Y Soportes | G96: AXP18 | H96: PORTALINEA TETRAPOLAR PARA AISLADOR ANSI 53-1 | I96: UND. | J96: 4.01 | K96: 4.6516
B97: OSINERGMIN-GART | C97: CMyE01 | D97: Aisladores y Accesorios | E97: 3 | F97: Accesorios: Portalineas Y Soportes | G97: AXP19 | H97: PORTALINEA TRIPOLAR PARA AISLADOR ANSI 53-1 | I97: UND. | J97: 3.68 | K97: 4.2688
B98: OSINERGMIN-GART | C98: CMyE01 | D98: Aisladores y Accesorios | E98: 3 | F98: Accesorios: Portalineas Y Soportes | G98: AXP20 | H98: PORTALINEA UNIPOLAR PARA AISLADOR ANSI 53-1 | I98: UND. | J98: 0.8 | K98: 0.928
B99: OSINERGMIN-GART | C99: CMyE01 | D99: Aisladores y Accesorios | E99: 3 | F99: Accesorios: Portalineas Y Soportes | G99: AXP21 | H99: PORTALINEA UNIPOLAR PARA AISLADOR ANSI 53-1, TIPO CLEVIS | I99: UND. | J99: 0.9 | K99: 1.044
B100: OSINERGMIN-GART | C100: CMyE01 | D100: Aisladores y Accesorios | E100: 3 | F100: Accesorios: Portalineas Y Soportes | G100: AXP22 | H100: PORTALINEA UNIPOLAR PARA AISLADOR ANSI 53-2, TIPO CLEVIS | I100: UND. | J100: 1.03 | K100: 1.1948
B101: OSINERGMIN-GART | C101: CMyE01 | D101: Aisladores y Accesorios | E101: 3 | F101: Accesorios: Portalineas Y Soportes | G101: AXP30 | H101: SOPORTE LATERAL PARA AISLADOR PIN POLIMERICO | I101: UND. | J101: 3.08 | K101: 3.5728
B102: OSINERGMIN-GART | C102: CMyE01 | D102: Aisladores y Accesorios | E102: 93 | F102: Accesorios: Otros | G102: AXV06 | H102: ABRAZADERA DE Fo.Go., FIJACION DE PORTALINEA, PERNOS Y TUERCAS. | I102: UND. | J102: 3.34 | K102: 3.8744
B103: OSINERGMIN-GART | C103: CMyE02 | D103: Conductores Cables y Accesorios | E103: 20 | F103: Conductores De Aleacion De Aluminio O Similar Desnudo | G103: CAA01 | H103: CONDUCTOR DE AA. DESNUDO 6 mm2, 1 HILO | I103: METRO | J103: 0.15 | K103: 0.174
B104: OSINERGMIN-GART | C104: CMyE02 | D104: Conductores Cables y Accesorios | E104: 20 | F104: Conductores De Aleacion De Aluminio O Similar Desnudo | G104: CAA02 | H104: CONDUCTOR DE AA. DESNUDO 6 mm2, 7 HILOS | I104: METRO | J104: 0.15 | K104: 0.174
B105: OSINERGMIN-GART | C105: CMyE02 | D105: Conductores Cables y Accesorios | E105: 20 | F105: Conductores De Aleacion De Aluminio O Similar Desnudo | G105: CAA03 | H105: CONDUCTOR DE AA. DESNUDO 10 mm2, 1 HILO | I105: METRO | J105: 0.15 | K105: 0.174
B106: OSINERGMIN-GART | C106: CMyE02 | D106: Conductores Cables y Accesorios | E106: 20 | F106: Conductores De Aleacion De Aluminio O Similar Desnudo | G106: CAA04 | H106: CONDUCTOR DE AA. DESNUDO 10 mm2, 7 HILOS | I106: METRO | J106: 0.15 | K106: 0.174
B107: OSINERGMIN-GART | C107: CMyE02 | D107: Conductores Cables y Accesorios | E107: 20 | F107: Conductores De Aleacion De Aluminio O Similar Desnudo | G107: CAA05 | H107: CONDUCTOR DE AA. DESNUDO 16 mm2, 1 HILO | I107: METRO | J107: 0.17 | K107: 0.1972
B108: OSINERGMIN-GART | C108: CMyE02 | D108: Conductores Cables y Accesorios | E108: 20 | F108: Conductores De Aleacion De Aluminio O Similar Desnudo | G108: CAA06 | H108: CONDUCTOR DE AA. DESNUDO 16 mm2, 7 HILOS | I108: METRO | J108: 0.17 | K108: 0.1972
B109: OSINERGMIN-GART | C109: CMyE02 | D109: Conductores Cables y Accesorios | E109: 20 | F109: Conductores De Aleacion De Aluminio O Similar Desnudo | G109: CAA07 | H109: CONDUCTOR DE AA. DESNUDO 25 mm2, 7 HILOS | I109: METRO | J109: 0.29 | K109: 0.3364
B110: OSINERGMIN-GART | C110: CMyE02 | D110: Conductores Cables y Accesorios | E110: 20 | F110: Conductores De Aleacion De Aluminio O Similar Desnudo | G110: CAA08 | H110: CONDUCTOR DE AA. DESNUDO 35 mm2, 7 HILOS | I110: METRO | J110: 0.32 | K110: 0.3712
B111: OSINERGMIN-GART | C111: CMyE02 | D111: Conductores Cables y Accesorios | E111: 20 | F111: Conductores De Aleacion De Aluminio O Similar Desnudo | G111: CAA09 | H111: CONDUCTOR DE AA. DESNUDO 50 mm2, 19 HILOS | I111: METRO | J111: 0.46 | K111: 0.5336
B112: OSINERGMIN-GART | C112: CMyE02 | D112: Conductores Cables y Accesorios | E112: 20 | F112: Conductores De Aleacion De Aluminio O Similar Desnudo | G112: CAA10 | H112: CONDUCTOR DE AA. DESNUDO 70 mm2, 19 HILOS | I112: METRO | J112: 0.68 | K112: 0.7888
B113: OSINERGMIN-GART | C113: CMyE02 | D113: Conductores Cables y Accesorios | E113: 20 | F113: Conductores De Aleacion De Aluminio O Similar Desnudo | G113: CAA11 | H113: CONDUCTOR DE AA. DESNUDO 95 mm2, 19 HILOS | I113: METRO | J113: 1.09 | K113: 1.2644
B114: OSINERGMIN-GART | C114: CMyE02 | D114: Conductores Cables y Accesorios | E114: 20 | F114: Conductores De Aleacion De Aluminio O Similar Desnudo | G114: CAA12 | H114: CONDUCTOR DE AA. DESNUDO 120 mm2, 19 HILOS | I114: METRO | J114: 1.22 | K114: 1.4152
B115: OSINERGMIN-GART | C115: CMyE02 | D115: Conductores Cables y Accesorios | E115: 20 | F115: Conductores De Aleacion De Aluminio O Similar Desnudo | G115: CAA13 | H115: CONDUCTOR DE AA. DESNUDO 185 mm2, 19 HILOS | I115: METRO | J115: 2.18 | K115: 2.5288
B116: OSINERGMIN-GART | C116: CMyE02 | D116: Conductores Cables y Accesorios | E116: 20 | F116: Conductores De Aleacion De Aluminio O Similar Desnudo | G116: CAA14 | H116: CONDUCTOR TIPO ACSR 16 mm2 - 7/1 HILOS | I116: METRO | J116: 0.34 | K116: 0.3944
B117: OSINERGMIN-GART | C117: CMyE02 | D117: Conductores Cables y Accesorios | E117: 20 | F117: Conductores De Aleacion De Aluminio O Similar Desnudo | G117: CAA15 | H117: CONDUCTOR TIPO ACSR 25 mm2 - 7/1 HILOS | I117: METRO | J117: 0.52 | K117: 0.6032
B118: OSINERGMIN-GART | C118: CMyE02 | D118: Conductores Cables y Accesorios | E118: 20 | F118: Conductores De Aleacion De Aluminio O Similar Desnudo | G118: CAA16 | H118: CONDUCTOR TIPO ACSR 35 mm2 - 6/1 HILOS | I118: METRO | J118: 0.72 | K118: 0.8352
B119: OSINERGMIN-GART | C119: CMyE02 | D119: Conductores Cables y Accesorios | E119: 20 | F119: Conductores De Aleacion De Aluminio O Similar Desnudo | G119: CAA17 | H119: CONDUCTOR TIPO ACSR 50 mm2 - 6/1 HILOS | I119: METRO | J119: 0.88 | K119: 1.0208
B120: OSINERGMIN-GART | C120: CMyE02 | D120: Conductores Cables y Accesorios | E120: 20 | F120: Conductores De Aleacion De Aluminio O Similar Desnudo | G120: CAA18 | H120: CONDUCTOR TIPO ACSR 70 mm2 - 6/1 HILOS | I120: METRO | J120: 1.62 | K120: 1.8792
B121: OSINERGMIN-GART | C121: CMyE02 | D121: Conductores Cables y Accesorios | E121: 20 | F121: Conductores De Aleacion De Aluminio O Similar Desnudo | G121: CAA19 | H121: CONDUCTOR DE AA. DESNUDO 85 mm2 | I121: METRO | J121: 0.96 | K121: 1.1136
B122: OSINERGMIN-GART | C122: CMyE02 | D122: Conductores Cables y Accesorios | E122: 20 | F122: Conductores De Aleacion De Aluminio O Similar Desnudo | G122: CAA20 | H122: CONDUCTOR DE AA. DESNUDO 125 mm2 | I122: METRO | J122: 1.45 | K122: 1.682
B123: OSINERGMIN-GART | C123: CMyE02 | D123: Conductores Cables y Accesorios | E123: 20 | F123: Conductores De Aleacion De Aluminio O Similar Desnudo | G123: CAA21 | H123: CONDUCTOR DE AA. DESNUDO 150 mm2 | I123: METRO | J123: 1.76 | K123: 2.0416
B124: OSINERGMIN-GART | C124: CMyE02 | D124: Conductores Cables y Accesorios | E124: 20 | F124: Conductores De Aleacion De Aluminio O Similar Desnudo | G124: CAA22 | H124: CONDUCTOR DE AA. DESNUDO 235 mm2 | I124: METRO | J124: 2.79 | K124: 3.2364
B125: OSINERGMIN-GART | C125: CMyE02 | D125: Conductores Cables y Accesorios | E125: 20 | F125: Conductores De Aleacion De Aluminio O Similar Desnudo | G125: CAA23 | H125: CONDUCTOR DE AA. DESNUDO 240 mm2 | I125: METRO | J125: 2.85 | K125: 3.306
B126: OSINERGMIN-GART | C126: CMyE02 | D126: Conductores Cables y Accesorios | E126: 20 | F126: Conductores De Aleacion De Aluminio O Similar Desnudo | G126: CAA24 | H126: CONDUCTOR DE AA. DESNUDO 210 mm2 | I126: METRO | J126: 2.49 | K126: 2.8884
B127: OSINERGMIN-GART | C127: CMyE02 | D127: Conductores Cables y Accesorios | E127: 22 | F127: Conductores De Aleacion De Aluminio O Similar. Protegido Para B.T. | G127: CAB01 | H127: CONDUCTOR DE ALUM. PROTEGIDO, DE 6 mm2, 1 HILO; BAJA TENSION | I127: METRO | J127: 0.24 | K127: 0.2784
B128: OSINERGMIN-GART | C128: CMyE02 | D128: Conductores Cables y Accesorios | E128: 22 | F128: Conductores De Aleacion De Aluminio O Similar. Protegido Para B.T. | G128: CAB02 | H128: CONDUCTOR DE ALUM. PROTEGIDO, DE 6 mm2, 7 HILOS; BAJA TENSION | I128: METRO | J128: 0.24 | K128: 0.2784
B129: OSINERGMIN-GART | C129: CMyE02 | D129: Conductores Cables y Accesorios | E129: 22 | F129: Conductores De Aleacion De Aluminio O Similar. Protegido Para B.T. | G129: CAB03 | H129: CONDUCTOR DE ALUM. PROTEGIDO, DE 10 mm2, 1 HILO; BAJA TENSION | I129: METRO | J129: 0.24 | K129: 0.2784
B130: OSINERGMIN-GART | C130: CMyE02 | D130: Conductores Cables y Accesorios | E130: 22 | F130: Conductores De Aleacion De Aluminio O Similar. Protegido Para B.T. | G130: CAB04 | H130: CONDUCTOR DE ALUM. PROTEGIDO, DE 10 mm2, 7 HILOS; BAJA TENSION | I130: METRO | J130: 0.24 | K130: 0.2784
B131: OSINERGMIN-GART | C131: CMyE02 | D131: Conductores Cables y Accesorios | E131: 22 | F131: Conductores De Aleacion De Aluminio O Similar. Protegido Para B.T. | G131: CAB05 | H131: CONDUCTOR DE ALUM. PROTEGIDO, DE 16 mm2, 1 HILO; BAJA TENSION | I131: METRO | J131: 0.4 | K131: 0.464
B132: OSINERGMIN-GART | C132: CMyE02 | D132: Conductores Cables y Accesorios | E132: 22 | F132: Conductores De Aleacion De Aluminio O Similar. Protegido Para B.T. | G132: CAB06 | H132: CONDUCTOR DE ALUM. PROTEGIDO, DE 16 mm2, 7 HILOS; BAJA TENSION | I132: METRO | J132: 0.4 | K132: =+IF(AND(MID(H132,1,15)="POSTE DE MADERA",J132<110)=TRUE,(J132*1.13+5)*1.01*1.16,IF(AND(MID(H132,1,15)="POSTE DE MADERA",J132>=110,J132<320)=TRUE,(J132*1.13+12)*1.01*1.16,IF(AND(MID(H132,1,15)="POSTE DE MADERA",J132>320)=TRUE,(J132*1.13+36)*1.01*1.16,IF(+AND(MID(H132,1,5)="POSTE",MID(H132,1,15)<>"POSTE DE MADERA")=TRUE,J132*1.01*1.16,J132*1.16)))) -> 0.464
B133: OSINERGMIN-GART | C133: CMyE02 | D133: Conductores Cables y Accesorios | E133: 22 | F133: Conductores De Aleacion De Aluminio O Similar. Protegido Para B.T. | G133: CAB07 | H133: CONDUCTOR DE ALUM. PROTEGIDO, DE 25 mm2, 7 HILOS; BAJA TENSION | I133: METRO | J133: 0.53 | K133: 0.6148
B134: OSINERGMIN-GART | C134: CMyE02 | D134: Conductores Cables y Accesorios | E134: 22 | F134: Conductores De Aleacion De Aluminio O Similar. Protegido Para B.T. | G134: CAB08 | H134: CONDUCTOR DE ALUM. PROTEGIDO, DE 35 mm2, 7 HILOS; BAJA TENSION | I134: METRO | J134: 0.88 | K134: 1.0208
B135: OSINERGMIN-GART | C135: CMyE02 | D135: Conductores Cables y Accesorios | E135: 22 | F135: Conductores De Aleacion De Aluminio O Similar. Protegido Para B.T. | G135: CAB09 | H135: CONDUCTOR DE ALUM. PROTEGIDO, DE 50 mm2, 7 HILOS; BAJA TENSION | I135: METRO | J135: 0.98 | K135: 1.1368
B136: OSINERGMIN-GART | C136: CMyE02 | D136: Conductores Cables y Accesorios | E136: 22 | F136: Conductores De Aleacion De Aluminio O Similar. Protegido Para B.T. | G136: CAB10 | H136: CONDUCTOR DE ALUM. PROTEGIDO, DE 70 mm2, 19 HILOS; BAJA TENSION | I136: METRO | J136: 1.31 | K136: 1.5196
B137: OSINERGMIN-GART | C137: CMyE02 | D137: Conductores Cables y Accesorios | E137: 22 | F137: Conductores De Aleacion De Aluminio O Similar. Protegido Para B.T. | G137: CAB11 | H137: CONDUCTOR DE ALUM. PROTEGIDO, DE 95 mm2; BAJA TENSION | I137: METRO | J137: 1.71 | K137: 1.9836
B138: OSINERGMIN-GART | C138: CMyE02 | D138: Conductores Cables y Accesorios | E138: 22 | F138: Conductores De Aleacion De Aluminio O Similar. Protegido Para B.T. | G138: CAB12 | H138: CONDUCTOR DE ALUM. PROTEGIDO, DE 120 mm2; BAJA TENSION | I138: METRO | J138: 2.12 | K138: 2.4592
B139: OSINERGMIN-GART | C139: CMyE02 | D139: Conductores Cables y Accesorios | E139: 22 | F139: Conductores De Aleacion De Aluminio O Similar. Protegido Para B.T. | G139: CAB13 | H139: CONDUCTOR DE ALUM. PROTEGIDO, DE 150 mm2; BAJA TENSION | I139: METRO | J139: 2.6 | K139: 3.016
B140: OSINERGMIN-GART | C140: CMyE02 | D140: Conductores Cables y Accesorios | E140: 22 | F140: Conductores De Aleacion De Aluminio O Similar. Protegido Para B.T. | G140: CAB14 | H140: CONDUCTOR DE ALUM. PROTEGIDO, DE 185 mm2; BAJA TENSION | I140: METRO | J140: 3.17 | K140: 3.6772
B141: OSINERGMIN-GART | C141: CMyE02 | D141: Conductores Cables y Accesorios | E141: 22 | F141: Conductores De Aleacion De Aluminio O Similar. Protegido Para B.T. | G141: CAB15 | H141: CONDUCTOR DE ALUM. PROTEGIDO, DE 240 mm2; BAJA TENSION | I141: METRO | J141: 4.06 | K141: 4.7096
B142: OSINERGMIN-GART | C142: CMyE02 | D142: Conductores Cables y Accesorios | E142: 21 | F142: Conductores De Aleacion De Aluminio O Similar. Autosoportado Para B.T. | G142: CAC01 | H142: CONDUCTOR DE ALUMINIO AUTOSOPORTADO, DUPLEX DE 2 x 16 + 25 mm2 | I142: METRO | J142: 1.22 | K142: 1.4152
B143: OSINERGMIN-GART | C143: CMyE02 | D143: Conductores Cables y Accesorios | E143: 21 | F143: Conductores De Aleacion De Aluminio O Similar. Autosoportado Para B.T. | G143: CAC02 | H143: CONDUCTOR DE ALUMINIO AUTOSOPORTADO, DUPLEX DE 2 x 25 + 25 mm2 | I143: METRO | J143: 1.33 | K143: 1.5428
B144: OSINERGMIN-GART | C144: CMyE02 | D144: Conductores Cables y Accesorios | E144: 21 | F144: Conductores De Aleacion De Aluminio O Similar. Autosoportado Para B.T. | G144: CAC03 | H144: CONDUCTOR DE ALUMINIO AUTOSOPORTADO, DUPLEX DE 2 x 35 + 25 mm2 | I144: METRO | J144: 1.59 | K144: 1.8444
B145: OSINERGMIN-GART | C145: CMyE02 | D145: Conductores Cables y Accesorios | E145: 21 | F145: Conductores De Aleacion De Aluminio O Similar. Autosoportado Para B.T. | G145: CAC04 | H145: CONDUCTOR DE ALUMINIO AUTOSOPORTADO, DUPLEX DE 2 x 50 + 35 mm2 | I145: METRO | J145: 2.09 | K145: 2.4244
B146: OSINERGMIN-GART | C146: CMyE02 | D146: Conductores Cables y Accesorios | E146: 21 | F146: Conductores De Aleacion De Aluminio O Similar. Autosoportado Para B.T. | G146: CAC05 | H146: CONDUCTOR DE ALUMINIO AUTOSOPORTADO, DUPLEX DE 2 x 70 + 50 mm2 | I146: METRO | J146: 3.01 | K146: 3.4916
B147: OSINERGMIN-GART | C147: CMyE02 | D147: Conductores Cables y Accesorios | E147: 21 | F147: Conductores De Aleacion De Aluminio O Similar. Autosoportado Para B.T. | G147: CAC06 | H147: CONDUCTOR DE ALUMINIO AUTOSOPORTADO, DUPLEX DE 2 x 95 + 70 mm2 | I147: METRO | J147: 4.74 | K147: 5.4984
B148: OSINERGMIN-GART | C148: CMyE02 | D148: Conductores Cables y Accesorios | E148: 21 | F148: Conductores De Aleacion De Aluminio O Similar. Autosoportado Para B.T. | G148: CAC07 | H148: CONDUCTOR DE ALUMINIO AUTOSOPORTADO, DUPLEX DE 2 x 120 + 95 mm2 | I148: METRO | J148: 7.48 | K148: 8.6768
B149: OSINERGMIN-GART | C149: CMyE02 | D149: Conductores Cables y Accesorios | E149: 21 | F149: Conductores De Aleacion De Aluminio O Similar. Autosoportado Para B.T. | G149: CAC08 | H149: CONDUCTOR DE ALUMINIO AUTOSOPORTADO, TRIPLEX DE 3 x 16 + 25 mm2 | I149: METRO | J149: 1.77 | K149: 2.0532
B150: OSINERGMIN-GART | C150: CMyE02 | D150: Conductores Cables y Accesorios | E150: 21 | F150: Conductores De Aleacion De Aluminio O Similar. Autosoportado Para B.T. | G150: CAC09 | H150: CONDUCTOR DE ALUMINIO AUTOSOPORTADO, TRIPLEX DE 3 x 25 + 25 mm2 | I150: METRO | J150: 2.32 | K150: 2.6912
B151: OSINERGMIN-GART | C151: CMyE02 | D151: Conductores Cables y Accesorios | E151: 21 | F151: Conductores De Aleacion De Aluminio O Similar. Autosoportado Para B.T. | G151: CAC10 | H151: CONDUCTOR DE ALUMINIO AUTOSOPORTADO, TRIPLEX DE 3 x 35 + 25 mm2 | I151: METRO | J151: 3.05 | K151: 3.538
B152: OSINERGMIN-GART | C152: CMyE02 | D152: Conductores Cables y Accesorios | E152: 21 | F152: Conductores De Aleacion De Aluminio O Similar. Autosoportado Para B.T. | G152: CAC11 | H152: CONDUCTOR DE ALUMINIO AUTOSOPORTADO, TRIPLEX DE 3 x 50 + 35 mm2 | I152: METRO | J152: 4.44 | K152: 5.1504
B153: OSINERGMIN-GART | C153: CMyE02 | D153: Conductores Cables y Accesorios | E153: 21 | F153: Conductores De Aleacion De Aluminio O Similar. Autosoportado Para B.T. | G153: CAC12 | H153: CONDUCTOR DE ALUMINIO AUTOSOPORTADO, TRIPLEX DE 3 x 70 + 50 mm2 | I153: METRO | J153: 6.14 | K153: 7.1224
B154: OSINERGMIN-GART | C154: CMyE02 | D154: Conductores Cables y Accesorios | E154: 21 | F154: Conductores De Aleacion De Aluminio O Similar. Autosoportado Para B.T. | G154: CAC13 | H154: CONDUCTOR DE ALUMINIO AUTOSOPORTADO, TRIPLEX DE 3 x 95 + 70 mm2 | I154: METRO | J154: 8.27 | K154: 9.5932
B155: OSINERGMIN-GART | C155: CMyE02 | D155: Conductores Cables y Accesorios | E155: 21 | F155: Conductores De Aleacion De Aluminio O Similar. Autosoportado Para B.T. | G155: CAC14 | H155: CONDUCTOR DE ALUMINIO AUTOSOPORTADO, TRIPLEX DE 3 x 120 + 95 mm2 | I155: METRO | J155: 10.39 | K155: 12.0524
B156: OSINERGMIN-GART | C156: CMyE02 | D156: Conductores Cables y Accesorios | E156: 21 | F156: Conductores De Aleacion De Aluminio O Similar. Autosoportado Para B.T. | G156: CAC15 | H156: CONDUCTOR DE ALUMINIO AUTOSOPORTADO SP+AP 3x25 mm2+1x25 mm2+portante, PARA SP | I156: METRO | J156: 1.78 | K156: 2.0648
B157: OSINERGMIN-GART | C157: CMyE02 | D157: Conductores Cables y Accesorios | E157: 21 | F157: Conductores De Aleacion De Aluminio O Similar. Autosoportado Para B.T. | G157: CAC16 | H157: CONDUCTOR DE ALUMINIO AUTOSOPORTADO SP+AP 3x35 mm2+1x25 mm2+portante, PARA SP | I157: METRO | J157: 2.03 | K157: 2.3548
B158: OSINERGMIN-GART | C158: CMyE02 | D158: Conductores Cables y Accesorios | E158: 21 | F158: Conductores De Aleacion De Aluminio O Similar. Autosoportado Para B.T. | G158: CAC17 | H158: CONDUCTOR DE ALUMINIO AUTOSOPORTADO SP+AP 3x50 mm2+1x25 mm2+portante, PARA SP | I158: METRO | J158: 3.33 | K158: 3.8628
B159: OSINERGMIN-GART | C159: CMyE02 | D159: Conductores Cables y Accesorios | E159: 21 | F159: Conductores De Aleacion De Aluminio O Similar. Autosoportado Para B.T. | G159: CAC18 | H159: CONDUCTOR DE ALUMINIO AUTOSOPORTADO SP+AP 3x70 mm2+1x25 mm2+portante, PARA SP | I159: METRO | J159: 4.83 | K159: 5.6028
B160: OSINERGMIN-GART | C160: CMyE02 | D160: Conductores Cables y Accesorios | E160: 21 | F160: Conductores De Aleacion De Aluminio O Similar. Autosoportado Para B.T. | G160: CAC19 | H160: CONDUCTOR DE ALUMINIO AUTOSOPORTADO SP+AP 3x25 mm2+2x16 mm2+portante, PARA SP | I160: METRO | J160: 1.78 | K160: 2.0648
B161: OSINERGMIN-GART | C161: CMyE02 | D161: Conductores Cables y Accesorios | E161: 21 | F161: Conductores De Aleacion De Aluminio O Similar. Autosoportado Para B.T. | G161: CAC20 | H161: CONDUCTOR DE ALUMINIO AUTOSOPORTADO SP+AP 3x35 mm2+2x16 mm2+portante, PARA SP | I161: METRO | J161: 2.03 | K161: 2.3548
B162: OSINERGMIN-GART | C162: CMyE02 | D162: Conductores Cables y Accesorios | E162: 21 | F162: Conductores De Aleacion De Aluminio O Similar. Autosoportado Para B.T. | G162: CAC21 | H162: CONDUCTOR DE ALUMINIO AUTOSOPORTADO SP+AP 3x50 mm2+2x16 mm2+portante, PARA SP | I162: METRO | J162: 3.33 | K162: 3.8628
B163: OSINERGMIN-GART | C163: CMyE02 | D163: Conductores Cables y Accesorios | E163: 21 | F163: Conductores De Aleacion De Aluminio O Similar. Autosoportado Para B.T. | G163: CAC22 | H163: CONDUCTOR DE ALUMINIO AUTOSOPORTADO SP+AP 3x70 mm2+2x16 mm2+portante, PARA SP | I163: METRO | J163: 4.83 | K163: 5.6028
B164: OSINERGMIN-GART | C164: CMyE02 | D164: Conductores Cables y Accesorios | E164: 21 | F164: Conductores De Aleacion De Aluminio O Similar. Autosoportado Para B.T. | G164: CAC23 | H164: CONDUCTOR DE ALUMINIO AUTOSOPORTADO DE 1x16 mm2+portante | I164: METRO | J164: 1.05 | K164: 1.218
B165: OSINERGMIN-GART | C165: CMyE02 | D165: Conductores Cables y Accesorios | E165: 21 | F165: Conductores De Aleacion De Aluminio O Similar. Autosoportado Para B.T. | G165: CAC24 | H165: CONDUCTOR DE ALUMINIO AUTOSOPORTADO DE 1x25 mm2+portante | I165: METRO | J165: 0.83 | K165: 0.9628
B166: OSINERGMIN-GART | C166: CMyE02 | D166: Conductores Cables y Accesorios | E166: 21 | F166: Conductores De Aleacion De Aluminio O Similar. Autosoportado Para B.T. | G166: CAC25 | H166: CONDUCTOR DE ALUMINIO AUTOSOPORTADO DE 1x35 mm2+portante | I166: METRO | J166: 1.14 | K166: 1.3224
B167: OSINERGMIN-GART | C167: CMyE02 | D167: Conductores Cables y Accesorios | E167: 21 | F167: Conductores De Aleacion De Aluminio O Similar. Autosoportado Para B.T. | G167: CAC26 | H167: CONDUCTOR DE ALUMINIO AUTOSOPORTADO DE 1x50 mm2+portante | I167: METRO | J167: 1.5 | K167: 1.74
B168: OSINERGMIN-GART | C168: CMyE02 | D168: Conductores Cables y Accesorios | E168: 21 | F168: Conductores De Aleacion De Aluminio O Similar. Autosoportado Para B.T. | G168: CAC27 | H168: CONDUCTOR DE ALUMINIO AUTOSOPORTADO DE 1x70 mm2+portante | I168: METRO | J168: 1.98 | K168: 2.2968
B169: OSINERGMIN-GART | C169: CMyE02 | D169: Conductores Cables y Accesorios | E169: 21 | F169: Conductores De Aleacion De Aluminio O Similar. Autosoportado Para B.T. | G169: CAC28 | H169: CONDUCTOR DE ALUMINIO AUTOSOPORTADO DE 1x95 mm2+portante | I169: METRO | J169: 2.59 | K169: 3.0044
B170: OSINERGMIN-GART | C170: CMyE02 | D170: Conductores Cables y Accesorios | E170: 21 | F170: Conductores De Aleacion De Aluminio O Similar. Autosoportado Para B.T. | G170: CAC29 | H170: CONDUCTOR DE ALUMINIO AUTOSOPORTADO DE 3x150 mm2+portante | I170: METRO | J170: 12.94 | K170: 15.0104
B171: OSINERGMIN-GART | C171: CMyE02 | D171: Conductores Cables y Accesorios | E171: 21 | F171: Conductores De Aleacion De Aluminio O Similar. Autosoportado Para B.T. | G171: CAC30 | H171: CONDUCTOR DE ALUMINIO AUTOSOPORTADO SP+AP 3x35 mm2+2x6 mm2+portante, PARA SP | I171: METRO | J171: 2.03 | K171: 2.3548
B172: OSINERGMIN-GART | C172: CMyE02 | D172: Conductores Cables y Accesorios | E172: 21 | F172: Conductores De Aleacion De Aluminio O Similar. Autosoportado Para B.T. | G172: CAC31 | H172: CONDUCTOR DE ALUMINIO AUTOSOPORTADO SP+AP 3x35 mm2+2x10 mm2+portante, PARA SP | I172: METRO | J172: 2.03 | K172: 2.3548
B173: OSINERGMIN-GART | C173: CMyE02 | D173: Conductores Cables y Accesorios | E173: 21 | F173: Conductores De Aleacion De Aluminio O Similar. Autosoportado Para B.T. | G173: CAC32 | H173: CONDUCTOR DE ALUMINIO AUTOSOPORTADO SP+AP 3x70 mm2+1x16 mm2+portante, PARA SP | I173: METRO | J173: 4.83 | K173: 5.6028
B174: OSINERGMIN-GART | C174: CMyE02 | D174: Conductores Cables y Accesorios | E174: 21 | F174: Conductores De Aleacion De Aluminio O Similar. Autosoportado Para B.T. | G174: CAC33 | H174: CONDUCTOR DE ALUMINIO AUTOSOPORTADO SP+AP 3x70 mm2+2x6 mm2+portante, PARA SP | I174: METRO | J174: 4.83 | K174: 5.6028
B175: OSINERGMIN-GART | C175: CMyE02 | D175: Conductores Cables y Accesorios | E175: 21 | F175: Conductores De Aleacion De Aluminio O Similar. Autosoportado Para B.T. | G175: CAC34 | H175: CONDUCTOR DE ALUMINIO AUTOSOPORTADO SP+AP 3x70 mm2+2x10 mm2+portante, PARA SP | I175: METRO | J175: 4.83 | K175: 5.6028
B176: OSINERGMIN-GART | C176: CMyE02 | D176: Conductores Cables y Accesorios | E176: 21 | F176: Conductores De Aleacion De Aluminio O Similar. Autosoportado Para B.T. | G176: CAC35 | H176: CONDUCTOR DE ALUMINIO AUTOSOPORTADO SP+AP 3x95 mm2+1x6 mm2+portante, PARA SP | I176: METRO | J176: 5.35 | K176: 6.206
B177: OSINERGMIN-GART | C177: CMyE02 | D177: Conductores Cables y Accesorios | E177: 21 | F177: Conductores De Aleacion De Aluminio O Similar. Autosoportado Para B.T. | G177: CAC36 | H177: CONDUCTOR DE ALUMINIO AUTOSOPORTADO SP+AP 3x95 mm2+1x10 mm2+portante, PARA SP | I177: METRO | J177: 5.35 | K177: 6.206
B178: OSINERGMIN-GART | C178: CMyE02 | D178: Conductores Cables y Accesorios | E178: 21 | F178: Conductores De Aleacion De Aluminio O Similar. Autosoportado Para B.T. | G178: CAC37 | H178: CONDUCTOR DE ALUMINIO AUTOSOPORTADO SP+AP 3x95 mm2+1x16 mm2+portante, PARA SP | I178: METRO | J178: 5.35 | K178: 6.206
B179: OSINERGMIN-GART | C179: CMyE02 | D179: Conductores Cables y Accesorios | E179: 21 | F179: Conductores De Aleacion De Aluminio O Similar. Autosoportado Para B.T. | G179: CAC38 | H179: CONDUCTOR DE ALUMINIO AUTOSOPORTADO SP+AP 3x95 mm2+1x25 mm2+portante, PARA SP | I179: METRO | J179: 5.35 | K179: 6.206
B180: OSINERGMIN-GART | C180: CMyE02 | D180: Conductores Cables y Accesorios | E180: 21 | F180: Conductores De Aleacion De Aluminio O Similar. Autosoportado Para B.T. | G180: CAC39 | H180: CONDUCTOR DE ALUMINIO AUTOSOPORTADO SP+AP 3x95 mm2+2x16 mm2+portante, PARA SP | I180: METRO | J180: 5.35 | K180: 6.206
B181: OSINERGMIN-GART | C181: CMyE02 | D181: Conductores Cables y Accesorios | E181: 21 | F181: Conductores De Aleacion De Aluminio O Similar. Autosoportado Para B.T. | G181: CAC40 | H181: CONDUCTOR DE ALUMINIO AUTOSOPORTADO SP+AP 3x120 mm2+1x25 mm2+portante, PARA SP | I181: METRO | J181: 8.84 | K181: 10.2544
B182: OSINERGMIN-GART | C182: CMyE02 | D182: Conductores Cables y Accesorios | E182: 21 | F182: Conductores De Aleacion De Aluminio O Similar. Autosoportado Para B.T. | G182: CAC41 | H182: CONDUCTOR DE ALUMINIO AUTOSOPORTADO SP+AP 3x150 mm2+1x25 mm2+portante, PARA SP | I182: METRO | J182: 10.89 | K182: 12.6324
B183: OSINERGMIN-GART | C183: CMyE02 | D183: Conductores Cables y Accesorios | E183: 21 | F183: Conductores De Aleacion De Aluminio O Similar. Autosoportado Para B.T. | G183: CAC42 | H183: CONDUCTOR DE ALUMINIO AUTOSOPORTADO SP+AP 3x25 mm2+1x25 mm2+portante, PARA AP | I183: METRO | J183: 0.94 | K183: 1.0904
B184: OSINERGMIN-GART | C184: CMyE02 | D184: Conductores Cables y Accesorios | E184: 21 | F184: Conductores De Aleacion De Aluminio O Similar. Autosoportado Para B.T. | G184: CAC43 | H184: CONDUCTOR DE ALUMINIO AUTOSOPORTADO SP+AP 3x35 mm2+1x25 mm2+portante, PARA AP | I184: METRO | J184: 0.94 | K184: 1.0904
B185: OSINERGMIN-GART | C185: CMyE02 | D185: Conductores Cables y Accesorios | E185: 21 | F185: Conductores De Aleacion De Aluminio O Similar. Autosoportado Para B.T. | G185: CAC44 | H185: CONDUCTOR DE ALUMINIO AUTOSOPORTADO SP+AP 3x50 mm2+1x25 mm2+portante, PARA AP | I185: METRO | J185: 0.94 | K185: 1.0904
B186: OSINERGMIN-GART | C186: CMyE02 | D186: Conductores Cables y Accesorios | E186: 21 | F186: Conductores De Aleacion De Aluminio O Similar. Autosoportado Para B.T. | G186: CAC45 | H186: CONDUCTOR DE ALUMINIO AUTOSOPORTADO SP+AP 3x70 mm2+1x25 mm2+portante, PARA AP | I186: METRO | J186: 0.94 | K186: 1.0904
B187: OSINERGMIN-GART | C187: CMyE02 | D187: Conductores Cables y Accesorios | E187: 21 | F187: Conductores De Aleacion De Aluminio O Similar. Autosoportado Para B.T. | G187: CAC46 | H187: CONDUCTOR DE ALUMINIO AUTOSOPORTADO SP+AP 3x25 mm2+2x16 mm2+portante, PARA AP | I187: METRO | J187: 0.96 | K187: 1.1136
B188: OSINERGMIN-GART | C188: CMyE02 | D188: Conductores Cables y Accesorios | E188: 21 | F188: Conductores De Aleacion De Aluminio O Similar. Autosoportado Para B.T. | G188: CAC47 | H188: CONDUCTOR DE ALUMINIO AUTOSOPORTADO SP+AP 3x35 mm2+2x16 mm2+portante, PARA AP | I188: METRO | J188: 0.96 | K188: 1.1136
B189: OSINERGMIN-GART | C189: CMyE02 | D189: Conductores Cables y Accesorios | E189: 21 | F189: Conductores De Aleacion De Aluminio O Similar. Autosoportado Para B.T. | G189: CAC48 | H189: CONDUCTOR DE ALUMINIO AUTOSOPORTADO SP+AP 3x50 mm2+2x16 mm2+portante, PARA AP | I189: METRO | J189: 0.96 | K189: 1.1136
B190: OSINERGMIN-GART | C190: CMyE02 | D190: Conductores Cables y Accesorios | E190: 21 | F190: Conductores De Aleacion De Aluminio O Similar. Autosoportado Para B.T. | G190: CAC49 | H190: CONDUCTOR DE ALUMINIO AUTOSOPORTADO SP+AP 3x70 mm2+2x16 mm2+portante, PARA AP | I190: METRO | J190: 0.96 | K190: 1.1136
B191: OSINERGMIN-GART | C191: CMyE02 | D191: Conductores Cables y Accesorios | E191: 21 | F191: Conductores De Aleacion De Aluminio O Similar. Autosoportado Para B.T. | G191: CAC50 | H191: CONDUCTOR DE ALUMINIO AUTOSOPORTADO SP+AP 3x35 mm2+2x6 mm2+portante, PARA AP | I191: METRO | J191: 0.48 | K191: 0.5568
B192: OSINERGMIN-GART | C192: CMyE02 | D192: Conductores Cables y Accesorios | E192: 21 | F192: Conductores De Aleacion De Aluminio O Similar. Autosoportado Para B.T. | G192: CAC51 | H192: CONDUCTOR DE ALUMINIO AUTOSOPORTADO SP+AP 3x35 mm2+2x10 mm2+portante, PARA AP | I192: METRO | J192: 0.69 | K192: 0.8004
B193: OSINERGMIN-GART | C193: CMyE02 | D193: Conductores Cables y Accesorios | E193: 21 | F193: Conductores De Aleacion De Aluminio O Similar. Autosoportado Para B.T. | G193: CAC52 | H193: CONDUCTOR DE ALUMINIO AUTOSOPORTADO SP+AP 3x70 mm2+1x16 mm2+portante, PARA AP | I193: METRO | J193: 0.35 | K193: 0.406
B194: OSINERGMIN-GART | C194: CMyE02 | D194: Conductores Cables y Accesorios | E194: 21 | F194: Conductores De Aleacion De Aluminio O Similar. Autosoportado Para B.T. | G194: CAC53 | H194: CONDUCTOR DE ALUMINIO AUTOSOPORTADO SP+AP 3x70 mm2+2x6 mm2+portante, PARA AP | I194: METRO | J194: 0.48 | K194: 0.5568
B195: OSINERGMIN-GART | C195: CMyE02 | D195: Conductores Cables y Accesorios | E195: 21 | F195: Conductores De Aleacion De Aluminio O Similar. Autosoportado Para B.T. | G195: CAC54 | H195: CONDUCTOR DE ALUMINIO AUTOSOPORTADO SP+AP 3x70 mm2+2x10 mm2+portante, PARA AP | I195: METRO | J195: 0.69 | K195: 0.8004
B196: OSINERGMIN-GART | C196: CMyE02 | D196: Conductores Cables y Accesorios | E196: 21 | F196: Conductores De Aleacion De Aluminio O Similar. Autosoportado Para B.T. | G196: CAC55 | H196: CONDUCTOR DE ALUMINIO AUTOSOPORTADO SP+AP 3x95 mm2+1x6 mm2+portante, PARA AP | I196: METRO | J196: 0.14 | K196: =+IF(AND(MID(H196,1,15)="POSTE DE MADERA",J196<110)=TRUE,(J196*1.13+5)*1.01*1.16,IF(AND(MID(H196,1,15)="POSTE DE MADERA",J196>=110,J196<320)=TRUE,(J196*1.13+12)*1.01*1.16,IF(AND(MID(H196,1,15)="POSTE DE MADERA",J196>320)=TRUE,(J196*1.13+36)*1.01*1.16,IF(+AND(MID(H196,1,5)="POSTE",MID(H196,1,15)<>"POSTE DE MADERA")=TRUE,J196*1.01*1.16,J196*1.16)))) -> 0.1624
B197: OSINERGMIN-GART | C197: CMyE02 | D197: Conductores Cables y Accesorios | E197: 21 | F197: Conductores De Aleacion De Aluminio O Similar. Autosoportado Para B.T. | G197: CAC57 | H197: CONDUCTOR DE ALUMINIO AUTOSOPORTADO SP+AP 3x95 mm2+1x10 mm2+portante, PARA AP | I197: METRO | J197: 0.27 | K197: 0.3132
B198: OSINERGMIN-GART | C198: CMyE02 | D198: Conductores Cables y Accesorios | E198: 21 | F198: Conductores De Aleacion De Aluminio O Similar. Autosoportado Para B.T. | G198: CAC58 | H198: CONDUCTOR DE ALUMINIO AUTOSOPORTADO SP+AP 3x95 mm2+1x16 mm2+portante, PARA AP | I198: METRO | J198: 0.35 | K198: 0.406
B199: OSINERGMIN-GART | C199: CMyE02 | D199: Conductores Cables y Accesorios | E199: 21 | F199: Conductores De Aleacion De Aluminio O Similar. Autosoportado Para B.T. | G199: CAC59 | H199: CONDUCTOR DE ALUMINIO AUTOSOPORTADO SP+AP 3x95 mm2+1x25 mm2+portante, PARA AP | I199: METRO | J199: 0.94 | K199: 1.0904
B200: OSINERGMIN-GART | C200: CMyE02 | D200: Conductores Cables y Accesorios | E200: 21 | F200: Conductores De Aleacion De Aluminio O Similar. Autosoportado Para B.T. | G200: CAC60 | H200: CONDUCTOR DE ALUMINIO AUTOSOPORTADO SP+AP 3x95 mm2+2x16 mm2+portante, PARA AP | I200: METRO | J200: 0.96 | K200: 1.1136
... 2207 more rows

Sheet Infra Electrodunas
B2: ANEXO
B4: INFORMACIÓN DE LA INFRAESTRUCTURA ELÉCTRICA (POSTES Y/O TORRES) PROPORCIONADA POR ELECTRODUNAS S.A.A.
A7: (*) Véase la Norma Disposición de soportes para redes de media y baja tensión adjunto al presente Anexo
A9: N° | B9: Código de la infraestructura de soporte eléctrico | C9: Base de Datos a la que corresponde el Codigo | D9: Tipo de Estructura | E9: Niveld de Tensión | F9: Material Estructura | G9: Altura Estructura (m) | H9: Material Estructura (corregida según código)
A11: 1 | B11: PPC11 | C11: SICODI | D11: POSTE | E11: MT | F11: CONCRETO | G11: 11 m | H11: =F11 -> CONCRETO | I11: =B11&E11 -> PPC11MT | J11: =B11&E11&D11 -> PPC11MTPOSTE
A12: 2 | B12: PPC11 | C12: SICODI | D12: POSTE | E12: MT | F12: CONCRETO | G12: 11 m | H12: =F12 -> CONCRETO | I12: =B12&E12 -> PPC11MT | J12: =B12&E12&D12 -> PPC11MTPOSTE
A13: 3 | B13: PPC11 | C13: SICODI | D13: POSTE | E13: MT | F13: CONCRETO | G13: 11 m | H13: CONCRETO | I13: PPC11MT | J13: PPC11MTPOSTE
A14: 4 | B14: PPC11 | C14: SICODI | D14: POSTE | E14: MT | F14: CONCRETO | G14: 11 m | H14: CONCRETO | I14: PPC11MT | J14: PPC11MTPOSTE
A15: 5 | B15: PPC11 | C15: SICODI | D15: POSTE | E15: MT | F15: CONCRETO | G15: 11 m | H15: CONCRETO | I15: PPC11MT | J15: PPC11MTPOSTE
A16: 6 | B16: PPC11 | C16: SICODI | D16: POSTE | E16: MT | F16: CONCRETO | G16: 11 m | H16: CONCRETO | I16: PPC11MT | J16: PPC11MTPOSTE
A17: 7 | B17: PPC11 | C17: SICODI | D17: POSTE | E17: MT | F17: CONCRETO | G17: 11 m | H17: CONCRETO | I17: PPC11MT | J17: PPC11MTPOSTE
A18: 8 | B18: PPC11 | C18: SICODI | D18: POSTE | E18: MT | F18: CONCRETO | G18: 11 m | H18: CONCRETO | I18: PPC11MT | J18: PPC11MTPOSTE
A19: 9 | B19: PPC11 | C19: SICODI | D19: POSTE | E19: MT | F19: MADERA | G19: 11 m | H19: CONCRETO | I19: PPC11MT | J19: PPC11MTPOSTE
A20: 10 | B20: PPC19 | C20: SICODI | D20: POSTE | E20: BT | F20: CONCRETO | G20: 13 m | H20: CONCRETO | I20: PPC19BT | J20: PPC19BTPOSTE
A21: 11 | B21: PPC12 | C21: SICODI | D21: POSTE | E21: MT | F21: MADERA | G21: 11 m | H21: CONCRETO | I21: PPC12MT | J21: PPC12MTPOSTE
A22: 12 | B22: PPC12 | C22: SICODI | D22: POSTE | E22: MT | F22: MADERA | G22: 11 m | H22: CONCRETO | I22: PPC12MT | J22: PPC12MTPOSTE
A23: 13 | B23: PPC12 | C23: SICODI | D23: POSTE | E23: MT | F23: MADERA | G23: 11 m | H23: CONCRETO | I23: PPC12MT | J23: PPC12MTPOSTE
A24: 14 | B24: PPC12 | C24: SICODI | D24: POSTE | E24: MT | F24: MADERA | G24: 11 m | H24: CONCRETO | I24: PPC12MT | J24: PPC12MTPOSTE
A25: 15 | B25: PPC12 | C25: SICODI | D25: POSTE | E25: MT | F25: MADERA | G25: 11 m | H25: CONCRETO | I25: PPC12MT | J25: PPC12MTPOSTE
A26: 16 | B26: PPC12 | C26: SICODI | D26: POSTE | E26: MT | F26: MADERA | G26: 11 m | H26: CONCRETO | I26: PPC12MT | J26: PPC12MTPOSTE
A27: 17 | B27: PPC12 | C27: SICODI | D27: POSTE | E27: MT | F27: MADERA | G27: 11 m | H27: CONCRETO | I27: PPC12MT | J27: PPC12MTPOSTE
A28: 18 | B28: PPC12 | C28: SICODI | D28: POSTE | E28: MT | F28: MADERA | G28: 11 m | H28: CONCRETO | I28: PPC12MT | J28: PPC12MTPOSTE
A29: 19 | B29: PPC12 | C29: SICODI | D29: POSTE | E29: MT | F29: MADERA | G29: 11 m | H29: CONCRETO | I29: PPC12MT | J29: PPC12MTPOSTE
A30: 20 | B30: PPC12 | C30: SICODI | D30: POSTE | E30: MT | F30: MADERA | G30: 11 m | H30: CONCRETO | I30: PPC12MT | J30: PPC12MTPOSTE
A31: 21 | B31: PPC12 | C31: SICODI | D31: POSTE | E31: MT | F31: MADERA | G31: 11 m | H31: CONCRETO | I31: PPC12MT | J31: PPC12MTPOSTE
A32: 22 | B32: PPC12 | C32: SICODI | D32: POSTE | E32: MT | F32: MADERA | G32: 11 m | H32: CONCRETO | I32: PPC12MT | J32: PPC12MTPOSTE
A33: 23 | B33: PPC12 | C33: SICODI | D33: POSTE | E33: MT | F33: MADERA | G33: 11 m | H33: CONCRETO | I33: PPC12MT | J33: PPC12MTPOSTE
A34: 24 | B34: PPC12 | C34: SICODI | D34: POSTE | E34: MT | F34: MADERA | G34: 11 m | H34: CONCRETO | I34: PPC12MT | J34: PPC12MTPOSTE
A35: 25 | B35: PPC12 | C35: SICODI | D35: POSTE | E35: MT | F35: MADERA | G35: 11 m | H35: CONCRETO | I35: PPC12MT | J35: PPC12MTPOSTE
A36: 26 | B36: PPC12 | C36: SICODI | D36: POSTE | E36: MT | F36: MADERA | G36: 11 m | H36: CONCRETO | I36: PPC12MT | J36: PPC12MTPOSTE
A37: 27 | B37: PPC12 | C37: SICODI | D37: POSTE | E37: MT | F37: MADERA | G37: 11 m | H37: CONCRETO | I37: PPC12MT | J37: PPC12MTPOSTE
A38: 28 | B38: PPC12 | C38: SICODI | D38: POSTE | E38: MT | F38: MADERA | G38: 11 m | H38: CONCRETO | I38: PPC12MT | J38: PPC12MTPOSTE
A39: 29 | B39: PPC12 | C39: SICODI | D39: POSTE | E39: MT | F39: MADERA | G39: 11 m | H39: CONCRETO | I39: PPC12MT | J39: PPC12MTPOSTE
A40: 30 | B40: PPC12 | C40: SICODI | D40: POSTE | E40: MT | F40: MADERA | G40: 11 m | H40: CONCRETO | I40: PPC12MT | J40: PPC12MTPOSTE
A41: 31 | B41: PPC12 | C41: SICODI | D41: POSTE | E41: MT | F41: MADERA | G41: 11 m | H41: CONCRETO | I41: PPC12MT | J41: PPC12MTPOSTE
A42: 32 | B42: PPC12 | C42: SICODI | D42: POSTE | E42: MT | F42: MADERA | G42: 11 m | H42: CONCRETO | I42: PPC12MT | J42: PPC12MTPOSTE
A43: 33 | B43: PPC12 | C43: SICODI | D43: POSTE | E43: MT | F43: MADERA | G43: 11 m | H43: CONCRETO | I43: PPC12MT | J43: PPC12MTPOSTE
A44: 34 | B44: PPC12 | C44: SICODI | D44: POSTE | E44: MT | F44: MADERA | G44: 11 m | H44: CONCRETO | I44: PPC12MT | J44: PPC12MTPOSTE
A45: 35 | B45: PPC12 | C45: SICODI | D45: POSTE | E45: MT | F45: MADERA | G45: 11 m | H45: CONCRETO | I45: PPC12MT | J45: PPC12MTPOSTE
A46: 36 | B46: PPC12 | C46: SICODI | D46: POSTE | E46: MT | F46: MADERA | G46: 11 m | H46: CONCRETO | I46: PPC12MT | J46: PPC12MTPOSTE
A47: 37 | B47: PPC12 | C47: SICODI | D47: POSTE | E47: MT | F47: MADERA | G47: 11 m | H47: CONCRETO | I47: PPC12MT | J47: PPC12MTPOSTE
A48: 38 | B48: PPC12 | C48: SICODI | D48: POSTE | E48: MT | F48: MADERA | G48: 11 m | H48: CONCRETO | I48: PPC12MT | J48: PPC12MTPOSTE
A49: 39 | B49: PPC12 | C49: SICODI | D49: POSTE | E49: MT | F49: MADERA | G49: 11 m | H49: CONCRETO | I49: PPC12MT | J49: PPC12MTPOSTE
A50: 40 | B50: PPC12 | C50: SICODI | D50: POSTE | E50: MT | F50: MADERA | G50: 11 m | H50: CONCRETO | I50: PPC12MT | J50: PPC12MTPOSTE
A51: 41 | B51: PPC12 | C51: SICODI | D51: POSTE | E51: MT | F51: MADERA | G51: 11 m | H51: CONCRETO | I51: PPC12MT | J51: PPC12MTPOSTE
A52: 42 | B52: PPC12 | C52: SICODI | D52: POSTE | E52: MT | F52: MADERA | G52: 11 m | H52: CONCRETO | I52: PPC12MT | J52: PPC12MTPOSTE
A53: 43 | B53: PPC12 | C53: SICODI | D53: POSTE | E53: MT | F53: MADERA | G53: 11 m | H53: CONCRETO | I53: PPC12MT | J53: PPC12MTPOSTE
A54: 44 | B54: PPC12 | C54: SICODI | D54: POSTE | E54: MT | F54: MADERA | G54: 11 m | H54: CONCRETO | I54: PPC12MT | J54: PPC12MTPOSTE
A55: 45 | B55: PPC12 | C55: SICODI | D55: POSTE | E55: MT | F55: MADERA | G55: 11 m | H55: CONCRETO | I55: PPC12MT | J55: PPC12MTPOSTE
A56: 46 | B56: PPC12 | C56: SICODI | D56: POSTE | E56: MT | F56: MADERA | G56: 11 m | H56: CONCRETO | I56: PPC12MT | J56: PPC12MTPOSTE
A57: 47 | B57: PPC12 | C57: SICODI | D57: POSTE | E57: MT | F57: MADERA | G57: 11 m | H57: CONCRETO | I57: PPC12MT | J57: PPC12MTPOSTE
A58: 48 | B58: PPC12 | C58: SICODI | D58: POSTE | E58: MT | F58: MADERA | G58: 11 m | H58: CONCRETO | I58: PPC12MT | J58: PPC12MTPOSTE
A59: 49 | B59: PPC12 | C59: SICODI | D59: POSTE | E59: MT | F59: MADERA | G59: 11 m | H59: CONCRETO | I59: PPC12MT | J59: PPC12MTPOSTE
A60: 50 | B60: PPC12 | C60: SICODI | D60: POSTE | E60: MT | F60: MADERA | G60: 11 m | H60: CONCRETO | I60: PPC12MT | J60: PPC12MTPOSTE
A61: 51 | B61: PPC12 | C61: SICODI | D61: POSTE | E61: MT | F61: MADERA | G61: 11 m | H61: CONCRETO | I61: PPC12MT | J61: PPC12MTPOSTE
A62: 52 | B62: PPC12 | C62: SICODI | D62: POSTE | E62: MT | F62: MADERA | G62: 11 m | H62: CONCRETO | I62: PPC12MT | J62: PPC12MTPOSTE
A63: 53 | B63: PPC12 | C63: SICODI | D63: POSTE | E63: MT | F63: MADERA | G63: 11 m | H63: CONCRETO | I63: PPC12MT | J63: PPC12MTPOSTE
A64: 54 | B64: PPC12 | C64: SICODI | D64: POSTE | E64: MT | F64: MADERA | G64: 11 m | H64: CONCRETO | I64: PPC12MT | J64: PPC12MTPOSTE
A65: 55 | B65: PPC12 | C65: SICODI | D65: POSTE | E65: MT | F65: MADERA | G65: 11 m | H65: CONCRETO | I65: PPC12MT | J65: PPC12MTPOSTE
A66: 56 | B66: PPC12 | C66: SICODI | D66: POSTE | E66: MT | F66: MADERA | G66: 11 m | H66: CONCRETO | I66: PPC12MT | J66: PPC12MTPOSTE
A67: 57 | B67: PPC12 | C67: SICODI | D67: POSTE | E67: MT | F67: MADERA | G67: 11 m | H67: CONCRETO | I67: PPC12MT | J67: PPC12MTPOSTE
A68: 58 | B68: PPC12 | C68: SICODI | D68: POSTE | E68: MT | F68: MADERA | G68: 11 m | H68: CONCRETO | I68: PPC12MT | J68: PPC12MTPOSTE
A69: 59 | B69: PPC12 | C69: SICODI | D69: POSTE | E69: MT | F69: MADERA | G69: 11 m | H69: CONCRETO | I69: PPC12MT | J69: PPC12MTPOSTE
A70: 60 | B70: PPC12 | C70: SICODI | D70: POSTE | E70: MT | F70: MADERA | G70: 11 m | H70: CONCRETO | I70: PPC12MT | J70: PPC12MTPOSTE
A71: 61 | B71: PPC12 | C71: SICODI | D71: POSTE | E71: MT | F71: MADERA | G71: 11 m | H71: CONCRETO | I71: PPC12MT | J71: PPC12MTPOSTE
A72: 62 | B72: PPC12 | C72: SICODI | D72: POSTE | E72: MT | F72: MADERA | G72: 11 m | H72: CONCRETO | I72: PPC12MT | J72: PPC12MTPOSTE
A73: 63 | B73: PPC12 | C73: SICODI | D73: POSTE | E73: MT | F73: MADERA | G73: 11 m | H73: CONCRETO | I73: PPC12MT | J73: PPC12MTPOSTE
A74: 64 | B74: PPC12 | C74: SICODI | D74: POSTE | E74: MT | F74: MADERA | G74: 11 m | H74: CONCRETO | I74: PPC12MT | J74: PPC12MTPOSTE
A75: 65 | B75: PPC12 | C75: SICODI | D75: POSTE | E75: MT | F75: MADERA | G75: 11 m | H75: CONCRETO | I75: PPC12MT | J75: PPC12MTPOSTE
A76: 66 | B76: PPC15 | C76: SICODI | D76: POSTE | E76: MT | F76: CONCRETO | G76: 12 m | H76: =F76 -> CONCRETO | I76: =B76&E76 -> PPC15MT | J76: =B76&E76&D76 -> PPC15MTPOSTE
A77: 67 | B77: PPC15 | C77: SICODI | D77: POSTE | E77: MT | F77: CONCRETO | G77: 12 m | H77: CONCRETO | I77: PPC15MT | J77: PPC15MTPOSTE
A78: 68 | B78: PPC15 | C78: SICODI | D78: POSTE | E78: MT | F78: CONCRETO | G78: 12 m | H78: CONCRETO | I78: PPC15MT | J78: PPC15MTPOSTE
A79: 69 | B79: PPC15 | C79: SICODI | D79: POSTE | E79: MT | F79: CONCRETO | G79: 12 m | H79: CONCRETO | I79: PPC15MT | J79: PPC15MTPOSTE
A80: 70 | B80: PPC15 | C80: SICODI | D80: POSTE | E80: MT | F80: CONCRETO | G80: 12 m | H80: CONCRETO | I80: PPC15MT | J80: PPC15MTPOSTE
A81: 71 | B81: PPC15 | C81: SICODI | D81: POSTE | E81: MT | F81: CONCRETO | G81: 12 m | H81: CONCRETO | I81: PPC15MT | J81: PPC15MTPOSTE
A82: 72 | B82: PPC15 | C82: SICODI | D82: POSTE | E82: MT | F82: CONCRETO | G82: 12 m | H82: CONCRETO | I82: PPC15MT | J82: PPC15MTPOSTE
A83: 73 | B83: PPC15 | C83: SICODI | D83: POSTE | E83: MT | F83: CONCRETO | G83: 12 m | H83: CONCRETO | I83: PPC15MT | J83: PPC15MTPOSTE
A84: 74 | B84: PPC15 | C84: SICODI | D84: POSTE | E84: MT | F84: CONCRETO | G84: 12 m | H84: CONCRETO | I84: PPC15MT | J84: PPC15MTPOSTE
A85: 75 | B85: PPC15 | C85: SICODI | D85: POSTE | E85: MT | F85: CONCRETO | G85: 12 m | H85: CONCRETO | I85: PPC15MT | J85: PPC15MTPOSTE
A86: 76 | B86: PPC15 | C86: SICODI | D86: POSTE | E86: MT | F86: CONCRETO | G86: 12 m | H86: CONCRETO | I86: PPC15MT | J86: PPC15MTPOSTE
A87: 77 | B87: PPC15 | C87: SICODI | D87: POSTE | E87: MT | F87: CONCRETO | G87: 12 m | H87: CONCRETO | I87: PPC15MT | J87: PPC15MTPOSTE
A88: 78 | B88: PPC15 | C88: SICODI | D88: POSTE | E88: MT | F88: CONCRETO | G88: 12 m | H88: CONCRETO | I88: PPC15MT | J88: PPC15MTPOSTE
A89: 79 | B89: PPC15 | C89: SICODI | D89: POSTE | E89: MT | F89: CONCRETO | G89: 12 m | H89: CONCRETO | I89: PPC15MT | J89: PPC15MTPOSTE
A90: 80 | B90: PPC15 | C90: SICODI | D90: POSTE | E90: MT | F90: CONCRETO | G90: 12 m | H90: CONCRETO | I90: PPC15MT | J90: PPC15MTPOSTE
A91: 81 | B91: PPC15 | C91: SICODI | D91: POSTE | E91: MT | F91: CONCRETO | G91: 12 m | H91: CONCRETO | I91: PPC15MT | J91: PPC15MTPOSTE
A92: 82 | B92: PPC15 | C92: SICODI | D92: POSTE | E92: MT | F92: CONCRETO | G92: 12 m | H92: CONCRETO | I92: PPC15MT | J92: PPC15MTPOSTE
A93: 83 | B93: PPC15 | C93: SICODI | D93: POSTE | E93: MT | F93: CONCRETO | G93: 12 m | H93: CONCRETO | I93: PPC15MT | J93: PPC15MTPOSTE
A94: 84 | B94: PPC15 | C94: SICODI | D94: POSTE | E94: MT | F94: CONCRETO | G94: 12 m | H94: CONCRETO | I94: PPC15MT | J94: PPC15MTPOSTE
A95: 85 | B95: PPC15 | C95: SICODI | D95: POSTE | E95: MT | F95: CONCRETO | G95: 12 m | H95: CONCRETO | I95: PPC15MT | J95: PPC15MTPOSTE
A96: 86 | B96: PPC15 | C96: SICODI | D96: POSTE | E96: MT | F96: CONCRETO | G96: 12 m | H96: CONCRETO | I96: PPC15MT | J96: PPC15MTPOSTE
A97: 87 | B97: PPC15 | C97: SICODI | D97: POSTE | E97: MT | F97: CONCRETO | G97: 12 m | H97: CONCRETO | I97: PPC15MT | J97: PPC15MTPOSTE
A98: 88 | B98: PPC15 | C98: SICODI | D98: POSTE | E98: MT | F98: CONCRETO | G98: 12 m | H98: CONCRETO | I98: PPC15MT | J98: PPC15MTPOSTE
A99: 89 | B99: PPC15 | C99: SICODI | D99: POSTE | E99: MT | F99: CONCRETO | G99: 12 m | H99: CONCRETO | I99: PPC15MT | J99: PPC15MTPOSTE
A100: 90 | B100: PPC15 | C100: SICODI | D100: POSTE | E100: MT | F100: CONCRETO | G100: 12 m | H100: CONCRETO | I100: PPC15MT | J100: PPC15MTPOSTE
A101: 91 | B101: PPC15 | C101: SICODI | D101: POSTE | E101: MT | F101: CONCRETO | G101: 12 m | H101: CONCRETO | I101: PPC15MT | J101: PPC15MTPOSTE
A102: 92 | B102: PPC15 | C102: SICODI | D102: POSTE | E102: MT | F102: CONCRETO | G102: 12 m | H102: CONCRETO | I102: PPC15MT | J102: PPC15MTPOSTE
A103: 93 | B103: PPC15 | C103: SICODI | D103: POSTE | E103: MT | F103: CONCRETO | G103: 12 m | H103: CONCRETO | I103: PPC15MT | J103: PPC15MTPOSTE
A104: 94 | B104: PPC15 | C104: SICODI | D104: POSTE | E104: MT | F104: CONCRETO | G104: 12 m | H104: CONCRETO | I104: PPC15MT | J104: PPC15MTPOSTE
A105: 95 | B105: PPC15 | C105: SICODI | D105: POSTE | E105: MT | F105: CONCRETO | G105: 12 m | H105: CONCRETO | I105: PPC15MT | J105: PPC15MTPOSTE
A106: 96 | B106: PPC15 | C106: SICODI | D106: POSTE | E106: MT | F106: CONCRETO | G106: 12 m | H106: CONCRETO | I106: PPC15MT | J106: PPC15MTPOSTE
A107: 97 | B107: PPC15 | C107: SICODI | D107: POSTE | E107: MT | F107: CONCRETO | G107: 12 m | H107: CONCRETO | I107: PPC15MT | J107: PPC15MTPOSTE
A108: 98 | B108: PPC15 | C108: SICODI | D108: POSTE | E108: MT | F108: CONCRETO | G108: 12 m | H108: CONCRETO | I108: PPC15MT | J108: PPC15MTPOSTE
A109: 99 | B109: PPC15 | C109: SICODI | D109: POSTE | E109: MT | F109: CONCRETO | G109: 12 m | H109: CONCRETO | I109: PPC15MT | J109: PPC15MTPOSTE
A110: 100 | B110: PPC15 | C110: SICODI | D110: POSTE | E110: MT | F110: CONCRETO | G110: 12 m | H110: CONCRETO | I110: PPC15MT | J110: PPC15MTPOSTE
A111: 101 | B111: PPC15 | C111: SICODI | D111: POSTE | E111: MT | F111: CONCRETO | G111: 12 m | H111: CONCRETO | I111: PPC15MT | J111: PPC15MTPOSTE
A112: 102 | B112: PPC15 | C112: SICODI | D112: POSTE | E112: MT | F112: CONCRETO | G112: 12 m | H112: CONCRETO | I112: PPC15MT | J112: PPC15MTPOSTE
A113: 103 | B113: PPC15 | C113: SICODI | D113: POSTE | E113: MT | F113: CONCRETO | G113: 12 m | H113: CONCRETO | I113: PPC15MT | J113: PPC15MTPOSTE
A114: 104 | B114: PPC15 | C114: SICODI | D114: POSTE | E114: MT | F114: CONCRETO | G114: 12 m | H114: CONCRETO | I114: PPC15MT | J114: PPC15MTPOSTE
A115: 105 | B115: PPC15 | C115: SICODI | D115: POSTE | E115: MT | F115: CONCRETO | G115: 12 m | H115: CONCRETO | I115: PPC15MT | J115: PPC15MTPOSTE
A116: 106 | B116: PPC15 | C116: SICODI | D116: POSTE | E116: MT | F116: CONCRETO | G116: 12 m | H116: CONCRETO | I116: PPC15MT | J116: PPC15MTPOSTE
A117: 107 | B117: PPC15 | C117: SICODI | D117: POSTE | E117: MT | F117: CONCRETO | G117: 12 m | H117: CONCRETO | I117: PPC15MT | J117: PPC15MTPOSTE
A118: 108 | B118: PPC15 | C118: SICODI | D118: POSTE | E118: MT | F118: CONCRETO | G118: 12 m | H118: CONCRETO | I118: PPC15MT | J118: PPC15MTPOSTE
A119: 109 | B119: PPC15 | C119: SICODI | D119: POSTE | E119: MT | F119: CONCRETO | G119: 12 m | H119: CONCRETO | I119: PPC15MT | J119: PPC15MTPOSTE
A120: 110 | B120: PPC15 | C120: SICODI | D120: POSTE | E120: MT | F120: CONCRETO | G120: 12 m | H120: CONCRETO | I120: PPC15MT | J120: PPC15MTPOSTE
A121: 111 | B121: PPC15 | C121: SICODI | D121: POSTE | E121: MT | F121: CONCRETO | G121: 12 m | H121: CONCRETO | I121: PPC15MT | J121: PPC15MTPOSTE
A122: 112 | B122: PPC15 | C122: SICODI | D122: POSTE | E122: MT | F122: CONCRETO | G122: 12 m | H122: CONCRETO | I122: PPC15MT | J122: PPC15MTPOSTE
A123: 113 | B123: PPC15 | C123: SICODI | D123: POSTE | E123: MT | F123: CONCRETO | G123: 12 m | H123: CONCRETO | I123: PPC15MT | J123: PPC15MTPOSTE
A124: 114 | B124: PPC15 | C124: SICODI | D124: POSTE | E124: MT | F124: CONCRETO | G124: 12 m | H124: CONCRETO | I124: PPC15MT | J124: PPC15MTPOSTE
A125: 115 | B125: PPC15 | C125: SICODI | D125: POSTE | E125: MT | F125: CONCRETO | G125: 12 m | H125: CONCRETO | I125: PPC15MT | J125: PPC15MTPOSTE
A126: 116 | B126: PPC15 | C126: SICODI | D126: POSTE | E126: MT | F126: CONCRETO | G126: 12 m | H126: CONCRETO | I126: PPC15MT | J126: PPC15MTPOSTE
A127: 117 | B127: PPC15 | C127: SICODI | D127: POSTE | E127: MT | F127: CONCRETO | G127: 12 m | H127: CONCRETO | I127: PPC15MT | J127: PPC15MTPOSTE
A128: 118 | B128: PPC15 | C128: SICODI | D128: POSTE | E128: MT | F128: CONCRETO | G128: 12 m | H128: CONCRETO | I128: PPC15MT | J128: PPC15MTPOSTE
A129: 119 | B129: PPC15 | C129: SICODI | D129: POSTE | E129: MT | F129: CONCRETO | G129: 12 m | H129: CONCRETO | I129: PPC15MT | J129: PPC15MTPOSTE
A130: 120 | B130: PPC15 | C130: SICODI | D130: POSTE | E130: MT | F130: CONCRETO | G130: 12 m | H130: CONCRETO | I130: PPC15MT | J130: PPC15MTPOSTE
A131: 121 | B131: PPC15 | C131: SICODI | D131: POSTE | E131: MT | F131: CONCRETO | G131: 12 m | H131: CONCRETO | I131: PPC15MT | J131: PPC15MTPOSTE
A132: 122 | B132: PPC15 | C132: SICODI | D132: POSTE | E132: MT | F132: CONCRETO | G132: 12 m | H132: CONCRETO | I132: PPC15MT | J132: PPC15MTPOSTE
A133: 123 | B133: PPC15 | C133: SICODI | D133: POSTE | E133: MT | F133: CONCRETO | G133: 12 m | H133: CONCRETO | I133: PPC15MT | J133: PPC15MTPOSTE
A134: 124 | B134: PPC15 | C134: SICODI | D134: POSTE | E134: MT | F134: CONCRETO | G134: 12 m | H134: CONCRETO | I134: PPC15MT | J134: PPC15MTPOSTE
A135: 125 | B135: PPC15 | C135: SICODI | D135: POSTE | E135: MT | F135: CONCRETO | G135: 12 m | H135: CONCRETO | I135: PPC15MT | J135: PPC15MTPOSTE
A136: 126 | B136: PPC15 | C136: SICODI | D136: POSTE | E136: MT | F136: CONCRETO | G136: 12 m | H136: CONCRETO | I136: PPC15MT | J136: PPC15MTPOSTE
A137: 127 | B137: PPC15 | C137: SICODI | D137: POSTE | E137: MT | F137: CONCRETO | G137: 12 m | H137: CONCRETO | I137: PPC15MT | J137: PPC15MTPOSTE
A138: 128 | B138: PPC15 | C138: SICODI | D138: POSTE | E138: MT | F138: CONCRETO | G138: 12 m | H138: CONCRETO | I138: PPC15MT | J138: PPC15MTPOSTE
A139: 129 | B139: PPC15 | C139: SICODI | D139: POSTE | E139: MT | F139: CONCRETO | G139: 12 m | H139: CONCRETO | I139: PPC15MT | J139: PPC15MTPOSTE
A140: 130 | B140: PPC15 | C140: SICODI | D140: POSTE | E140: MT | F140: CONCRETO | G140: 12 m | H140: =F140 -> CONCRETO | I140: =B140&E140 -> PPC15MT | J140: =B140&E140&D140 -> PPC15MTPOSTE
A141: 131 | B141: PPC15 | C141: SICODI | D141: POSTE | E141: MT | F141: CONCRETO | G141: 12 m | H141: CONCRETO | I141: PPC15MT | J141: PPC15MTPOSTE
A142: 132 | B142: PPC15 | C142: SICODI | D142: POSTE | E142: MT | F142: CONCRETO | G142: 12 m | H142: CONCRETO | I142: PPC15MT | J142: PPC15MTPOSTE
A143: 133 | B143: PPC15 | C143: SICODI | D143: POSTE | E143: MT | F143: CONCRETO | G143: 12 m | H143: CONCRETO | I143: PPC15MT | J143: PPC15MTPOSTE
A144: 134 | B144: PPC15 | C144: SICODI | D144: POSTE | E144: MT | F144: CONCRETO | G144: 12 m | H144: CONCRETO | I144: PPC15MT | J144: PPC15MTPOSTE
A145: 135 | B145: PPC15 | C145: SICODI | D145: POSTE | E145: MT | F145: CONCRETO | G145: 12 m | H145: CONCRETO | I145: PPC15MT | J145: PPC15MTPOSTE
A146: 136 | B146: PPC16 | C146: SICODI | D146: POSTE | E146: MT | F146: CONCRETO | G146: 12 m | H146: CONCRETO | I146: PPC16MT | J146: PPC16MTPOSTE
A147: 137 | B147: PPC16 | C147: SICODI | D147: POSTE | E147: MT | F147: CONCRETO | G147: 12 m | H147: CONCRETO | I147: PPC16MT | J147: PPC16MTPOSTE
A148: 138 | B148: PPC16 | C148: SICODI | D148: POSTE | E148: MT | F148: CONCRETO | G148: 12 m | H148: CONCRETO | I148: PPC16MT | J148: PPC16MTPOSTE
A149: 139 | B149: PPC16 | C149: SICODI | D149: POSTE | E149: MT | F149: CONCRETO | G149: 12 m | H149: CONCRETO | I149: PPC16MT | J149: PPC16MTPOSTE
A150: 140 | B150: PPC16 | C150: SICODI | D150: POSTE | E150: MT | F150: CONCRETO | G150: 12 m | H150: CONCRETO | I150: PPC16MT | J150: PPC16MTPOSTE
A151: 141 | B151: PPC16 | C151: SICODI | D151: POSTE | E151: MT | F151: CONCRETO | G151: 12 m | H151: CONCRETO | I151: PPC16MT | J151: PPC16MTPOSTE
A152: 142 | B152: PPC16 | C152: SICODI | D152: POSTE | E152: MT | F152: CONCRETO | G152: 12 m | H152: CONCRETO | I152: PPC16MT | J152: PPC16MTPOSTE
A153: 143 | B153: PPC16 | C153: SICODI | D153: POSTE | E153: MT | F153: CONCRETO | G153: 12 m | H153: CONCRETO | I153: PPC16MT | J153: PPC16MTPOSTE
A154: 144 | B154: PPC16 | C154: SICODI | D154: POSTE | E154: MT | F154: CONCRETO | G154: 12 m | H154: CONCRETO | I154: PPC16MT | J154: PPC16MTPOSTE
A155: 145 | B155: PPC16 | C155: SICODI | D155: POSTE | E155: MT | F155: CONCRETO | G155: 12 m | H155: CONCRETO | I155: PPC16MT | J155: PPC16MTPOSTE
A156: 146 | B156: PPC16 | C156: SICODI | D156: POSTE | E156: MT | F156: CONCRETO | G156: 12 m | H156: CONCRETO | I156: PPC16MT | J156: PPC16MTPOSTE
A157: 147 | B157: PPC16 | C157: SICODI | D157: POSTE | E157: MT | F157: CONCRETO | G157: 12 m | H157: CONCRETO | I157: PPC16MT | J157: PPC16MTPOSTE
A158: 148 | B158: PPC16 | C158: SICODI | D158: POSTE | E158: MT | F158: CONCRETO | G158: 12 m | H158: CONCRETO | I158: PPC16MT | J158: PPC16MTPOSTE
A159: 149 | B159: PPC16 | C159: SICODI | D159: POSTE | E159: MT | F159: CONCRETO | G159: 12 m | H159: CONCRETO | I159: PPC16MT | J159: PPC16MTPOSTE
A160: 150 | B160: PPC16 | C160: SICODI | D160: POSTE | E160: MT | F160: CONCRETO | G160: 12 m | H160: CONCRETO | I160: PPC16MT | J160: PPC16MTPOSTE
A161: 151 | B161: PPC16 | C161: SICODI | D161: POSTE | E161: MT | F161: CONCRETO | G161: 12 m | H161: CONCRETO | I161: PPC16MT | J161: PPC16MTPOSTE
A162: 152 | B162: PPC16 | C162: SICODI | D162: POSTE | E162: MT | F162: CONCRETO | G162: 12 m | H162: CONCRETO | I162: PPC16MT | J162: PPC16MTPOSTE
A163: 153 | B163: PPC16 | C163: SICODI | D163: POSTE | E163: MT | F163: CONCRETO | G163: 12 m | H163: CONCRETO | I163: PPC16MT | J163: PPC16MTPOSTE
A164: 154 | B164: PPC16 | C164: SICODI | D164: POSTE | E164: MT | F164: CONCRETO | G164: 12 m | H164: CONCRETO | I164: PPC16MT | J164: PPC16MTPOSTE
A165: 155 | B165: PPC16 | C165: SICODI | D165: POSTE | E165: MT | F165: CONCRETO | G165: 12 m | H165: CONCRETO | I165: PPC16MT | J165: PPC16MTPOSTE
A166: 156 | B166: PPC16 | C166: SICODI | D166: POSTE | E166: MT | F166: CONCRETO | G166: 12 m | H166: CONCRETO | I166: PPC16MT | J166: PPC16MTPOSTE
A167: 157 | B167: PPC16 | C167: SICODI | D167: POSTE | E167: MT | F167: CONCRETO | G167: 12 m | H167: CONCRETO | I167: PPC16MT | J167: PPC16MTPOSTE
A168: 158 | B168: PPC16 | C168: SICODI | D168: POSTE | E168: MT | F168: CONCRETO | G168: 12 m | H168: CONCRETO | I168: PPC16MT | J168: PPC16MTPOSTE
A169: 159 | B169: PPC16 | C169: SICODI | D169: POSTE | E169: MT | F169: CONCRETO | G169: 12 m | H169: CONCRETO | I169: PPC16MT | J169: PPC16MTPOSTE
A170: 160 | B170: PPC16 | C170: SICODI | D170: POSTE | E170: MT | F170: CONCRETO | G170: 12 m | H170: CONCRETO | I170: PPC16MT | J170: PPC16MTPOSTE
A171: 161 | B171: PPC16 | C171: SICODI | D171: POSTE | E171: MT | F171: CONCRETO | G171: 12 m | H171: CONCRETO | I171: PPC16MT | J171: PPC16MTPOSTE
A172: 162 | B172: PPC16 | C172: SICODI | D172: POSTE | E172: MT | F172: CONCRETO | G172: 12 m | H172: CONCRETO | I172: PPC16MT | J172: PPC16MTPOSTE
A173: 163 | B173: PPC16 | C173: SICODI | D173: POSTE | E173: MT | F173: CONCRETO | G173: 12 m | H173: CONCRETO | I173: PPC16MT | J173: PPC16MTPOSTE
A174: 164 | B174: PPC16 | C174: SICODI | D174: POSTE | E174: MT | F174: CONCRETO | G174: 12 m | H174: CONCRETO | I174: PPC16MT | J174: PPC16MTPOSTE
A175: 165 | B175: PPC16 | C175: SICODI | D175: POSTE | E175: MT | F175: CONCRETO | G175: 12 m | H175: CONCRETO | I175: PPC16MT | J175: PPC16MTPOSTE
A176: 166 | B176: PPC16 | C176: SICODI | D176: POSTE | E176: MT | F176: CONCRETO | G176: 12 m | H176: CONCRETO | I176: PPC16MT | J176: PPC16MTPOSTE
A177: 167 | B177: PPC16 | C177: SICODI | D177: POSTE | E177: MT | F177: CONCRETO | G177: 12 m | H177: CONCRETO | I177: PPC16MT | J177: PPC16MTPOSTE
A178: 168 | B178: PPC16 | C178: SICODI | D178: POSTE | E178: MT | F178: CONCRETO | G178: 12 m | H178: CONCRETO | I178: PPC16MT | J178: PPC16MTPOSTE
A179: 169 | B179: PPC16 | C179: SICODI | D179: POSTE | E179: MT | F179: CONCRETO | G179: 12 m | H179: CONCRETO | I179: PPC16MT | J179: PPC16MTPOSTE
A180: 170 | B180: PPC16 | C180: SICODI | D180: POSTE | E180: MT | F180: CONCRETO | G180: 12 m | H180: CONCRETO | I180: PPC16MT | J180: PPC16MTPOSTE
A181: 171 | B181: PPC16 | C181: SICODI | D181: POSTE | E181: MT | F181: CONCRETO | G181: 12 m | H181: CONCRETO | I181: PPC16MT | J181: PPC16MTPOSTE
A182: 172 | B182: PPC16 | C182: SICODI | D182: POSTE | E182: MT | F182: CONCRETO | G182: 12 m | H182: CONCRETO | I182: PPC16MT | J182: PPC16MTPOSTE
A183: 173 | B183: PPC16 | C183: SICODI | D183: POSTE | E183: MT | F183: CONCRETO | G183: 12 m | H183: CONCRETO | I183: PPC16MT | J183: PPC16MTPOSTE
A184: 174 | B184: PPC16 | C184: SICODI | D184: POSTE | E184: MT | F184: CONCRETO | G184: 12 m | H184: CONCRETO | I184: PPC16MT | J184: PPC16MTPOSTE
A185: 175 | B185: PPC16 | C185: SICODI | D185: POSTE | E185: MT | F185: CONCRETO | G185: 12 m | H185: CONCRETO | I185: PPC16MT | J185: PPC16MTPOSTE
A186: 176 | B186: PPC16 | C186: SICODI | D186: POSTE | E186: MT | F186: CONCRETO | G186: 12 m | H186: CONCRETO | I186: PPC16MT | J186: PPC16MTPOSTE
A187: 177 | B187: PPC16 | C187: SICODI | D187: POSTE | E187: MT | F187: CONCRETO | G187: 12 m | H187: CONCRETO | I187: PPC16MT | J187: PPC16MTPOSTE
A188: 178 | B188: PPC16 | C188: SICODI | D188: POSTE | E188: MT | F188: CONCRETO | G188: 12 m | H188: CONCRETO | I188: PPC16MT | J188: PPC16MTPOSTE
A189: 179 | B189: PPC16 | C189: SICODI | D189: POSTE | E189: MT | F189: CONCRETO | G189: 12 m | H189: CONCRETO | I189: PPC16MT | J189: PPC16MTPOSTE
A190: 180 | B190: PPC16 | C190: SICODI | D190: POSTE | E190: MT | F190: CONCRETO | G190: 12 m | H190: CONCRETO | I190: PPC16MT | J190: PPC16MTPOSTE
A191: 181 | B191: PPC16 | C191: SICODI | D191: POSTE | E191: MT | F191: CONCRETO | G191: 12 m | H191: CONCRETO | I191: PPC16MT | J191: PPC16MTPOSTE
A192: 182 | B192: PPC16 | C192: SICODI | D192: POSTE | E192: MT | F192: CONCRETO | G192: 12 m | H192: CONCRETO | I192: PPC16MT | J192: PPC16MTPOSTE
A193: 183 | B193: PPC16 | C193: SICODI | D193: POSTE | E193: MT | F193: CONCRETO | G193: 12 m | H193: CONCRETO | I193: PPC16MT | J193: PPC16MTPOSTE
A194: 184 | B194: PPC16 | C194: SICODI | D194: POSTE | E194: MT | F194: CONCRETO | G194: 12 m | H194: CONCRETO | I194: PPC16MT | J194: PPC16MTPOSTE
A195: 185 | B195: PPC16 | C195: SICODI | D195: POSTE | E195: MT | F195: CONCRETO | G195: 12 m | H195: CONCRETO | I195: PPC16MT | J195: PPC16MTPOSTE
A196: 186 | B196: PPC16 | C196: SICODI | D196: POSTE | E196: MT | F196: CONCRETO | G196: 12 m | H196: CONCRETO | I196: PPC16MT | J196: PPC16MTPOSTE
A197: 187 | B197: PPC16 | C197: SICODI | D197: POSTE | E197: MT | F197: CONCRETO | G197: 12 m | H197: CONCRETO | I197: PPC16MT | J197: PPC16MTPOSTE
A198: 188 | B198: PPC16 | C198: SICODI | D198: POSTE | E198: MT | F198: CONCRETO | G198: 12 m | H198: CONCRETO | I198: PPC16MT | J198: PPC16MTPOSTE
A199: 189 | B199: PPC16 | C199: SICODI | D199: POSTE | E199: MT | F199: CONCRETO | G199: 12 m | H199: CONCRETO | I199: PPC16MT | J199: PPC16MTPOSTE
A200: 190 | B200: PPC16 | C200: SICODI | D200: POSTE | E200: MT | F200: CONCRETO | G200: 12 m | H200: CONCRETO | I200: PPC16MT | J200: PPC16MTPOSTE
A201: 191 | B201: PPC16 | C201: SICODI | D201: POSTE | E201: MT | F201: CONCRETO | G201: 12 m | H201: CONCRETO | I201: PPC16MT | J201: PPC16MTPOSTE
A202: 192 | B202: PPC16 | C202: SICODI | D202: POSTE | E202: MT | F202: CONCRETO | G202: 12 m | H202: CONCRETO | I202: PPC16MT | J202: PPC16MTPOSTE
A203: 193 | B203: PPC16 | C203: SICODI | D203: POSTE | E203: MT | F203: CONCRETO | G203: 12 m | H203: CONCRETO | I203: PPC16MT | J203: PPC16MTPOSTE
A204: 194 | B204: PPC16 | C204: SICODI | D204: POSTE | E204: MT | F204: CONCRETO | G204: 12 m | H204: =F204 -> CONCRETO | I204: =B204&E204 -> PPC16MT | J204: =B204&E204&D204 -> PPC16MTPOSTE
A205: 195 | B205: PPC16 | C205: SICODI | D205: POSTE | E205: MT | F205: CONCRETO | G205: 12 m | H205: CONCRETO | I205: PPC16MT | J205: PPC16MTPOSTE
A206: 196 | B206: PPC16 | C206: SICODI | D206: POSTE | E206: MT | F206: CONCRETO | G206: 12 m | H206: CONCRETO | I206: PPC16MT | J206: PPC16MTPOSTE
... 2955 more rows
